{"text_format":"1","workbook":"xlsx","n_sheets":43,"sheets":["Database Sheet","Data for Graphs","Panel Graph","Panel and Silicon Graph","Polysilicon History","Long-term History","Polysilicon Cost Curve","Cell vs Module vs Array","Panel only","VBA Code","pvinsights 05 02 15","pvinsights 29 05 15","pvinsights 15 06 15","pvinsights 25 09 15","pvinsights 13 11 15","pvinsights 09 04 16","pvinsights 31 07 16","pvinsights 01 08 16","pvinsights 02 10 16","pvinsights 08 01 17","pvinsights 26 02 17","pvinsights 06 04 17","pvinsights 01 06 17","pvinsights 26 08 17","pvinsights 16 09 17","pvinsights 30 10 17","pvinsights 20 11 17","pvinsights 01 02 18","pvinsights 14 02 18","pvinsights 09 04 18","pvinsights 05 06 18","pvinsights 09 07 18","pvinsights 31 08 18","pvinsights 21 09 18","pvinsights 31 10 18","pvinsights 02 12 18","pvinsights 02 01 19","pvinsights 29 01 19","pvinsights 05 03 19","pvinsights 07 05 19","pvinsights 19 05 19","pvinsights 27 06 19","pvinsights 12 08 19"],"not_rendered":{"charts":7,"images":5,"macros":1,"external_links":0,"defined_names":7,"comments":0,"pivot_tables":0},"unopened":[{"sheet":"Panel Graph","index":2,"reason":"not_a_worksheet"},{"sheet":"Panel and Silicon Graph","index":3,"reason":"not_a_worksheet"},{"sheet":"Long-term History","index":5,"reason":"not_a_worksheet"}],"bounds":{"document_bytes":16777216,"sheet_cells":100000,"rows_first":2000,"rows_last":500,"rows_between":2000,"halvings":0,"cell_chars":16384,"cell_head_chars":4096},"cells_cut":0,"cells_raw":0,"read":"whole","date_system":"1900"}

{"sheet":"Database Sheet","index":0,"n_rows":30,"n_cols":82,"rows_kept":30,"cut":false,"hidden":false,"merged":[]}
[null,null,null,null,null,null,null,null,null,null,null,{"$f":"COLUMN()","v":12},{"$f":"COLUMN()","v":13},{"$f":"COLUMN()","v":14},{"$f":"COLUMN()","v":15},{"$f":"COLUMN()","v":16},{"$f":"COLUMN()","v":17},{"$f":"COLUMN()","v":18},{"$f":"COLUMN()","v":19},{"$f":"COLUMN()","v":20},{"$f":"COLUMN()","v":21},{"$f":"COLUMN()","v":22},{"$f":"COLUMN()","v":23},{"$f":"COLUMN()","v":24},{"$f":"COLUMN()","v":25},{"$f":"COLUMN()","v":26},{"$f":"COLUMN()","v":27},{"$f":"COLUMN()","v":28},{"$f":"COLUMN()","v":29},{"$f":"COLUMN()","v":30},{"$f":"COLUMN()","v":31},{"$f":"COLUMN()","v":32},{"$f":"COLUMN()","v":33},{"$f":"COLUMN()","v":34},{"$f":"COLUMN()","v":35},{"$f":"COLUMN()","v":36},{"$f":"COLUMN()","v":37},{"$f":"COLUMN()","v":38},{"$f":"COLUMN()","v":39},{"$f":"COLUMN()","v":40},{"$f":"COLUMN()","v":41}]
[null,null,null,null,null,null,null,null,null,null,"Uses Function sheet_name1"]
[null,null,"http://pvinsights.com/"]
[null,null,{"$f":"sheet_name1('pvinsights 05 02 15'!A33:E33)","v":"pvinsights 05 02 15"}]
[null,null,null,null,null,null,null,null,null,null,"Name to Lookup in Sheet",{"$f":"'pvinsights 05 02 15'!I39","v":"Average "},{"$f":"L5","v":"Average "},{"$f":"M5","v":"Average "},"Average ","Average ","Average ","Average ","Average ","Average ","Average ","Average ","Average ","Average ","Average ","Average ","Average ","Average ","Average ","Average ","Average ","Average ","Average ","Average ","Average ","Average ","Average ","Average ","Average ","Average ","Average "]
[null,null,null,null,null,null,null,null,null,null,null,{"$f":"MID(L9,16,2)&\" \"&RIGHT(L7,2)","v":"02 15"},{"$f":"MID(M9,16,2)&\" \"&RIGHT(M7,2)","v":"05 15"},"06 15","05 15","11 15","07 16","10 16","01 17",{"$f":"MID(T9,16,2)&\" \"&RIGHT(T7,2)","v":"02 17"},"04 17",{"$f":"MID(V9,16,2)&\" \"&RIGHT(V7,2)","v":"06 17"},"08 17",{"$f":"MID(X9,16,2)&\" \"&RIGHT(X7,2)","v":"09 17"},"10 17",{"$f":"MID(Z9,16,2)&\" \"&RIGHT(Z7,2)","v":"11 17"},{"$f":"MID(AA9,16,2)&\" \"&RIGHT(AA7,2)","v":"02 18"},"04 18","06 18","07 18","08 18","09 18","10 18",{"$f":"MID(AH9,16,2)&\" \"&RIGHT(AH7,2)","v":"12 18"},"01 19",{"$f":"MID(AJ9,16,2)&\" \"&RIGHT(AJ7,2)","v":"01 19"},"03 19",{"$f":"MID(AL9,16,2)&\" \"&RIGHT(AL7,2)","v":"05 19"},"05 19",{"$f":"MID(AN9,16,2)&\" \"&RIGHT(AN7,2)","v":"06 19"},"08 19",{"$f":"NA()","v":{"$error":"#N/A"}},{"$f":"NA()","v":{"$error":"#N/A"}},{"$f":"NA()","v":{"$error":"#N/A"}},{"$f":"NA()","v":{"$error":"#N/A"}},{"$f":"NA()","v":{"$error":"#N/A"}},{"$f":"NA()","v":{"$error":"#N/A"}},{"$f":"NA()","v":{"$error":"#N/A"}},{"$f":"NA()","v":{"$error":"#N/A"}},{"$f":"NA()","v":{"$error":"#N/A"}},{"$f":"NA()","v":{"$error":"#N/A"}},{"$f":"NA()","v":{"$error":"#N/A"}},{"$f":"NA()","v":{"$error":"#N/A"}},{"$f":"NA()","v":{"$error":"#N/A"}},{"$f":"NA()","v":{"$error":"#N/A"}},{"$f":"NA()","v":{"$error":"#N/A"}},{"$f":"NA()","v":{"$error":"#N/A"}},{"$f":"NA()","v":{"$error":"#N/A"}},{"$f":"NA()","v":{"$error":"#N/A"}},{"$f":"NA()","v":{"$error":"#N/A"}},{"$f":"NA()","v":{"$error":"#N/A"}},{"$f":"NA()","v":{"$error":"#N/A"}},{"$f":"NA()","v":{"$error":"#N/A"}},{"$f":"NA()","v":{"$error":"#N/A"}},{"$f":"NA()","v":{"$error":"#N/A"}},{"$f":"NA()","v":{"$error":"#N/A"}},{"$f":"NA()","v":{"$error":"#N/A"}},{"$f":"NA()","v":{"$error":"#N/A"}},{"$f":"NA()","v":{"$error":"#N/A"}},{"$f":"NA()","v":{"$error":"#N/A"}},{"$f":"NA()","v":{"$error":"#N/A"}},{"$f":"NA()","v":{"$error":"#N/A"}},{"$f":"NA()","v":{"$error":"#N/A"}},{"$f":"NA()","v":{"$error":"#N/A"}},{"$f":"NA()","v":{"$error":"#N/A"}},{"$f":"NA()","v":{"$error":"#N/A"}},{"$f":"NA()","v":{"$error":"#N/A"}},{"$f":"NA()","v":{"$error":"#N/A"}},{"$f":"NA()","v":{"$error":"#N/A"}},{"$f":"NA()","v":{"$error":"#N/A"}},{"$f":"NA()","v":{"$error":"#N/A"}},{"$f":"NA()","v":{"$error":"#N/A"}}]
[null,null,"Number Sheets function",{"$f":"num_sheets()","v":43},null,null,"File Row",{"$f":"ROW()","v":7},null,null,"Fixed Sheet Name","pvinsights 05 02 15","pvinsights 29 05 15","pvinsights 15 06 15","pvinsights 29 05 15","pvinsights 13 11 15","pvinsights 31 07 16","pvinsights 02 10 16","pvinsights 08 01 17","pvinsights 26 02 17","pvinsights 06 04 17","pvinsights 01 06 17","pvinsights 26 08 17","pvinsights 16 09 17","pvinsights 30 10 17","pvinsights 20 11 17","pvinsights 01 02 18","pvinsights 09 04 18","pvinsights 05 06 18","pvinsights 09 07 18","pvinsights 31 08 18","pvinsights 21 09 18","pvinsights 31 10 18","pvinsights 02 12 18","pvinsights 02 01 19","pvinsights 29 01 19","pvinsights 05 03 19","pvinsights 07 05 19","pvinsights 19 05 19","pvinsights 27 06 19","pvinsights 12 08 19"]
[null,null,"Last Sheet Name function",{"$f":"sheet_name_num(D7-1)","v":"pvinsights 27 06 19"},"Col",{"$f":"MATCH(D8,7:7,0)","v":40},null,null,null,null,"Column of Average in Detail Sheet","I","I","I","I","I","I","I","I","I","I","I","I","I","I","I","I","I","I","I","I","I","I","I","I","I","I","I","I","I","I"]
[null,null,"Current Last Sheet",{"$f":"sheet_name_num(D7)","v":"pvinsights 12 08 19"},null,null,null,null,null,null,"Indirect Key for Polysilicon",{"$f":"\"'\"&L$7&\"'!\"&L8&\":\"&L8","v":"'pvinsights 05 02 15'!I:I"},{"$f":"\"'\"&M7&\"'!\"&M8&\":\"&M8","v":"'pvinsights 29 05 15'!I:I"},"'pvinsights 15 06 15'!I:I",{"$f":"\"'\"&O7&\"'!\"&O8&\":\"&O8","v":"'pvinsights 29 05 15'!I:I"},"'pvinsights 13 11 15'!I:I","'pvinsights 31 07 16'!I:I","'pvinsights 02 10 16'!I:I","'pvinsights 08 01 17'!I:I","'pvinsights 26 02 17'!I:I",{"$f":"\"'\"&U7&\"'!\"&U8&\":\"&U8","v":"'pvinsights 06 04 17'!I:I"},"'pvinsights 01 06 17'!I:I","'pvinsights 26 08 17'!I:I","'pvinsights 16 09 17'!I:I","'pvinsights 30 10 17'!I:I","'pvinsights 20 11 17'!I:I","'pvinsights 01 02 18'!I:I",{"$f":"\"'\"&AB7&\"'!\"&AB8&\":\"&AB8","v":"'pvinsights 09 04 18'!I:I"},"'pvinsights 05 06 18'!I:I","'pvinsights 09 07 18'!I:I","'pvinsights 31 08 18'!I:I","'pvinsights 21 09 18'!I:I","'pvinsights 31 10 18'!I:I","'pvinsights 02 12 18'!I:I",{"$f":"\"'\"&AI7&\"'!\"&AI8&\":\"&AI8","v":"'pvinsights 02 01 19'!I:I"},"'pvinsights 29 01 19'!I:I",{"$f":"\"'\"&AK7&\"'!\"&AK8&\":\"&AK8","v":"'pvinsights 05 03 19'!I:I"},"'pvinsights 07 05 19'!I:I",{"$f":"\"'\"&AM7&\"'!\"&AM8&\":\"&AM8","v":"'pvinsights 19 05 19'!I:I"},"'pvinsights 27 06 19'!I:I",{"$f":"\"'\"&AO7&\"'!\"&AO8&\":\"&AO8","v":"'pvinsights 12 08 19'!I:I"}]
[null,null,null,null,"Row",null,"High","Low","Average"]
[null,null,"Poly Silicon Solar Module ",{"$f":"R7","v":"pvinsights 02 10 16"},{"$f":"match_partial(C11,\"F\",10,D11,50)","v":41},null,{"$f":"INDEX(INDIRECT(\"'\"&$D11&\"'!G:G\"),'Database Sheet'!$E$11)","v":0.53},{"$f":"INDEX(INDIRECT(\"'\"&$D11&\"'!H:H\"),'Database Sheet'!$E$11)","v":0.34},{"$f":"INDEX(INDIRECT(\"'\"&$D11&\"'!I:I\"),'Database Sheet'!$E$11)","v":0.40200000000000002},null,"PV Grade Silicon Price",{"$f":"INDEX(INDIRECT(L9),MATCH(L5,INDIRECT(L9),0)+1)","v":19.079999999999998},15.79,15.58,15.79,14.1,15.9,{"$f":"INDEX(INDIRECT(R9),MATCH(R5,INDIRECT(R9),0)+1)","v":12.65},15.37,{"$f":"INDEX(INDIRECT(T9),MATCH(T5,INDIRECT(T9),0)+1)","v":16.22},{"$f":"INDEX(INDIRECT(U9),MATCH(U5,INDIRECT(U9),0)+1)","v":14.21},13.85,15.55,16.71,16.68,16.66,{"$f":"INDEX(INDIRECT(AA9),MATCH(AA5,INDIRECT(AA9),0)+1)","v":17.440000000000001},15.41,{"$f":"INDEX(INDIRECT(AC9),MATCH(AC5,INDIRECT(AC9),0)+1)","v":14.65},11.16,{"$f":"INDEX(INDIRECT(AE9),MATCH(AE5,INDIRECT(AE9),0)+1)","v":11.26},10.68,{"$f":"INDEX(INDIRECT(AG9),MATCH(AG5,INDIRECT(AG9),0)+1)","v":9.75},9.5299999999999994,{"$f":"INDEX(INDIRECT(AI9),MATCH(AI5,INDIRECT(AI9),0)+1)","v":9.26},8.9,{"$f":"INDEX(INDIRECT(AK9),MATCH(AK5,INDIRECT(AK9),0)+1)","v":9.0399999999999991},8.42,{"$f":"INDEX(INDIRECT(AM9),MATCH(AM5,INDIRECT(AM9),0)+1)","v":8.34},8.14,{"$f":"INDEX(INDIRECT(AO9),MATCH(AO5,INDIRECT(AO9),0)+1)","v":7.92}]
[null,null,"ThinFilm Solar Module ",{"$f":"D11","v":"pvinsights 02 10 16"},{"$f":"match_partial(C12,\"F\",10,D12,50)","v":42},null,{"$f":"INDEX(INDIRECT(\"'\"&$D12&\"'!G:G\"),'Database Sheet'!$E$12)","v":0.54},{"$f":"INDEX(INDIRECT(\"'\"&$D12&\"'!H:H\"),'Database Sheet'!$E$12)","v":0.34},{"$f":"INDEX(INDIRECT(\"'\"&$D12&\"'!I:I\"),'Database Sheet'!$E$12)","v":0.42}]
[null,null,null,null,null,null,null,null,null,null,"Match Key for Silicon","Poly Silicon Solar Module ","Poly Silicon Solar Module ","Poly Silicon Solar Module ","Poly Silicon Solar Module ","Poly Silicon Solar Module ","Poly Silicon Solar Module ","Poly Silicon Solar Module ","Poly Silicon Solar Module ","Poly Silicon Solar Module ","Poly Silicon Solar Module ","Poly Silicon Solar Module ","Poly Silicon Solar Module ","Poly Silicon Solar Module ","Poly Silicon Solar Module ","Poly Silicon Solar Module ","Poly Silicon Solar Module ","Poly Silicon Solar Module ","Poly Silicon Solar Module ","Poly Silicon Solar Module ","Poly Module in China ","Poly Module in China ","Poly Module in China ","Poly Module in China ","Poly Module in China ","Poly Module in China ","Poly Module in China ","Poly Module in China ","Poly Module in China ","Poly Module in China ","Poly Module in China "]
[null,null,null,null,null,null,null,null,null,null,"Column","F","F","F","F","F","F","F","F","F","F","F","F","F","F","F","F","F","F","F","F","F","F","F","F","F","F","F","F","F","F"]
[null,null,null,null,null,null,null,null,null,null,"Indirect Key",{"$f":"\"'\"&L$7&\"'!\"&L14&\":\"&L14","v":"'pvinsights 05 02 15'!F:F"},{"$f":"\"'\"&M$7&\"'!\"&M14&\":\"&M14","v":"'pvinsights 29 05 15'!F:F"},"'pvinsights 15 06 15'!F:F","'pvinsights 29 05 15'!F:F","'pvinsights 13 11 15'!F:F","'pvinsights 31 07 16'!F:F",{"$f":"\"'\"&R$7&\"'!\"&R14&\":\"&R14","v":"'pvinsights 02 10 16'!F:F"},"'pvinsights 08 01 17'!F:F",{"$f":"\"'\"&T$7&\"'!\"&T14&\":\"&T14","v":"'pvinsights 26 02 17'!F:F"},{"$f":"\"'\"&U$7&\"'!\"&U14&\":\"&U14","v":"'pvinsights 06 04 17'!F:F"},"'pvinsights 01 06 17'!F:F","'pvinsights 26 08 17'!F:F","'pvinsights 16 09 17'!F:F","'pvinsights 30 10 17'!F:F","'pvinsights 20 11 17'!F:F","'pvinsights 01 02 18'!F:F",{"$f":"\"'\"&AB$7&\"'!\"&AB14&\":\"&AB14","v":"'pvinsights 09 04 18'!F:F"},"'pvinsights 05 06 18'!F:F",{"$f":"\"'\"&AD$7&\"'!\"&AD14&\":\"&AD14","v":"'pvinsights 09 07 18'!F:F"},{"$f":"\"'\"&AE$7&\"'!\"&AE14&\":\"&AE14","v":"'pvinsights 31 08 18'!F:F"},"'pvinsights 21 09 18'!F:F",{"$f":"\"'\"&AG$7&\"'!\"&AG14&\":\"&AG14","v":"'pvinsights 31 10 18'!F:F"},"'pvinsights 02 12 18'!F:F",{"$f":"\"'\"&AI$7&\"'!\"&AI14&\":\"&AI14","v":"'pvinsights 02 01 19'!F:F"},"'pvinsights 29 01 19'!F:F",{"$f":"\"'\"&AK$7&\"'!\"&AK14&\":\"&AK14","v":"'pvinsights 05 03 19'!F:F"},"'pvinsights 07 05 19'!F:F",{"$f":"\"'\"&AM$7&\"'!\"&AM14&\":\"&AM14","v":"'pvinsights 19 05 19'!F:F"},"'pvinsights 27 06 19'!F:F",{"$f":"\"'\"&AO$7&\"'!\"&AO14&\":\"&AO14","v":"'pvinsights 12 08 19'!F:F"}]
[null,null,"Polysilicon Column","USD/kg",null,null,{"$f":"MATCH(D11,7:7,0)","v":18},{"$f":"G16","v":18},null,null,"Row",{"$f":"MATCH(L13,INDIRECT(L15),0)","v":40},{"$f":"MATCH(M13,INDIRECT(M15),0)","v":40},40,40,40,41,{"$f":"MATCH(R13,INDIRECT(R15),0)","v":41},41,{"$f":"MATCH(T13,INDIRECT(T15),0)","v":42},{"$f":"MATCH(U13,INDIRECT(U15),0)","v":42},42,47,47,47,47,48,{"$f":"MATCH(AB13,INDIRECT(AB15),0)","v":48},44,{"$f":"MATCH(AD13,INDIRECT(AD15),0)","v":44},{"$f":"MATCH(AE13,INDIRECT(AE15),0)","v":45},43,43,43,43,43,{"$f":"MATCH(AK13,INDIRECT(AK15),0)","v":43},41,{"$f":"MATCH(AM13,INDIRECT(AM15),0)","v":41},40,{"$f":"MATCH(AO13,INDIRECT(AO15),0)","v":40}]
[null,null,"Conversion","kg/lb",2.6792090000000002,{"$f":"1/E17","v":0.37324449119124337},"USD/kg","USD/lb",null,null,"Price Col","I","I","I","I","I","I","I","I","I","I","I","I","I","I","I","I","I","I","I","I","I","I","I","I","I","I","I","I","I","I"]
[null,null,"Price in USD/lb",null,null,null,{"$f":"INDEX(11:11,G16)","v":12.65},{"$f":"G18/E17","v":4.7215428135692283},null,null,"Indirect Key for Index",{"$f":"\"'\"&L$7&\"'!\"&L17&\":\"&L17","v":"'pvinsights 05 02 15'!I:I"},{"$f":"\"'\"&M$7&\"'!\"&M17&\":\"&M17","v":"'pvinsights 29 05 15'!I:I"},"'pvinsights 15 06 15'!I:I","'pvinsights 29 05 15'!I:I","'pvinsights 13 11 15'!I:I","'pvinsights 31 07 16'!I:I",{"$f":"\"'\"&R$7&\"'!\"&R17&\":\"&R17","v":"'pvinsights 02 10 16'!I:I"},"'pvinsights 08 01 17'!I:I",{"$f":"\"'\"&T$7&\"'!\"&T17&\":\"&T17","v":"'pvinsights 26 02 17'!I:I"},"'pvinsights 06 04 17'!I:I",{"$f":"\"'\"&V$7&\"'!\"&V17&\":\"&V17","v":"'pvinsights 01 06 17'!I:I"},"'pvinsights 26 08 17'!I:I",{"$f":"\"'\"&X$7&\"'!\"&X17&\":\"&X17","v":"'pvinsights 16 09 17'!I:I"},"'pvinsights 30 10 17'!I:I",{"$f":"\"'\"&Z$7&\"'!\"&Z17&\":\"&Z17","v":"'pvinsights 20 11 17'!I:I"},"'pvinsights 01 02 18'!I:I",{"$f":"\"'\"&AB$7&\"'!\"&AB17&\":\"&AB17","v":"'pvinsights 09 04 18'!I:I"},"'pvinsights 05 06 18'!I:I",{"$f":"\"'\"&AD$7&\"'!\"&AD17&\":\"&AD17","v":"'pvinsights 09 07 18'!I:I"},{"$f":"\"'\"&AE$7&\"'!\"&AE17&\":\"&AE17","v":"'pvinsights 31 08 18'!I:I"},"'pvinsights 21 09 18'!I:I",{"$f":"\"'\"&AG$7&\"'!\"&AG17&\":\"&AG17","v":"'pvinsights 31 10 18'!I:I"},"'pvinsights 02 12 18'!I:I",{"$f":"\"'\"&AI$7&\"'!\"&AI17&\":\"&AI17","v":"'pvinsights 02 01 19'!I:I"},"'pvinsights 29 01 19'!I:I",{"$f":"\"'\"&AK$7&\"'!\"&AK17&\":\"&AK17","v":"'pvinsights 05 03 19'!I:I"},"'pvinsights 07 05 19'!I:I",{"$f":"\"'\"&AM$7&\"'!\"&AM17&\":\"&AM17","v":"'pvinsights 19 05 19'!I:I"},"'pvinsights 27 06 19'!I:I",{"$f":"\"'\"&AO$7&\"'!\"&AO17&\":\"&AO17","v":"'pvinsights 12 08 19'!I:I"}]
[]
[null,null,null,null,null,null,null,null,null,null,"Polysilicon Average",{"$f":"INDEX(INDIRECT(L18),L16)","v":0.60699999999999998},0.55500000000000005,0.55000000000000004,0.55500000000000005,0.56100000000000005,0.48,{"$f":"INDEX(INDIRECT(R18),R16)","v":0.40200000000000002},0.35799999999999998,0.35,0.34100000000000003,0.33300000000000002,0.32100000000000001,{"$f":"INDEX(INDIRECT(X18),X16)","v":0.32200000000000001},0.318,{"$f":"INDEX(INDIRECT(Z18),Z16)","v":0.315},{"$f":"INDEX(INDIRECT(AA18),AA16)","v":0.31},0.30199999999999999,0.29199999999999998,0.26600000000000001,0.23899999999999999,0.23400000000000001,{"$f":"INDEX(INDIRECT(AG18),AG16)","v":0.21199999999999999},0.20399999999999999,{"$f":"INDEX(INDIRECT(AI18),AI16)","v":0.20799999999999999},0.20699999999999999,{"$f":"INDEX(INDIRECT(AK18),AK16)","v":0.20699999999999999},0.20599999999999999,{"$f":"INDEX(INDIRECT(AM18),AM16)","v":0.20399999999999999},0.21199999999999999,{"$f":"INDEX(INDIRECT(AO18),AO16)","v":0.20399999999999999}]
[null,null,"Revise Macro:"]
[null,null,"1: Count colums",null,1,"kg",100,null,null,null,null,"ThinFilm Solar Module ","ThinFilm Solar Module ","ThinFilm Solar Module ","ThinFilm Solar Module ","ThinFilm Solar Module ","ThinFilm Solar Module ","ThinFilm Solar Module ","ThinFilm Solar Module ","ThinFilm Solar Module ","ThinFilm Solar Module ","ThinFilm Solar Module ","ThinFilm Solar Module ","ThinFilm Solar Module ","ThinFilm Solar Module ","ThinFilm Solar Module ","ThinFilm Solar Module ","ThinFilm Solar Module ","ThinFilm Solar Module ","ThinFilm Solar Module ","ThinFilm Solar Module ","ThinFilm Solar Module ","ThinFilm Solar Module ","ThinFilm Solar Module ","ThinFilm Solar Module ","ThinFilm Solar Module ","ThinFilm Solar Module ","ThinFilm Solar Module ","ThinFilm Solar Module ","ThinFilm Solar Module ","ThinFilm Solar Module "]
[null,null,"2: Copy the last column",null,{"$f":"E17","v":2.6792090000000002},"lb",{"$f":"G22/E23","v":37.324449119124338},null,null,null,"Match",{"$f":"MATCH(L22,INDIRECT(L15),0)","v":41},41,41,41,41,42,{"$f":"MATCH(R22,INDIRECT(R15),0)","v":42},42,{"$f":"MATCH(T22,INDIRECT(T15),0)","v":43},{"$f":"MATCH(U22,INDIRECT(U15),0)","v":43},43,48,48,50,50,51,{"$f":"MATCH(AB22,INDIRECT(AB15),0)","v":51},47,{"$f":"MATCH(AD22,INDIRECT(AD15),0)","v":47},{"$f":"MATCH(AE22,INDIRECT(AE15),0)","v":49},47,{"$f":"MATCH(AG22,INDIRECT(AG15),0)","v":47},47,{"$f":"MATCH(AI22,INDIRECT(AI15),0)","v":47},47,{"$f":"MATCH(AK22,INDIRECT(AK15),0)","v":47},45,{"$f":"MATCH(AM22,INDIRECT(AM15),0)","v":45},44,{"$f":"MATCH(AO22,INDIRECT(AO15),0)","v":44}]
[null,null,"3: Put in the last sheet",null,null,null,null,null,null,null,"Thin Film Average",{"$f":"INDEX(INDIRECT(L18),L23)","v":0.63400000000000001},0.60399999999999998,0.59599999999999997,0.60399999999999998,0.59,0.50600000000000001,{"$f":"INDEX(INDIRECT(R18),R23)","v":0.42},0.374,{"$f":"INDEX(INDIRECT(T18),T23)","v":0.36299999999999999},{"$f":"INDEX(INDIRECT(U18),U23)","v":0.35299999999999998},0.34599999999999997,0.34,0.34100000000000003,0.33900000000000002,0.33600000000000002,0.33100000000000002,{"$f":"INDEX(INDIRECT(AB18),AB23)","v":0.32200000000000001},0.314,0.29599999999999999,0.27400000000000002,0.26500000000000001,0.247,0.24299999999999999,{"$f":"INDEX(INDIRECT(AI18),AI23)","v":0.246},0.245,{"$f":"INDEX(INDIRECT(AK18),AK23)","v":0.24399999999999999},0.246,{"$f":"INDEX(INDIRECT(AM18),AM23)","v":0.248},0.248,{"$f":"INDEX(INDIRECT(AO18),AO23)","v":0.245}]
[null,null,"4: Copy and Paste Names"]
[]
[null,null,"Last Sheet Num",{"$f":"D7","v":43}]
[null,null,"Last Column Before Copy",{"$f":"COUNTA(6:6)","v":71}]
[null,null,"Column Name"]
[null,null,"Column Number Base",{"$f":"MATCH(D8,7:7,0)-1","v":39}]

{"sheet":"Data for Graphs","index":1,"n_rows":41,"n_cols":21,"rows_kept":41,"cut":false,"hidden":false,"merged":[]}
[null,"Text Date",null,"Silicon USD/kg","Polysilcon - Cost/kW","Thin Film - Cost/kW",null,null,null,null,{"$f":"E1","v":"Polysilcon - Cost/kW"},{"$f":"F1","v":"Thin Film - Cost/kW"}]
[null,{"$f":"TRANSPOSE('Database Sheet'!L6:CD6)","v":"02 15"},{"$f":"IFERROR(DATE(RIGHT(B2,2)+2000,LEFT(B2,2),1),NA())","v":"2015-02-01"},{"$f":"TRANSPOSE('Database Sheet'!L11:CD11)","v":19.079999999999998},{"$f":"TRANSPOSE('Database Sheet'!L20:CS50)*1000","v":607},{"$f":"TRANSPOSE('Database Sheet'!L24:CA44)*1000","v":634},{"$f":"IFERROR(F2/E2-1,FALSE)","v":4.4481054365733019E-2},{"$f":"IF(ISNUMBER(C2),YEAR(C2))","v":2015},null,{"$f":"C2","v":"2015-02-01"},{"$f":"E2","v":607},{"$f":"F2","v":634},null,null,{"$f":"\"Polysilicon and Thin Film Panel Prices: \"&CHAR(13)","v":"Polysilicon and Thin Film Panel Prices: \r"},"Recent Date",{"$f":"MAX_NA(C:C)","v":"2019-08-01"},"Polysilicon Panel Price in USD/kWp",{"$f":"INDEX(E:E,MATCH(Q2,C:C,0))","v":204}]
[null,"05 15",{"$f":"IFERROR(DATE(RIGHT(B3,2)+2000,LEFT(B3,2),1),NA())","v":"2015-05-01"},15.79,555,604,{"$f":"IFERROR(F3/E3-1,FALSE)","v":8.8288288288288275E-2},{"$f":"IF(ISNUMBER(C3),YEAR(C3))","v":2015},null,{"$f":"C3","v":"2015-05-01"},{"$f":"E3","v":555},{"$f":"F3","v":604}]
[null,"06 15","2015-06-01",15.58,550,596,8.3636363636363731E-2,2015,null,"2015-06-01",550,596]
[null,"05 15","2015-05-01",15.79,555,604,8.8288288288288275E-2,2015,null,"2015-05-01",555,604,null,{"$f":"Q2","v":"2019-08-01"},"Polysilicon",{"$f":"INDEX(E:E,S2)","v":0},"Thin Film",{"$f":"INDEX(F:F,S2)","v":0},{"$f":"INDEX(D:D,MATCH(N5,C:C,0))","v":7.92}]
[null,"11 15","2015-11-01",14.1,561,590,5.1693404634581164E-2,2015,null,"2015-11-01",561,590]
[null,"07 16","2016-07-01",15.9,480,506,5.4166666666666696E-2,2016,null,"2016-07-01",480,506]
[null,"10 16","2016-10-01",12.65,402,420,4.4776119402984982E-2,2016,null,"2016-10-01",402,420,null,null,{"$f":"\"Polysilicon Commodity and Panel Prices\"&CHAR(13)","v":"Polysilicon Commodity and Panel Prices\r"},{"$f":"P2","v":"Recent Date"},{"$f":"Q2","v":"2019-08-01"},{"$f":"R2","v":"Polysilicon Panel Price in USD/kWp"},{"$f":"S2","v":204},"Polysilicon Commodity",{"$f":"S5","v":7.92}]
[null,"01 17","2017-01-01",15.37,358,374,4.4692737430167551E-2,2017,null,"2017-01-01",358,374]
[null,"02 17","2017-02-01",16.22,350,363,3.7142857142857144E-2,2017,null,"2017-02-01",350,363]
[null,"04 17","2017-04-01",14.21,341,353,3.5190615835777095E-2,2017,null,"2017-04-01",341,353]
[null,"06 17","2017-06-01",13.85,333,346,3.9039039039038936E-2,2017,null,"2017-06-01",333,346]
[null,"08 17","2017-08-01",15.55,321,340,5.9190031152647871E-2,2017,null,"2017-08-01",321,340]
[null,"09 17","2017-09-01",16.71,322,341,5.9006211180124168E-2,2017,null,"2017-09-01",322,341]
[null,"10 17","2017-10-01",16.68,318,339,6.60377358490567E-2,2017,null,"2017-10-01",318,339]
[null,"11 17","2017-11-01",16.66,315,336,6.6666666666666652E-2,2017,null,"2017-11-01",315,336]
[null,"02 18","2018-02-01",17.440000000000001,310,331,6.7741935483870863E-2,2018,null,"2018-02-01",310,331]
[null,"04 18","2018-04-01",15.41,302,322,6.6225165562913801E-2,2018,null,"2018-04-01",302,322]
[null,"06 18","2018-06-01",14.65,292,314,7.5342465753424737E-2,2018,null,"2018-06-01",292,314]
[null,"07 18","2018-07-01",11.16,266,296,0.11278195488721798,2018,null,"2018-07-01",266,296]
[null,"08 18","2018-08-01",11.26,239,274,0.14644351464435146,2018,null,"2018-08-01",239,274]
[null,"09 18","2018-09-01",10.68,234,265,0.13247863247863245,2018,null,"2018-09-01",234,265]
[null,"10 18","2018-10-01",9.75,212,247,0.16509433962264142,2018,null,"2018-10-01",212,247]
[null,"12 18","2018-12-01",9.5299999999999994,204,243,0.19117647058823528,{"$f":"IF(ISNUMBER(C24),YEAR(C24))","v":2018},null,"2018-12-01",204,243]
[null,"01 19","2019-01-01",9.26,208,246,0.18269230769230771,2019,null,"2019-01-01",208,246]
[null,"01 19","2019-01-01",8.9,207,245,0.18357487922705307,2019,null,"2019-01-01",207,245]
[null,"03 19","2019-03-01",9.0399999999999991,207,244,0.17874396135265691,2019,null,"2019-03-01",207,244]
[null,"05 19","2019-05-01",8.42,206,246,0.19417475728155331,2019,null,"2019-05-01",206,246]
[null,"05 19","2019-05-01",8.34,204,248,0.21568627450980382,2019,null,"2019-05-01",204,248]
[null,"06 19","2019-06-01",8.14,212,248,0.16981132075471694,2019,null,"2019-06-01",212,248]
[null,"08 19","2019-08-01",7.92,204,245,0.2009803921568627,2019,null,"2019-08-01",204,245]
[null,{"$error":"#N/A"},{"$error":"#N/A"},0,0,0,false,false,null,{"$error":"#N/A"},0,0]
[null,{"$error":"#N/A"},{"$error":"#N/A"},0,0,0,false,false,null,{"$error":"#N/A"},0,0]
[null,{"$error":"#N/A"},{"$error":"#N/A"},0,0,0,{"$f":"IFERROR(F34/E34-1,FALSE)","v":false},{"$f":"IF(ISNUMBER(C34),YEAR(C34))","v":false},null,{"$f":"C34","v":{"$error":"#N/A"}},{"$f":"E34","v":0},{"$f":"F34","v":0}]
[null,{"$error":"#N/A"},{"$error":"#N/A"},0,0,0,false,false,null,{"$error":"#N/A"},0,0]
[null,{"$error":"#N/A"},{"$error":"#N/A"},0,0,0,false,false,null,{"$error":"#N/A"},0,0]
[null,{"$error":"#N/A"},{"$error":"#N/A"},0,0,0,false,false,null,{"$error":"#N/A"},0,0]
[null,{"$error":"#N/A"},{"$error":"#N/A"},0,0,0,false,false,null,{"$error":"#N/A"},0,0]
[null,{"$error":"#N/A"},{"$error":"#N/A"},0,0,0,false,false,null,{"$error":"#N/A"},0,0]
[null,{"$error":"#N/A"},{"$error":"#N/A"},0,0,0,false,false,null,{"$error":"#N/A"},0,0]
[null,{"$error":"#N/A"},{"$error":"#N/A"},0,0,0,false,false,null,{"$error":"#N/A"},0,0]

{"sheet":"Polysilicon History","index":4,"n_rows":93,"n_cols":24,"rows_kept":93,"cut":false,"hidden":false,"merged":[]}
[]
[]
[null,null,"Silicon Price (USD/kg)",null,null,null,null,null,null,null,null,null,null,null,null,null,null,null,null,null,"Poly Silicon"]
[null,1999,8,null,null,null,null,null,null,null,null,null,null,null,null,null,null,null,null,"2010-04-01",{"$f":"interpolate_look_up(T4,W:W,X:X)","v":1900},null,{"$f":"T4","v":"2010-04-01"},1900]
[null,2000,14,null,null,null,null,null,null,null,null,null,null,null,null,null,null,null,null,{"$f":"EDATE(T4,1)","v":"2010-05-01"},{"$f":"interpolate_look_up(T5,W:W,X:X)","v":1868.6323303276788},null,{"$f":"T18","v":"2011-06-01"},1500]
[null,2001,18,null,null,null,null,null,null,null,null,null,null,null,null,null,null,null,null,{"$f":"EDATE(T5,1)","v":"2010-06-01"},1836.7630103445556,null,{"$f":"T28","v":"2012-04-01"},1000]
[null,2002,20,null,null,null,null,null,null,null,null,null,null,null,null,null,null,null,null,"2010-07-01",1806.4393390946473,null,{"$f":"T61","v":"2015-01-01"},607]
[null,2003,26,null,null,null,null,null,null,null,null,null,null,null,null,null,null,null,null,"2010-08-01",1775.630713773681]
[null,2004,30,null,null,null,null,null,null,null,null,null,null,null,null,null,null,null,null,"2010-09-01",1745.3475261873932]
[null,2005,40,null,null,null,null,null,null,null,null,null,null,null,null,null,null,null,null,"2010-10-01",1716.5330605743152]
[null,2006,94,null,null,null,null,null,null,null,null,null,null,null,null,null,null,null,null,"2010-11-01",1687.2577769986208]
[null,2007,138,null,null,null,null,null,null,null,null,null,null,null,null,null,null,null,null,"2010-12-01",1659.4023324718064]
[null,2008,207,null,null,null,null,null,null,null,null,null,null,null,null,null,null,null,null,"2011-01-01",1631.1014072143421]
[null,2009,91,null,null,null,null,null,null,null,null,null,null,null,null,null,null,null,null,"2011-02-01",1603.2831511412915]
[null,2010,56,null,null,null,null,null,null,null,null,null,null,null,null,null,null,null,null,"2011-03-01",1578.5649987629001]
[null,2011,59,null,null,null,null,null,null,null,null,null,null,null,null,null,null,null,null,"2011-04-01",1551.6427453890051]
[null,2012,25,null,null,null,null,null,null,null,null,null,null,null,null,null,null,null,null,"2011-05-01",1526.0262100801547]
[null,2013,16,null,null,null,null,null,null,null,null,null,null,null,null,null,null,null,null,"2011-06-01",1500]
[null,2014,16,null,null,null,null,null,null,null,null,null,null,null,null,null,null,null,null,"2011-07-01",1441.3544967114829]
[null,2015,{"$f":"AVERAGEIF('Data for Graphs'!H:H,'Polysilicon History'!B20,'Data for Graphs'!D:D)","v":16.067999999999998},null,null,null,null,null,null,null,null,null,null,null,null,null,null,null,null,"2011-08-01",1383.1618672225916]
[null,2016,{"$f":"AVERAGEIF('Data for Graphs'!H:H,'Polysilicon History'!B21,'Data for Graphs'!D:D)","v":14.275},null,null,null,null,null,null,null,null,null,null,null,null,null,null,null,null,"2011-09-01",1327.318682047752]
[null,2017,{"$f":"AVERAGEIF('Data for Graphs'!H:H,'Polysilicon History'!B22,'Data for Graphs'!D:D)","v":15.65625},null,null,null,null,null,null,null,null,null,null,null,null,null,null,null,null,"2011-10-01",1275.4245006257909]
[null,2018,{"$f":"AVERAGEIF('Data for Graphs'!H:H,'Polysilicon History'!B23,'Data for Graphs'!D:D)","v":12.484999999999999},null,null,null,null,null,null,null,null,null,null,null,null,null,null,null,null,"2011-11-01",1223.9310577737322]
[null,2019,{"$f":"AVERAGEIF('Data for Graphs'!H:H,'Polysilicon History'!B24,'Data for Graphs'!D:D)","v":8.574285714285713},null,null,null,null,null,null,null,null,null,null,null,null,null,null,null,null,"2011-12-01",1176.0790225246735]
[null,null,null,null,null,null,null,null,null,null,null,null,null,null,null,null,null,null,null,"2012-01-01",1128.596511481358]
[null,null,null,null,null,null,null,null,null,null,null,null,null,null,null,null,null,null,null,"2012-02-01",1083.0310390143604]
[null,null,null,null,null,null,null,null,null,null,null,null,null,null,null,null,null,null,null,"2012-03-01",1042.0721759816461]
[null,null,null,null,null,null,null,null,null,null,null,null,null,null,null,null,null,null,null,"2012-04-01",1000]
[null,null,null,null,null,null,null,null,null,null,null,null,null,null,null,null,null,null,null,"2012-05-01",985.20820627155001]
[null,null,null,null,null,null,null,null,null,null,null,null,null,null,null,null,null,null,null,"2012-06-01",970.1531734120781]
[null,null,null,null,null,null,null,null,null,null,null,null,null,null,null,null,null,null,null,"2012-07-01",955.80286778596553]
[null,null,null,null,null,null,null,null,null,null,null,null,null,null,null,null,null,null,null,"2012-08-01",941.1971798815257]
[null,null,null,null,null,null,null,null,null,null,null,null,null,null,null,null,null,null,null,"2012-09-01",926.81468247624809]
[null,null,null,null,null,null,null,null,null,null,null,null,null,null,null,null,null,null,null,"2012-10-01",913.10543086856069]
[null,null,null,null,null,null,null,null,null,null,null,null,null,null,null,null,null,null,null,"2012-11-01",899.15220536923971]
[null,null,null,null,null,null,null,null,null,null,null,null,null,null,null,null,null,null,null,"2012-12-01",885.85213141693703]
[null,null,null,null,null,null,null,null,null,null,null,null,null,null,null,null,null,null,null,"2013-01-01",872.31536541943649]
[null,null,null,null,null,null,null,null,null,null,null,null,null,null,null,null,null,null,null,"2013-02-01",858.98545565354868]
[null,null,null,null,null,null,null,null,null,null,null,null,null,null,null,null,null,null,null,"2013-03-01",847.1207042335501]
[null,null,null,null,null,null,null,null,null,null,null,null,null,null,null,null,null,null,null,"2013-04-01",834.17579577969184]
[null,null,null,null,null,null,null,null,null,null,null,null,null,null,null,null,null,null,null,"2013-05-01",821.8368394752531]
[null,null,null,null,null,null,null,null,null,null,null,null,null,null,null,null,null,null,null,"2013-06-01",809.27829545921361]
[null,null,null,null,null,null,null,null,null,null,null,null,null,null,null,null,null,null,null,"2013-07-01",797.30761784386937]
[null,null,null,null,null,null,null,null,null,null,null,null,null,null,null,null,null,null,null,"2013-08-01",785.12390651327348]
[null,null,null,null,null,null,null,null,null,null,null,null,null,null,null,null,null,null,null,"2013-09-01",773.12637529492667]
[null,null,null,null,null,null,null,null,null,null,null,null,null,null,null,null,null,null,null,"2013-10-01",761.69044942554001]
[null,null,null,null,null,null,null,null,null,null,null,null,null,null,null,null,null,null,null,"2013-11-01",750.05100644095035]
[null,null,null,null,null,null,null,null,null,null,null,null,null,null,null,null,null,null,null,"2013-12-01",738.9564066678596]
[null,null,null,null,null,null,null,null,null,null,null,null,null,null,null,null,null,null,null,"2014-01-01",727.66436411961115]
[null,null,null,null,null,null,null,null,null,null,null,null,null,null,null,null,null,null,null,"2014-02-01",716.54487603298014]
[null,null,null,null,null,null,null,null,null,null,null,null,null,null,null,null,null,null,null,"2014-03-01",706.64758757547463]
[null,null,null,null,null,null,null,null,null,null,null,null,null,null,null,null,null,null,null,"2014-04-01",695.84925826468213]
[null,null,null,null,null,null,null,null,null,null,null,null,null,null,null,null,null,null,null,"2014-05-01",685.55639957033611]
[null,null,null,null,null,null,null,null,null,null,null,null,null,null,null,null,null,null,null,"2014-06-01",675.08036612192211]
[null,null,null,null,null,null,null,null,null,null,null,null,null,null,null,null,null,null,null,"2014-07-01",665.09471659612018]
[null,null,null,null,null,null,null,null,null,null,null,null,null,null,null,null,null,null,null,"2014-08-01",654.93135950137025]
[null,null,null,null,null,null,null,null,null,null,null,null,null,null,null,null,null,null,null,"2014-09-01",644.92330934991412]
[null,null,null,null,null,null,null,null,null,null,null,null,null,null,null,null,null,null,null,"2014-10-01",635.38373678734092]
[null,null,null,null,null,null,null,null,null,null,null,null,null,null,null,null,null,null,null,"2014-11-01",625.67439517323851]
[null,null,null,null,null,null,null,null,null,null,null,null,null,null,null,null,null,null,null,"2014-12-01",616.41954857866335]
[null,null,null,null,null,null,null,null,null,null,null,null,null,null,null,null,null,null,null,"2015-01-01",607]
[null,null,null,null,null,null,null,null,null,null,null,null,null,null,null,null,null,null,null,{"$f":"'Panel only'!A2","v":"2015-02-01"},607]
[null,null,null,null,null,null,null,null,null,null,null,null,null,null,null,null,null,null,null,{"$f":"'Panel only'!A3","v":"2015-05-01"},{"$f":"'Panel only'!C3","v":555}]
[null,null,null,null,null,null,null,null,null,null,null,null,null,null,null,null,null,null,null,{"$f":"'Panel only'!A4","v":"2015-06-01"},{"$f":"'Panel only'!C4","v":550}]
[null,null,null,null,null,null,null,null,null,null,null,null,null,null,null,null,null,null,null,{"$f":"'Panel only'!A5","v":"2015-05-01"},{"$f":"'Panel only'!C5","v":555}]
[null,null,null,null,null,null,null,null,null,null,null,null,null,null,null,null,null,null,null,{"$f":"'Panel only'!A6","v":"2015-11-01"},{"$f":"'Panel only'!C6","v":561}]
[null,null,null,null,null,null,null,null,null,null,null,null,null,null,null,null,null,null,null,{"$f":"'Panel only'!A7","v":"2016-07-01"},{"$f":"'Panel only'!C7","v":480}]
[null,null,null,null,null,null,null,null,null,null,null,null,null,null,null,null,null,null,null,{"$f":"'Panel only'!A8","v":"2016-10-01"},{"$f":"'Panel only'!C8","v":402}]
[null,null,null,null,null,null,null,null,null,null,null,null,null,null,null,null,null,null,null,{"$f":"'Panel only'!A9","v":"2017-01-01"},{"$f":"'Panel only'!C9","v":358}]
[null,null,null,null,null,null,null,null,null,null,null,null,null,null,null,null,null,null,null,{"$f":"'Panel only'!A10","v":"2017-02-01"},{"$f":"'Panel only'!C10","v":350}]
[null,null,null,null,null,null,null,null,null,null,null,null,null,null,null,null,null,null,null,{"$f":"'Panel only'!A11","v":"2017-04-01"},{"$f":"'Panel only'!C11","v":341}]
[null,null,null,null,null,null,null,null,null,null,null,null,null,null,null,null,null,null,null,{"$f":"'Panel only'!A12","v":"2017-06-01"},{"$f":"'Panel only'!C12","v":333}]
[null,null,null,null,null,null,null,null,null,null,null,null,null,null,null,null,null,null,null,{"$f":"'Panel only'!A13","v":"2017-08-01"},{"$f":"'Panel only'!C13","v":321}]
[null,null,null,null,null,null,null,null,null,null,null,null,null,null,null,null,null,null,null,{"$f":"'Panel only'!A14","v":"2017-09-01"},{"$f":"'Panel only'!C14","v":322}]
[null,null,null,null,null,null,null,null,null,null,null,null,null,null,null,null,null,null,null,{"$f":"'Panel only'!A15","v":"2017-10-01"},{"$f":"'Panel only'!C15","v":318}]
[null,null,null,null,null,null,null,null,null,null,null,null,null,null,null,null,null,null,null,{"$f":"'Panel only'!A16","v":"2017-11-01"},{"$f":"'Panel only'!C16","v":315}]
[null,null,null,null,null,null,null,null,null,null,null,null,null,null,null,null,null,null,null,{"$f":"'Panel only'!A17","v":"2018-02-01"},{"$f":"'Panel only'!C17","v":310}]
[null,null,null,null,null,null,null,null,null,null,null,null,null,null,null,null,null,null,null,{"$f":"'Panel only'!A18","v":"2018-04-01"},{"$f":"'Panel only'!C18","v":302}]
[null,null,null,null,null,null,null,null,null,null,null,null,null,null,null,null,null,null,null,{"$f":"'Panel only'!A19","v":"2018-06-01"},{"$f":"'Panel only'!C19","v":292}]
[null,null,null,null,null,null,null,null,null,null,null,null,null,null,null,null,null,null,null,{"$f":"'Panel only'!A20","v":"2018-07-01"},{"$f":"'Panel only'!C20","v":266}]
[null,null,null,null,null,null,null,null,null,null,null,null,null,null,null,null,null,null,null,{"$f":"'Panel only'!A21","v":"2018-08-01"},{"$f":"'Panel only'!C21","v":239}]
[null,null,null,null,null,null,null,null,null,null,null,null,null,null,null,null,null,null,null,{"$f":"'Panel only'!A22","v":"2018-09-01"},{"$f":"'Panel only'!C22","v":234}]
[null,null,null,null,null,null,null,null,null,null,null,null,null,null,null,null,null,null,null,{"$f":"'Panel only'!A23","v":"2018-10-01"},{"$f":"'Panel only'!C23","v":212}]
[null,null,null,null,null,null,null,null,null,null,null,null,null,null,null,null,null,null,null,{"$f":"'Panel only'!A24","v":"2018-12-01"},{"$f":"'Panel only'!C24","v":204}]
[null,null,null,null,null,null,null,null,null,null,null,null,null,null,null,null,null,null,null,{"$f":"'Panel only'!A25","v":"2019-01-01"},{"$f":"'Panel only'!C25","v":208}]
[null,null,null,null,null,null,null,null,null,null,null,null,null,null,null,null,null,null,null,{"$f":"'Panel only'!A26","v":"2019-01-01"},{"$f":"'Panel only'!C26","v":207}]
[null,null,null,null,null,null,null,null,null,null,null,null,null,null,null,null,null,null,null,{"$f":"'Panel only'!A27","v":"2019-03-01"},{"$f":"'Panel only'!C27","v":207}]
[null,null,null,null,null,null,null,null,null,null,null,null,null,null,null,null,null,null,null,{"$f":"'Panel only'!A28","v":"2019-05-01"},{"$f":"'Panel only'!C28","v":206}]
[null,null,null,null,null,null,null,null,null,null,null,null,null,null,null,null,null,null,null,{"$f":"'Panel only'!A29","v":"2019-05-01"},{"$f":"'Panel only'!C29","v":204}]
[null,null,null,null,null,null,null,null,null,null,null,null,null,null,null,null,null,null,null,{"$f":"'Panel only'!A30","v":"2019-06-01"},{"$f":"'Panel only'!C30","v":212}]
[null,null,null,null,null,null,null,null,null,null,null,null,null,null,null,null,null,null,null,{"$f":"'Panel only'!A31","v":"2019-08-01"},{"$f":"'Panel only'!C31","v":204}]
[null,null,null,null,null,null,null,null,null,null,null,null,null,null,null,null,null,null,null,{"$f":"'Panel only'!A32","v":{"$error":"#N/A"}},{"$f":"'Panel only'!C32","v":0}]
[null,null,null,null,null,null,null,null,null,null,null,null,null,null,null,null,null,null,null,{"$f":"'Panel only'!A33","v":{"$error":"#N/A"}},{"$f":"'Panel only'!C33","v":0}]

{"sheet":"Polysilicon Cost Curve","index":6,"n_rows":0,"n_cols":0,"rows_kept":0,"cut":false,"hidden":false,"merged":[]}

{"sheet":"Cell vs Module vs Array","index":7,"n_rows":0,"n_cols":0,"rows_kept":0,"cut":false,"hidden":false,"merged":[]}

{"sheet":"Panel only","index":8,"n_rows":35,"n_cols":4,"rows_kept":35,"cut":false,"hidden":false,"merged":[]}
[null,{"$f":"'Data for Graphs'!D1","v":"Silicon USD/kg"},{"$f":"'Data for Graphs'!E1","v":"Polysilcon - Cost/kW"},{"$f":"'Data for Graphs'!F1","v":"Thin Film - Cost/kW"}]
[{"$f":"'Data for Graphs'!C2","v":"2015-02-01"},{"$f":"'Data for Graphs'!D2","v":19.079999999999998},{"$f":"'Data for Graphs'!E2","v":607},{"$f":"'Data for Graphs'!F2","v":634}]
[{"$f":"'Data for Graphs'!C3","v":"2015-05-01"},{"$f":"'Data for Graphs'!D3","v":15.79},{"$f":"'Data for Graphs'!E3","v":555},{"$f":"'Data for Graphs'!F3","v":604}]
[{"$f":"'Data for Graphs'!C4","v":"2015-06-01"},{"$f":"'Data for Graphs'!D4","v":15.58},{"$f":"'Data for Graphs'!E4","v":550},{"$f":"'Data for Graphs'!F4","v":596}]
[{"$f":"'Data for Graphs'!C5","v":"2015-05-01"},{"$f":"'Data for Graphs'!D5","v":15.79},{"$f":"'Data for Graphs'!E5","v":555},{"$f":"'Data for Graphs'!F5","v":604}]
[{"$f":"'Data for Graphs'!C6","v":"2015-11-01"},{"$f":"'Data for Graphs'!D6","v":14.1},{"$f":"'Data for Graphs'!E6","v":561},{"$f":"'Data for Graphs'!F6","v":590}]
[{"$f":"'Data for Graphs'!C7","v":"2016-07-01"},{"$f":"'Data for Graphs'!D7","v":15.9},{"$f":"'Data for Graphs'!E7","v":480},{"$f":"'Data for Graphs'!F7","v":506}]
[{"$f":"'Data for Graphs'!C8","v":"2016-10-01"},{"$f":"'Data for Graphs'!D8","v":12.65},{"$f":"'Data for Graphs'!E8","v":402},{"$f":"'Data for Graphs'!F8","v":420}]
[{"$f":"'Data for Graphs'!C9","v":"2017-01-01"},{"$f":"'Data for Graphs'!D9","v":15.37},{"$f":"'Data for Graphs'!E9","v":358},{"$f":"'Data for Graphs'!F9","v":374}]
[{"$f":"'Data for Graphs'!C10","v":"2017-02-01"},{"$f":"'Data for Graphs'!D10","v":16.22},{"$f":"'Data for Graphs'!E10","v":350},{"$f":"'Data for Graphs'!F10","v":363}]
[{"$f":"'Data for Graphs'!C11","v":"2017-04-01"},{"$f":"'Data for Graphs'!D11","v":14.21},{"$f":"'Data for Graphs'!E11","v":341},{"$f":"'Data for Graphs'!F11","v":353}]
[{"$f":"'Data for Graphs'!C12","v":"2017-06-01"},{"$f":"'Data for Graphs'!D12","v":13.85},{"$f":"'Data for Graphs'!E12","v":333},{"$f":"'Data for Graphs'!F12","v":346}]
[{"$f":"'Data for Graphs'!C13","v":"2017-08-01"},{"$f":"'Data for Graphs'!D13","v":15.55},{"$f":"'Data for Graphs'!E13","v":321},{"$f":"'Data for Graphs'!F13","v":340}]
[{"$f":"'Data for Graphs'!C14","v":"2017-09-01"},{"$f":"'Data for Graphs'!D14","v":16.71},{"$f":"'Data for Graphs'!E14","v":322},{"$f":"'Data for Graphs'!F14","v":341}]
[{"$f":"'Data for Graphs'!C15","v":"2017-10-01"},{"$f":"'Data for Graphs'!D15","v":16.68},{"$f":"'Data for Graphs'!E15","v":318},{"$f":"'Data for Graphs'!F15","v":339}]
[{"$f":"'Data for Graphs'!C16","v":"2017-11-01"},{"$f":"'Data for Graphs'!D16","v":16.66},{"$f":"'Data for Graphs'!E16","v":315},{"$f":"'Data for Graphs'!F16","v":336}]
[{"$f":"'Data for Graphs'!C17","v":"2018-02-01"},{"$f":"'Data for Graphs'!D17","v":17.440000000000001},{"$f":"'Data for Graphs'!E17","v":310},{"$f":"'Data for Graphs'!F17","v":331}]
[{"$f":"'Data for Graphs'!C18","v":"2018-04-01"},{"$f":"'Data for Graphs'!D18","v":15.41},{"$f":"'Data for Graphs'!E18","v":302},{"$f":"'Data for Graphs'!F18","v":322}]
[{"$f":"'Data for Graphs'!C19","v":"2018-06-01"},{"$f":"'Data for Graphs'!D19","v":14.65},{"$f":"'Data for Graphs'!E19","v":292},{"$f":"'Data for Graphs'!F19","v":314}]
[{"$f":"'Data for Graphs'!C20","v":"2018-07-01"},{"$f":"'Data for Graphs'!D20","v":11.16},{"$f":"'Data for Graphs'!E20","v":266},{"$f":"'Data for Graphs'!F20","v":296}]
[{"$f":"'Data for Graphs'!C21","v":"2018-08-01"},{"$f":"'Data for Graphs'!D21","v":11.26},{"$f":"'Data for Graphs'!E21","v":239},{"$f":"'Data for Graphs'!F21","v":274}]
[{"$f":"'Data for Graphs'!C22","v":"2018-09-01"},{"$f":"'Data for Graphs'!D22","v":10.68},{"$f":"'Data for Graphs'!E22","v":234},{"$f":"'Data for Graphs'!F22","v":265}]
[{"$f":"'Data for Graphs'!C23","v":"2018-10-01"},{"$f":"'Data for Graphs'!D23","v":9.75},{"$f":"'Data for Graphs'!E23","v":212},{"$f":"'Data for Graphs'!F23","v":247}]
[{"$f":"'Data for Graphs'!C24","v":"2018-12-01"},{"$f":"'Data for Graphs'!D24","v":9.5299999999999994},{"$f":"'Data for Graphs'!E24","v":204},{"$f":"'Data for Graphs'!F24","v":243}]
[{"$f":"'Data for Graphs'!C25","v":"2019-01-01"},{"$f":"'Data for Graphs'!D25","v":9.26},{"$f":"'Data for Graphs'!E25","v":208},{"$f":"'Data for Graphs'!F25","v":246}]
[{"$f":"'Data for Graphs'!C26","v":"2019-01-01"},{"$f":"'Data for Graphs'!D26","v":8.9},{"$f":"'Data for Graphs'!E26","v":207},{"$f":"'Data for Graphs'!F26","v":245}]
[{"$f":"'Data for Graphs'!C27","v":"2019-03-01"},{"$f":"'Data for Graphs'!D27","v":9.0399999999999991},{"$f":"'Data for Graphs'!E27","v":207},{"$f":"'Data for Graphs'!F27","v":244}]
[{"$f":"'Data for Graphs'!C28","v":"2019-05-01"},{"$f":"'Data for Graphs'!D28","v":8.42},{"$f":"'Data for Graphs'!E28","v":206},{"$f":"'Data for Graphs'!F28","v":246}]
[{"$f":"'Data for Graphs'!C29","v":"2019-05-01"},{"$f":"'Data for Graphs'!D29","v":8.34},{"$f":"'Data for Graphs'!E29","v":204},{"$f":"'Data for Graphs'!F29","v":248}]
[{"$f":"'Data for Graphs'!C30","v":"2019-06-01"},{"$f":"'Data for Graphs'!D30","v":8.14},{"$f":"'Data for Graphs'!E30","v":212},{"$f":"'Data for Graphs'!F30","v":248}]
[{"$f":"'Data for Graphs'!C31","v":"2019-08-01"},{"$f":"'Data for Graphs'!D31","v":7.92},{"$f":"'Data for Graphs'!E31","v":204},{"$f":"'Data for Graphs'!F31","v":245}]
[{"$f":"'Data for Graphs'!C32","v":{"$error":"#N/A"}},{"$f":"'Data for Graphs'!D32","v":0},{"$f":"'Data for Graphs'!E32","v":0},{"$f":"'Data for Graphs'!F32","v":0}]
[{"$f":"'Data for Graphs'!C33","v":{"$error":"#N/A"}},{"$f":"'Data for Graphs'!D33","v":0},{"$f":"'Data for Graphs'!E33","v":0},{"$f":"'Data for Graphs'!F33","v":0}]
[{"$f":"'Data for Graphs'!C34","v":{"$error":"#N/A"}},{"$f":"'Data for Graphs'!D34","v":0},{"$f":"'Data for Graphs'!E34","v":0},{"$f":"'Data for Graphs'!F34","v":0}]
[{"$f":"'Data for Graphs'!C35","v":{"$error":"#N/A"}},{"$f":"'Data for Graphs'!D35","v":0},{"$f":"'Data for Graphs'!E35","v":0},{"$f":"'Data for Graphs'!F35","v":0}]

{"sheet":"VBA Code","index":9,"n_rows":0,"n_cols":0,"rows_kept":0,"cut":false,"hidden":false,"merged":[]}

{"sheet":"pvinsights 05 02 15","index":10,"n_rows":56,"n_cols":13,"rows_kept":56,"cut":false,"hidden":false,"merged":[]}
[null,"Login","Register","Member Center"]
[]
["Home","Why Solar","Retailer Price","Contract Price","Inverter Price","Weekly Snapshots","Price Download","Monthly Insights","Weekly Forecast","Price Forecast","Premier Insights","Premier Data","Advertising"]
[]
["Final Phase of The 2014 US AD & CVD Key Date and Notice"]
[]
[]
["Solar PV Corporate News Release",null,null,null,null,"PV Poly Silicon Weekly Spot Price"]
["JA Solar Reaches 100MWp of PV Module Shipments to Solarcentury for UK Projects in 2014",null,null,null,null,"Item ","High ","Low ","Average ","AvgChg ","AvgChg% "]
["JA Solar",null,"Jan 05, 2015",null,null,"PV Grade Poly Silicon Price (9N / 9N+) ",20.25,18,19.079999999999998,-0.03,-1.6000000000000001E-3]
["JA Solar Supplies 100MW of Modules to First Large-Scale Solar Farm in Pakistan",null,null,null,null,"2nd Grade Poly Silicon Price (6N - 8N) ",19.25,16.5,18.18,-0.15,-8.2000000000000007E-3]
["JA Solar",null,"Jan 05, 2015",null,null,"Unit: USD/Kg ","Last Update: 2015-02-04"]
["Hanwha Solarone Files Shareholder Circular for Acquisition of Hanwha Q CELLS",null,null,null,null,"Definition of PV Grade: Poly silicon chunk with high purity can be directly produced to Solar PV Ingots / Bricks"]
["Hanwha Solar",null,"Dec 29, 2014",null,null,"Definition of 2nd Grade: Poly silicon chunk must be mixed with high purity polysilicon, when producing Solar PV Ingots / Bricks."]
["Motech and Topcell Announced the Signing of Merger Agreement",null,null,null,null,"Solar PV Wafer Weekly Spot Price "]
["Motech",null,"Dec 26, 2014",null,null,"Item ","High ","Low ","Average ","AvgChg ","AvgChg% "]
["JA Solar Supplies 100MW of Modules to First Large-Scale Solar Farm in Pakistan ",null,null,null,null,"156 mm Multi Solar Wafer ",1,0.81,0.85299999999999998,-1.0999999999999999E-2,-1.2699999999999999E-2]
["JA Solar",null,"Dec 08, 2014",null,null,"156 mm High Eff Multi Solar Wafer ",1,0.84,0.87,-1.6E-2,-1.8100000000000002E-2]
["Latest Solar PV News",null,null,null,null,"156 mm Mono Solar Wafer ",1.24,1.08,1.1319999999999999,-1.7000000000000001E-2,-1.4800000000000001E-2]
[null,null,null,null,null,"125 mm Mono Solar Wafer ",0.71,0.64,0.67,-4.0000000000000001E-3,-5.8999999999999999E-3]
["Global Solar Photovoltaic Balance of System Market Value to Lose $10 Billion ...",null,null,null,null,"156 mm Non (TW or CN) Multi Wafer","Visit here for more detail wafer price information"]
["AltEnergyMag (press release)",null,null,null,"Feb 05, 2015","Unit: USD ","more",null,"Last Update: 2015-02-04"]
["Natcore's Chief Technology Officer Gives Opening Address at World ...",null,null,null,null,"China-made wafers, Ingots and bricks are involved in the US AD and CVD investigations."]
["PR Newswire (press release)",null,null,null,"Feb 05, 2015","Taiwan-made wafers, Ingots, and bricks are involved in the US AD investigation."]
["Clark Public Utilities' community solar program embraced"]
["The Columbian",null,null,null,"Feb 05, 2015"]
["Making Solar \"Wallpaper\" Cheaper, More Efficient"]
["IEEE Spectrum",null,null,null,"Feb 05, 2015"]
["ABQ company becomes official Home Depot solar supplier",null,null,null,null,"Solar PV Cell Weekly Spot Price "]
["Albuquerque Business First",null,null,null,"Feb 05, 2015","Item ","High ","Low ","Average ","AvgChg ","AvgChg % "]
["Power play: Ketron hopes to use solar, geothermal to go off the grid",null,null,null,null,"Multi Cell Price Per Watt ",0.42,0.28999999999999998,0.313,-2E-3,-6.3E-3]
["Kingsport Times News",null,null,null,"Feb 05, 2015","156 mm Multi Solar Cell ",1.89,1.19,1.3440000000000001,-8.0000000000000002E-3,-5.8999999999999999E-3]
["SRP solar critic hits the roof",null,null,null,null,"156 mm Mono Solar Cell ",2.5499999999999998,1.66,1.8109999999999999,-5.0000000000000001E-3,-2.8E-3]
["azcentral.com",null,null,null,"Feb 05, 2015","125 mm Mono Solar Cell ",1.55,0.97,1.0880000000000001,-3.0000000000000001E-3,-2.7000000000000001E-3]
["Israelis to dedicate largest solar field in east Africa",null,null,null,null,"Taiwan Poly Cell Per Watt ",0.42,0.28999999999999998,0.315,-2E-3,-6.3E-3]
["The Times of Israel",null,null,null,"Feb 05, 2015","Non (TW or CN) Poly Cell Per Watt ","Visit here for more detail Cell price information"]
["Elon ponders solar farms within the city",null,null,null,null,"Unit: USD ","more",null,"Last Update: 2015-02-04"]
["Burlington Times News",null,null,null,"Feb 05, 2015","Solar PV Module Weekly Spot Price "]
["This New PG&E Program Will Allow Customers to Go 100 Percent Solar",null,null,null,null,"Item ","High ","Low ","Average ","AvgChg ","AvgChg % "]
["Greentech Media",null,null,null,"Feb 05, 2015","Poly Silicon Solar Module ",0.87,0.5,0.60699999999999998,-4.0000000000000001E-3,-6.4999999999999997E-3]
["Minnesota's Great Leap Into Solar Begins",null,null,null,null,"ThinFilm Solar Module ",0.83,0.5,0.63400000000000001,-2E-3,-3.0999999999999999E-3]
["Greentech Media",null,null,null,"Feb 05, 2015","US Multi Solar Module","Visit here for more detail module price information"]
["Solar power advocates worry over new bill in Statehouse",null,null,null,null,"Mono Silicon Solar Module","Visit here for more detail module price information"]
["WTHI",null,null,null,"Feb 05, 2015","Unit: USD / Watt ","more",null,"Last Update: 2015-02-04"]
["Report: Wind and solar energy have tripled since 2008",null,null,null,null,"All Spot Prices are Tax excluded and updated on Wednesday "]
["Washington Post",null,null,null,"Feb 05, 2015"]
["Washington solar field nears completion after 4 years"]
["NJ.com",null,null,null,"Feb 05, 2015"]
["Using solar energy to improve desalination process"]
["Phys.Org",null,null,null,"Feb 04, 2015"]
["Last Update: 2015-Feb- 05 07:00 (GMT+8)"]
[]
[]
[]
["Price Methodology","Terms of Use","Privacy Policy ","About Us ","Contact Us ","Site Map"]
["Copyright © 2015 PVinsights.com All rights reserved"]

{"sheet":"pvinsights 29 05 15","index":11,"n_rows":56,"n_cols":13,"rows_kept":56,"cut":false,"hidden":false,"merged":[]}
[null,"Login","Register","Member Center",null,null,null,null,null,{"$f":"MATCH(I9,I:I,0)","v":9},{"$f":"INDEX(I:I,J1+1)","v":15.79}]
[]
["Home","Why Solar","Retailer Price","Contract Price","Inverter Price","Weekly Snapshots","Price Download","Monthly Insights","Weekly Forecast","Price Forecast","Premier Insights","Premier Data","Advertising"]
[]
["Final Phase of The 2014 US AD & CVD Key Date and Notice"]
[]
[]
["Solar PV Corporate News Release",null,null,null,null,"PV Poly Silicon Weekly Spot Price"]
["JA Solar and Essel Infraprojects Limited Sign MOU on 500MW PV Joint Venture",null,null,null,null,"Item ","High ","Low ","Average ","AvgChg ","AvgChg% "]
["JA Solar",null,"2015-05-25",null,null,"PV Grade Poly Silicon Price (9N / 9N+) ",16.8,14.9,15.79,-0.05,-3.2000000000000002E-3]
["First Solar, Inc. Announces First Quarter 2015 Financial Results with net loss of USD 62 million",null,null,null,null,"2nd Grade Poly Silicon Price (6N - 8N) ",16.2,10,13.82,-0.1,-7.1999999999999998E-3]
["First Solar",null,"2015-05-01",null,null,"PV Poly Silicon Price in China","Visit here for more detail module price information"]
["Israeli Parliament Solar Project Adopts JA Solar Modules",null,null,null,null,"PV Poly Silicon Price Outside China","Visit here for more detail module price information"]
["JA Solar",null,"2015-04-07",null,null,"Unit: USD/Kg ","more",null,"Last Update: 2015-05-27"]
["JA Solar Supplies Modules Again to First Large-Scale Solar Farm in Central America",null,null,null,null,"Definition of PV Grade: Poly silicon chunk with high purity can be directly produced to Solar PV Ingots / Bricks"]
["JA Solar",null,"2015-03-16",null,null,"Definition of 2nd Grade: Poly silicon chunk must be mixed with high purity polysilicon, when producing Solar PV Ingots / Bricks."]
["Hyundai offers compact 250W high-performance modules for UK rooftop market",null,null,null,null,"Solar PV Wafer Weekly Spot Price "]
["Hyundai",null,"2015-03-12",null,null,"Item ","High ","Low ","Average ","AvgChg ","AvgChg% "]
["Latest Solar PV News",null,null,null,null,"156 mm Multi Solar Wafer ",0.9,0.78,0.80400000000000005,0,0]
[null,null,null,null,null,"156 mm High Eff Multi Solar Wafer ",0.9,0.81,0.82,0,0]
["Solar Photovoltaic Backsheet Market To 2015: Latest Research Analysed",null,null,null,null,"156 mm Mono Solar Wafer ",1.1100000000000001,0.98,1.0149999999999999,-5.0000000000000001E-3,-4.8999999999999998E-3]
["Solar Plaza (press release)",null,null,null,"2015-05-29","125 mm Mono Solar Wafer ",0.66,0.61,0.63100000000000001,-1E-3,-1.6000000000000001E-3]
["JinkoSolar ships 789.2 MW of solar photovoltaic products in Q1, 2015 ...",null,null,null,null,"156 mm Non (TW or CN) Multi Wafer","Visit here for more detail wafer price information"]
["solarserver.com",null,null,null,"2015-05-29","Unit: USD ","more",null,"Last Update: 2015-05-27"]
["European Photovoltaic Industry Association rebrands: SolarPower Europe"]
["solarserver.com",null,null,null,"2015-05-29"]
["Rays Power commissions 31.5 MW solar photovoltaic project in Punjab"]
["Economic Times",null,null,null,"2015-05-29"]
["Supervisors, residents question Warren County solar selection process",null,null,null,null,"Solar PV Cell Weekly Spot Price "]
["Glens Falls Post-Star",null,null,null,"2015-05-29","Item ","High ","Low ","Average ","AvgChg ","AvgChg % "]
["Controversy over location of proposed Upper Valley solar array",null,null,null,null,"Multi Cell Price Per Watt ",0.39,0.26,0.29099999999999998,1E-3,3.3999999999999998E-3]
["WPTZ The Champlain Valley",null,null,null,"2015-05-29","Taiwan Poly Cell Per Watt ",0.39,0.27,0.29399999999999998,2E-3,6.7999999999999996E-3]
["Cedar Falls Utilities pitches solar project to potential investors",null,null,null,null,"156 mm Multi Solar Cell ",1.75,1.07,1.252,4.0000000000000001E-3,3.2000000000000002E-3]
["KCRG",null,null,null,"2015-05-29","156 mm Mono Solar Cell ",2.2999999999999998,1.52,1.6679999999999999,-4.0000000000000001E-3,-2.3999999999999998E-3]
["CA struggles to compute value of solar",null,null,null,null,"125 mm Mono Solar Cell ",1.4,0.89,1.0049999999999999,-2E-3,-2E-3]
["U-T San Diego",null,null,null,"2015-05-29","Non (TW or CN) Poly Cell Per Watt ","Visit here for more detail Cell price information"]
["Big Subsidies Make Solar Power Attractive for Home Developers",null,null,null,null,"Unit: USD ","more",null,"Last Update: 2015-05-27"]
["Wall Street Journal",null,null,null,"2015-05-29","Solar PV Module Weekly Spot Price "]
["Report finds 7.7M renewable energy employees worldwide",null,null,null,null,"Item ","High ","Low ","Average ","AvgChg ","AvgChg % "]
["Fierce Energy",null,null,null,"2015-05-29","Poly Silicon Solar Module ",0.79,0.48,0.55500000000000005,-4.0000000000000001E-3,-7.1999999999999998E-3]
["Department of Defense Moves Forward with Stricter Sourcing Requirements for ...",null,null,null,null,"ThinFilm Solar Module ",0.8,0.47,0.60399999999999998,-5.0000000000000001E-3,-8.2000000000000007E-3]
["The National Law Review",null,null,null,"2015-05-29","US Multi Solar Module","Visit here for more detail module price information"]
["Jinko Solar Q1 Earnings Crush Views, Revenue Shines JKS",null,null,null,null,"Mono Silicon Solar Module","Visit here for more detail module price information"]
["Investor's Business Daily",null,null,null,"2015-05-29","Unit: USD / Watt ","more",null,"Last Update: 2015-05-27"]
["What Was Here Before the Solar System?",null,null,null,null,"All Spot Prices are Tax excluded and updated on Wednesday "]
["Universe Today",null,null,null,"2015-05-29"]
["Albemarle Co. Schools Team Up with Staunton Solar Company"]
["NBC 29 News",null,null,null,"2015-05-29"]
["The Power of Solar: Energy in the Global South"]
["Huffington Post",null,null,null,"2015-05-29"]
["Last Update: 2015-May- 29 14:00 (GMT+8)"]
[]
[]
[]
["Price Methodology","Terms of Use","Privacy Policy ","About Us ","Contact Us ","Site Map"]
["Copyright © 2015 PVinsights.com All rights reserved"]

{"sheet":"pvinsights 15 06 15","index":12,"n_rows":56,"n_cols":13,"rows_kept":56,"cut":false,"hidden":false,"merged":[[43,6,43,7],[43,8,43,10],[44,0,44,4],[44,5,44,10],[52,0,52,4],[52,5,52,10],[48,0,48,4],[49,0,49,3],[50,0,50,4],[50,5,50,10],[51,0,51,4],[51,5,51,10],[44,11,53,11],[45,0,45,3],[45,5,48,10],[46,0,46,4],[47,0,47,3],[53,0,53,4],[53,5,53,10],[34,11,43,11],[35,0,35,3],[35,6,35,10],[36,0,36,4],[36,6,36,7],[36,8,36,10],[37,0,37,3],[42,0,42,4],[42,6,42,10],[34,0,34,4],[38,0,38,4],[39,0,39,3],[40,0,40,4],[41,0,41,3],[41,6,41,10],[43,0,43,3],[24,0,24,4],[24,5,27,10],[24,11,33,11],[25,0,25,3],[26,0,26,4],[27,0,27,3],[28,0,28,4],[29,0,29,3],[30,0,30,4],[31,0,31,3],[32,0,32,4],[33,0,33,3],[14,11,23,11],[15,0,15,1],[16,0,16,2],[17,0,17,1],[18,0,19,4],[14,0,14,2],[20,0,20,4],[21,0,21,3],[22,0,22,4],[22,6,22,10],[23,0,23,3],[23,6,23,7],[23,8,23,10],[3,5,6,5],[4,0,5,4],[4,11,13,11],[7,0,7,2],[8,0,8,2],[9,0,9,1],[10,0,10,2],[11,0,11,1],[11,6,11,10],[12,0,12,2],[12,6,12,10],[13,0,13,1],[13,6,13,7],[13,8,13,10]]}
[null,"Login","Register","Member Center"]
[]
["Home","Why Solar","Retailer Price","Contract Price","Inverter Price","Weekly Snapshots","Price Download","Monthly Insights","Weekly Forecast","Price Forecast","Premier Insights","Premier Data","Advertising"]
[]
["Final Phase of The 2014 US AD & CVD Key Date and Notice"]
[]
[]
["Solar PV Corporate News Release",null,null,null,null,"PV Poly Silicon Weekly Spot Price"]
["JA Solar and Essel Infraprojects Limited Sign MOU on 500MW PV Joint Venture",null,null,null,null,"Item ","High ","Low ","Average ","AvgChg ","AvgChg% "]
["JA Solar",null,"2015-05-25",null,null,"PV Grade Poly Silicon Price (9N / 9N+) ",16.649999999999999,14.8,15.58,-0.11,-7.0000000000000001E-3]
["First Solar, Inc. Announces First Quarter 2015 Financial Results with net loss of USD 62 million",null,null,null,null,"2nd Grade Poly Silicon Price (6N - 8N) ",16.2,10,13.62,-0.08,-5.7999999999999996E-3]
["First Solar",null,"2015-05-01",null,null,"PV Poly Silicon Price in China","Visit here for more detail module price information"]
["Israeli Parliament Solar Project Adopts JA Solar Modules",null,null,null,null,"PV Poly Silicon Price Outside China","Visit here for more detail module price information"]
["JA Solar",null,"2015-04-07",null,null,"Unit: USD/Kg ","more",null,"Last Update: 2015-06-10"]
["JA Solar Supplies Modules Again to First Large-Scale Solar Farm in Central America",null,null,null,null,"Definition of PV Grade: Poly silicon chunk with high purity can be directly produced to Solar PV Ingots / Bricks"]
["JA Solar",null,"2015-03-16",null,null,"Definition of 2nd Grade: Poly silicon chunk must be mixed with high purity polysilicon, when producing Solar PV Ingots / Bricks."]
["Hyundai offers compact 250W high-performance modules for UK rooftop market",null,null,null,null,"Solar PV Wafer Weekly Spot Price "]
["Hyundai",null,"2015-03-12",null,null,"Item ","High ","Low ","Average ","AvgChg ","AvgChg% "]
["Latest Solar PV News",null,null,null,null,"156 mm Multi Solar Wafer ",0.9,0.78,0.80400000000000005,0,0]
[null,null,null,null,null,"156 mm High Eff Multi Solar Wafer ",0.9,0.81,0.82,0,0]
["Dairyland Power Seeks Solar Photovoltaic Energy Resources",null,null,null,null,"156 mm Mono Solar Wafer ",1.1000000000000001,0.96,1,-0.01,-9.9000000000000008E-3]
["Virtual Press Office (press release)",null,null,null,"2015-06-15","125 mm Mono Solar Wafer ",0.65,0.6,0.623,-5.0000000000000001E-3,-8.0000000000000002E-3]
["BSF Gujarat plans to power outposts with photovoltaic installations",null,null,null,null,"156 mm Non (TW or CN) Multi Wafer","Visit here for more detail wafer price information"]
["Greentech Lead",null,null,null,"2015-06-15","Unit: USD ","more",null,"Last Update: 2015-06-10"]
["Hanergy Scraps Talks to Sell $585 Million in Solar Kit to Parent"]
["Bloomberg",null,null,null,"2015-06-15"]
["Solar cells in the roof and nanotechnology in the walls"]
["Phys.Org",null,null,null,"2015-06-15"]
["Exclusive: First Solar's CTO Discusses Record 18.6% Efficient Thin-Film Module",null,null,null,null,"Solar PV Cell Weekly Spot Price "]
["Greentech Media",null,null,null,"2015-06-15","Item ","High ","Low ","Average ","AvgChg ","AvgChg % "]
["National Guard Helping Install Solar Panels Near Porcupine",null,null,null,null,"Multi Cell Price Per Watt ",0.39,0.28000000000000003,0.3,6.0000000000000001E-3,2.0400000000000001E-2]
["KELOLAND TV",null,null,null,"2015-06-15","Taiwan Poly Cell Per Watt ",0.39,0.28999999999999998,0.30299999999999999,6.0000000000000001E-3,2.0199999999999999E-2]
["Adani Group in pact for 10000 mw solar power park in JV with Rajasthan ...",null,null,null,null,"156 mm Multi Solar Cell ",1.75,1.1599999999999999,1.3,3.5999999999999997E-2,2.8500000000000001E-2]
["Economic Times",null,null,null,"2015-06-15","156 mm Mono Solar Cell ",2.2999999999999998,1.52,1.6579999999999999,-4.0000000000000001E-3,-2.3999999999999998E-3]
["Kelso Council to consider community solar project",null,null,null,null,"125 mm Mono Solar Cell ",1.4,0.89,0.997,-4.0000000000000001E-3,-4.0000000000000001E-3]
["Longview Daily News",null,null,null,"2015-06-15","Non (TW or CN) Poly Cell Per Watt ","Visit here for more detail Cell price information"]
["The first solar plane flying around the world",null,null,null,null,"Unit: USD ","more",null,"Last Update: 2015-06-10"]
["USA TODAY",null,null,null,"2015-06-15","Solar PV Module Weekly Spot Price "]
["UBS Lays Out â\u0080\u009cDreamâ\u0080\u009d Solar Scenario: 50% Of Global Generation By 2050",null,null,null,null,"Item ","High ","Low ","Average ","AvgChg ","AvgChg % "]
["CleanTechnica",null,null,null,"2015-06-15","Poly Silicon Solar Module ",0.78,0.48,0.55000000000000004,-2E-3,-3.5999999999999999E-3]
["PUC Founder to submit for 50MW solar photovoltaic plant",null,null,null,null,"ThinFilm Solar Module ",0.8,0.47,0.59599999999999997,-3.0000000000000001E-3,-5.0000000000000001E-3]
["The Sun Daily",null,null,null,"2015-06-15","US Multi Solar Module","Visit here for more detail module price information"]
["Solarize Mass Plainfield-Ashfield-Buckland selects photovoltaic panel installer",null,null,null,null,"Mono Silicon Solar Module","Visit here for more detail module price information"]
["GazetteNET",null,null,null,"2015-06-15","Unit: USD / Watt ","more",null,"Last Update: 2015-06-10"]
["global markets and technologies for photovoltaic systems",null,null,null,null,"All Spot Prices are Tax excluded and updated on Wednesday "]
["Virtual Press Office (press release)",null,null,null,"2015-06-15"]
["Neil Kelly Company Installs Solar Photovoltaic System for Best Western Inn at ..."]
["Benzinga",null,null,null,"2015-06-15"]
["BRIEF-Shenzhen Jiawei Photovoltaic Lighting gets regulatory approval for ..."]
["Reuters",null,null,null,"2015-06-15"]
["Last Update: 2015-Jun- 15 23:01 (GMT+8)"]
[]
[]
[]
["Price Methodology","Terms of Use","Privacy Policy ","About Us ","Contact Us ","Site Map"]
["Copyright © 2015 PVinsights.com All rights reserved"]

{"sheet":"pvinsights 25 09 15","index":13,"n_rows":53,"n_cols":13,"rows_kept":53,"cut":false,"hidden":false,"merged":[[49,0,49,3],[50,0,50,4],[50,5,50,10],[43,0,43,3],[43,6,43,7],[43,8,43,10],[44,0,44,4],[44,5,44,10],[45,0,45,3],[45,5,48,10],[46,0,46,4],[47,0,47,3],[48,0,48,4],[34,11,43,11],[35,0,35,3],[35,6,35,10],[36,0,36,4],[36,6,36,7],[36,8,36,10],[37,0,37,3],[42,0,42,4],[42,6,42,10],[34,0,34,4],[38,0,38,4],[39,0,39,3],[40,0,40,4],[41,0,41,3],[41,6,41,10],[24,0,24,4],[24,5,27,10],[24,11,33,11],[25,0,25,3],[26,0,26,4],[27,0,27,3],[28,0,28,4],[29,0,29,3],[30,0,30,4],[31,0,31,3],[32,0,32,4],[33,0,33,3],[14,11,23,11],[15,0,15,1],[16,0,16,2],[17,0,17,1],[18,0,19,4],[14,0,14,2],[20,0,20,4],[21,0,21,3],[22,0,22,4],[22,6,22,10],[23,0,23,3],[23,6,23,7],[23,8,23,10],[3,5,6,10],[4,0,5,4],[4,11,13,11],[7,0,7,2],[8,0,8,2],[9,0,9,1],[10,0,10,2],[11,0,11,1],[11,6,11,9],[12,0,12,2],[12,6,12,9],[13,0,13,1],[13,6,13,7],[13,8,13,10]]}
[null,"Login","Register","Member Center"]
[]
["Home","Why Solar","Retailer Price","Contract Price","Inverter Price","Weekly Snapshots","Price Download","Monthly Insights","Weekly Forecast","Price Forecast","Premier Insights","Premier Data","Advertising"]
[]
["Final Phase of The 2014 US AD & CVD Key Date and Notice"]
[]
[]
["Solar PV Corporate News Release",null,null,null,null,"PV Poly Silicon Weekly Spot Price"]
["Yingli Green Energy Reports Second Quarter 2015 Results",null,null,null,null,"Item ","High ","Low ","Average ","AvgChg ","AvgChg% "]
["Yingli",null,"2015-09-08",null,null,"PV Grade Poly Silicon Price (9N / 9N+) ",15.7,13.5,14.86,-0.12,-8.0000000000000002E-3]
["Hanwha Q CELLS Reports Second Quarter 2015 Results",null,null,null,null,"2nd Grade Poly Silicon Price (6N - 8N) ",15,10,12.81,-0.09,-7.0000000000000001E-3]
["Hanwha",null,"2015-08-27",null,null,"PV Poly Silicon Price in China ","Visit here for more Poly-Si price",null,null,null,-9.2999999999999992E-3]
["TSMC to Cease Solar Manufacturing Operations",null,null,null,null,"PV Poly Silicon Price Outside China ","Visit here for more Poly-Si price",null,null,null,-4.3E-3]
["TSMC",null,"2015-08-25",null,null,"Unit: USD/Kg ","more",null,"Last Update: 2015-09-23"]
["JinkoSolar Announces Better-Than-Expected Second Quarter 2015 Financial Results",null,null,null,null,"Definition of PV Grade: Poly silicon chunk with high purity can be directly produced to Solar PV Ingots / Bricks"]
["Jinko",null,"2015-08-20",null,null,"Definition of 2nd Grade: Poly silicon chunk must be mixed with high purity polysilicon, when producing Solar PV Ingots / Bricks."]
["Trina Solar Announces $43.1 million of Net Profits for Second Quarter 2015 Results",null,null,null,null,"Solar PV Wafer Weekly Spot Price "]
["Trina",null,"2015-08-18",null,null,"Item ","High ","Low ","Average ","AvgChg ","AvgChg% "]
["Latest Solar PV News",null,null,null,null,"156 mm Multi Solar Wafer ",0.9,0.79,0.81899999999999995,2E-3,2.3999999999999998E-3]
[null,null,null,null,null,"156 mm High Eff Multi Solar Wafer ",0.9,0.8,0.82899999999999996,1E-3,1.1999999999999999E-3]
["BRIEF-01Cyberaton to launch 34 photovoltaic units in Bukowina Tatrzanska, Poland",null,null,null,null,"156 mm Mono Solar Wafer ",1,0.9,0.93200000000000005,-4.0000000000000001E-3,-4.3E-3]
["Reuters",null,null,null,"2015-09-25","125 mm Mono Solar Wafer ",0.63,0.59,0.60799999999999998,-1E-3,-1.6000000000000001E-3]
["Short Sellers Heading for the Sidelines on Solar, Alt Energy Stocks?",null,null,null,null,"156 mm Non (TW or CN) Multi Wafer","Visit here for more detail wafer price information"]
["24/7 Wall St.",null,null,null,"2015-09-25","Unit: USD ","more",null,"Last Update: 2015-09-23"]
["Entergy is OK'd for solar contract"]
["Arkansas Online",null,null,null,"2015-09-25"]
["Turkey Commissions First Utility-Scale CIS Thin-Film Solar PV Plant"]
["CleanTechnica",null,null,null,"2015-09-25"]
["Fraunhofer ISE Sets Another Solar Cell Efficiency Record",null,null,null,null,"Solar PV Cell Weekly Spot Price "]
["CleanTechnica",null,null,null,"2015-09-25","Item ","High ","Low ","Average ","AvgChg ","AvgChg % "]
["Brazil Could Be the Next Global Solar Superpower. But There's Still Work to Do",null,null,null,null,"Multi Cell Price Per Watt ",0.39,0.28000000000000003,0.315,1E-3,3.2000000000000002E-3]
["Greentech Media",null,null,null,"2015-09-25","Taiwan Poly Cell Per Watt ",0.39,0.28999999999999998,0.318,1E-3,3.2000000000000002E-3]
["Space-Based Solar Power: Here's How It Could Work",null,null,null,null,"156 mm Multi Solar Cell ",1.75,1.1599999999999999,1.381,0.01,7.3000000000000001E-3]
["Forbes",null,null,null,"2015-09-25","156 mm Mono Solar Cell ",2.25,1.42,1.609,-8.9999999999999993E-3,-5.5999999999999999E-3]
["EU PVSEC 2015: Photovoltaics becoming mainstream, and cheapest form of ...",null,null,null,null,"125 mm Mono Solar Cell ",1.37,0.84,0.97199999999999998,-3.0000000000000001E-3,-3.0999999999999999E-3]
["solarserver.com",null,null,null,"2015-09-25","Non (TW or CN) Poly Cell Per Watt ","Visit here for more detail Cell price information"]
["Primary schools go photovoltaic",null,null,null,null,"Unit: USD ","more",null,"Last Update: 2015-09-23"]
["Barbados Today",null,null,null,"2015-09-25","Solar PV Module Weekly Spot Price "]
["Global Material for Next Generation Photovoltaics Market Analysis, Trends ...",null,null,null,null,"Item ","High ","Low ","Average ","AvgChg ","AvgChg % "]
["Industry Today (press release)",null,null,null,"2015-09-25","Poly Silicon Solar Module ",0.78,0.48,0.55600000000000005,1E-3,1.8E-3]
["The precision of solar photovoltaic power measurements doubled",null,null,null,null,"ThinFilm Solar Module ",0.79,0.47,0.59199999999999997,0,0]
["Phys.Org",null,null,null,"2015-09-25","US Multi Solar Module","Visit here for more detail module price information"]
["North Carolina reaches solar power milestone",null,null,null,null,"Mono Silicon Solar Module","Visit here for more detail module price information"]
["UPI.com",null,null,null,"2015-09-25","Unit: USD / Watt ","more",null,"Last Update: 2015-09-23"]
["Costa Rica's capital to have solar energy powered traffic lights Public ...",null,null,null,null,"All Spot Prices are Tax excluded and updated on Wednesday "]
["The Tico Times",null,null,null,"2015-09-25"]
["Sacramento State Ready To Play Underdog Spoiler In Prestigious Solar Power ..."]
["CBS Local",null,null,null,"2015-09-25"]
["Want a Solar-Powered Home? Here's a New Battery That Won't Ignite"]
["National Geographic",null,null,null,"2015-09-25"]
["Last Update: 2015-Sep- 25 23:00 (GMT+8)"]
["Price Methodology","Terms of Use","Privacy Policy ","About Us ","Contact Us ","Site Map"]
["Copyright © 2015 PVinsights.com All rights reserved"]

{"sheet":"pvinsights 13 11 15","index":14,"n_rows":53,"n_cols":13,"rows_kept":53,"cut":false,"hidden":false,"merged":[[3,5,6,10],[4,0,5,4],[4,11,13,11],[7,0,7,2],[8,0,8,2],[9,0,9,1],[10,0,10,2],[11,0,11,1],[11,6,11,9],[12,0,12,2],[12,6,12,9],[13,0,13,1],[13,6,13,7],[13,8,13,10],[14,11,23,11],[15,0,15,1],[16,0,16,2],[17,0,17,1],[18,0,19,4],[14,0,14,2],[20,0,20,4],[21,0,21,3],[22,0,22,4],[22,6,22,10],[23,0,23,3],[23,6,23,7],[23,8,23,10],[24,0,24,4],[24,5,27,10],[24,11,33,11],[25,0,25,3],[26,0,26,4],[27,0,27,3],[28,0,28,4],[29,0,29,3],[30,0,30,4],[31,0,31,3],[32,0,32,4],[33,0,33,3],[34,11,43,11],[35,0,35,3],[35,6,35,10],[36,0,36,4],[36,6,36,7],[36,8,36,10],[37,0,37,3],[42,0,42,4],[42,6,42,10],[34,0,34,4],[38,0,38,4],[39,0,39,3],[40,0,40,4],[41,0,41,3],[41,6,41,10],[49,0,49,3],[50,0,50,4],[50,5,50,10],[43,0,43,3],[43,6,43,7],[43,8,43,10],[44,0,44,4],[44,5,44,10],[45,0,45,3],[45,5,48,10],[46,0,46,4],[47,0,47,3],[48,0,48,4]]}
[null,"Login","Register","Member Center"]
[]
["Home","Why Solar","Retailer Price","Contract Price","Inverter Price","Weekly Snapshots","Price Download","Monthly Insights","Weekly Forecast","Price Forecast","Premier Insights","Premier Data","Advertising"]
[]
["Final Phase of The 2014 US AD & CVD Key Date and Notice"]
[]
[]
["Solar PV Corporate News Release",null,null,null,null,"PV Poly Silicon Weekly Spot Price"]
["SunEdison Reports Third Quarter 2015 Results",null,null,null,null,"Item ","High ","Low ","Average ","AvgChg ","AvgChg% "]
["SunEdison",null,"2015-11-10",null,null,"PV Grade Poly Silicon Price (9N / 9N+) ",15.05,12.8,14.1,-0.11,-7.7000000000000002E-3]
["Canadian Solar Reports Third Quarter 2015 Results",null,null,null,null,"2nd Grade Poly Silicon Price (6N - 8N) ",15,10,12.51,0,0]
["Canadian",null,"2015-11-10",null,null,"PV Poly Silicon Price in China ","Visit here for more Poly-Si price",null,null,null,-7.7999999999999996E-3]
["Yingli Green Energy Reports Second Quarter 2015 Results",null,null,null,null,"PV Poly Silicon Price Outside China ","Visit here for more Poly-Si price",null,null,null,-4.4999999999999997E-3]
["Yingli",null,"2015-09-08",null,null,"Unit: USD/Kg ","more",null,"Last Update: 2015-11-11"]
["Hanwha Q CELLS Reports Second Quarter 2015 Results",null,null,null,null,"Definition of PV Grade: Poly silicon chunk with high purity can be directly produced to Solar PV Ingots / Bricks"]
["Hanwha",null,"2015-08-27",null,null,"Definition of 2nd Grade: Poly silicon chunk must be mixed with high purity polysilicon, when producing Solar PV Ingots / Bricks."]
["TSMC to Cease Solar Manufacturing Operations",null,null,null,null,"Solar PV Wafer Weekly Spot Price "]
["TSMC",null,"2015-08-25",null,null,"Item ","High ","Low ","Average ","AvgChg ","AvgChg% "]
["Latest Solar PV News",null,null,null,null,"156 mm Multi Solar Wafer ",0.9,0.81,0.83399999999999996,2E-3,2.3999999999999998E-3]
[null,null,null,null,null,"156 mm High Eff Multi Solar Wafer ",0.9,0.82,0.84299999999999997,2E-3,2.3999999999999998E-3]
["Peru President inaugurates Photovoltaic Power Plant in Southern Peru",null,null,null,null,"156 mm Mono Solar Wafer ",1,0.86,0.91300000000000003,-7.0000000000000001E-3,-7.6E-3]
["Andina - Agencia Peruana de Noticias",null,null,null,"2015-11-13","125 mm Mono Solar Wafer ",0.63,0.56999999999999995,0.59699999999999998,-6.0000000000000001E-3,-0.01]
["City OKs solar park tax abatement",null,null,null,null,"156 mm Non (TW or CN) Multi Wafer","Visit here for more detail wafer price information"]
["The Herald Bulletin",null,null,null,"2015-11-13","Unit: USD ","more",null,"Last Update: 2015-11-11"]
["New â\u0080\u009cInvisibleâ\u0080\u009d Solar Jobs Exposed By 19 Solar Startups"]
["CleanTechnica",null,null,null,"2015-11-13"]
["City of Beaufort mounts effort to encourage solar energy"]
["Island Packet",null,null,null,"2015-11-13"]
["Solar Continues to Beat Fossil Fuel Prices in Chile, Boosting Confidence in ...",null,null,null,null,"Solar PV Cell Weekly Spot Price "]
["Greentech Media",null,null,null,"2015-11-13","Item ","High ","Low ","Average ","AvgChg ","AvgChg % "]
["Action on solar bill at center of fight between Eversource, National Grid and ...",null,null,null,null,"Multi Cell Price Per Watt ",0.39,0.28999999999999998,0.32200000000000001,1E-3,3.0999999999999999E-3]
["MassLive.com",null,null,null,"2015-11-13","Taiwan Poly Cell Per Watt ",0.39,0.3,0.32500000000000001,1E-3,3.0999999999999999E-3]
["How Solar Installations Can Be the Barn-Raisings of the 21st Century",null,null,null,null,"156 mm Multi Solar Cell ",1.75,1.2,1.41,5.0000000000000001E-3,3.5999999999999999E-3]
["Slate Magazine",null,null,null,"2015-11-13","156 mm Mono Solar Cell ",2.25,1.42,1.575,-4.0000000000000001E-3,-2.5000000000000001E-3]
["Photovoltaics Add Value to Homes, Berkeley Lab Study Concludes",null,null,null,null,"125 mm Mono Solar Cell ",1.37,0.84,0.95099999999999996,-3.0000000000000001E-3,-3.0999999999999999E-3]
["Solar Novus Today",null,null,null,"2015-11-13","Non (TW or CN) Poly Cell Per Watt ","Visit here for more detail Cell price information"]
["Research on Transparent Organic Photovoltaic Glass Facades",null,null,null,null,"Unit: USD ","more",null,"Last Update: 2015-11-11"]
["Solar Novus Today",null,null,null,"2015-11-13","Solar PV Module Weekly Spot Price "]
["Appeals Judge Upholds BPU's Decision to Block Solar Farm in Apple Orchard",null,null,null,null,"Item ","High ","Low ","Average ","AvgChg ","AvgChg % "]
["NJ Spotlight",null,null,null,"2015-11-13","Poly Silicon Solar Module ",0.78,0.48,0.56100000000000005,1E-3,1.8E-3]
["First Solar Road Surpasses Expectations",null,null,null,null,"ThinFilm Solar Module ",0.79,0.47,0.59,0,0]
["Triple Pundit (registration) (blog)",null,null,null,"2015-11-13","US Multi Solar Module","Visit here for more detail module price information"]
["Grant awards $2.5 million, funds advancement of new solar energy",null,null,null,null,"Mono Silicon Solar Module","Visit here for more detail module price information"]
["Dailybarometer",null,null,null,"2015-11-13","Unit: USD / Watt ","more",null,"Last Update: 2015-11-11"]
["Japan Gaming Machine Maker Completes 20MW Solar Power Plant",null,null,null,null,"All Spot Prices are Tax excluded and updated on Wednesday "]
["Bloomberg",null,null,null,"2015-11-13"]
["Utility Money Far Outpaces Solar Money in Florida Ballot Standoff Over Grid Access"]
["Greentech Media",null,null,null,"2015-11-13"]
["Sun brewed: Bitter Root Brewing praised for use of solar power system"]
["Ravalli Republic",null,null,null,"2015-11-13"]
["Last Update: 2015-Nov- 13 23:01 (GMT+8)"]
["Price Methodology","Terms of Use","Privacy Policy ","About Us ","Contact Us ","Site Map"]
["Copyright © 2015 PVinsights.com All rights reserved"]

{"sheet":"pvinsights 09 04 16","index":15,"n_rows":53,"n_cols":13,"rows_kept":53,"cut":false,"hidden":false,"merged":[[50,0,50,4],[50,5,50,10],[45,0,45,3],[45,5,48,10],[46,0,46,4],[47,0,47,3],[48,0,48,4],[49,0,49,3],[44,0,44,4],[44,5,44,10],[37,0,37,3],[38,0,38,4],[39,0,39,3],[40,0,40,4],[41,0,41,3],[41,6,41,10],[42,0,42,4],[42,6,42,10],[43,0,43,3],[43,6,43,7],[43,8,43,10],[36,0,36,4],[36,6,36,7],[36,8,36,10],[24,0,24,4],[24,5,27,10],[32,0,32,4],[33,0,33,3],[34,0,34,4],[35,0,35,3],[35,6,35,10],[24,11,33,11],[25,0,25,3],[26,0,26,4],[27,0,27,3],[28,0,28,4],[29,0,29,3],[30,0,30,4],[31,0,31,3],[14,11,23,11],[15,0,15,1],[16,0,16,2],[17,0,17,1],[18,0,19,4],[14,0,14,2],[20,0,20,4],[21,0,21,3],[22,0,22,4],[22,6,22,10],[23,0,23,3],[23,6,23,7],[23,8,23,10],[3,5,6,10],[4,0,5,4],[4,11,13,11],[7,0,7,2],[8,0,8,2],[9,0,9,1],[10,0,10,2],[11,0,11,1],[11,6,11,9],[12,0,12,2],[12,6,12,9],[13,0,13,1],[13,6,13,7],[13,8,13,10]]}
[null,"Login","Register","Member Center"]
[]
["Home","Why Solar","Retailer Price","Contract Price","Inverter Price","Weekly Snapshots","Price Download","Monthly Insights","Weekly Forecast","Price Forecast","Premier Insights","Premier Data","Advertising"]
[]
["Final Phase of The 2014 US AD & CVD Key Date and Notice"]
[]
[]
["Solar PV Corporate News Release",null,null,null,null,"PV Poly Silicon Weekly Spot Price"]
["JinkoSolar Announces Fourth Quarter and Full Year 2015 Financial Results",null,null,null,null,"Item ","High ","Low ","Average ","AvgChg ","AvgChg% "]
["Jinko",null,"2016-03-01",null,null,"PV Grade Poly Silicon Price (9N / 9N+) ",16.5,12.7,14.58,0.14000000000000001,9.7000000000000003E-3]
["JinkoSolar Announces Fourth Quarter and Full Year 2015 Financial Results",null,null,null,null,"2nd Grade Poly Silicon Price (6N - 8N) ",14.4,10.85,12.14,0.08,6.6E-3]
["Jinko",null,"2016-03-01",null,null,"PV Poly Silicon Price in China ","Visit here for more Poly-Si price",null,null,null,1.7600000000000001E-2]
["First Solar, Inc. Announces Fourth Quarter & Full Year 2015 Financial Results",null,null,null,null,"PV Poly Silicon Price Outside China ","Visit here for more Poly-Si price",null,null,null,7.0000000000000001E-3]
["First Solar",null,"2016-02-24",null,null,"Unit: USD/Kg ","more",null,"Last Update: 2016-04-06"]
["SunPower Corp. announced financial results for its fourth quarter and fiscal year ended Jan. 3, 2016",null,null,null,null,"Definition of PV Grade: Poly silicon chunk with high purity can be directly produced to Solar PV Ingots / Bricks"]
["Sunpower",null,"2016-02-18",null,null,"Definition of 2nd Grade: Poly silicon chunk must be mixed with high purity polysilicon, when producing Solar PV Ingots / Bricks."]
["Trina Solar Announces Receipt of a Preliminary Non-Binding Proposal to Acquire the Company",null,null,null,null,"Solar PV Wafer Weekly Spot Price "]
["Trina",null,"2015-12-14",null,null,"Item ","High ","Low ","Average ","AvgChg ","AvgChg% "]
["Latest Solar PV News",null,null,null,null,"156 mm Multi Solar Wafer ",0.92,0.84,0.85699999999999998,-1E-3,-1.1999999999999999E-3]
[null,null,null,null,null,"156 mm High Eff Multi Solar Wafer ",0.92,0.85,0.86399999999999999,-2E-3,-2.3E-3]
["Africa Solar Photovoltaic (PV) Market Size, Regional Analysis, Price,Competitive Landscape & Forecast by 2023 ...",null,null,null,null,"156 mm Mono Solar Wafer ",0.96,0.85,0.89300000000000002,-1E-3,-1.1000000000000001E-3]
["Digital Journal",null,null,null,"2016-04-09","125 mm Mono Solar Wafer ",0.61,0.56999999999999995,0.58899999999999997,0,0]
["Photovoltaic Pump Industry 2016 Japan Market Analysis, Regional Forecasts, Major Applications, Requirements ...",null,null,null,null,"156 mm Non (TW or CN) Multi Wafer","Visit here for more detail wafer price information"]
["Digital Journal",null,null,null,"2016-04-09","Unit: USD ","more",null,"Last Update: 2016-04-06"]
["n-tech Research Announces New Report on Organic Photovoltaic Markets"]
["PRUnderground (press release)",null,null,null,"2016-04-09"]
["New Market Study Published: China Photovoltaic (PV) Glass Industry"]
["NewsMaker (press release)",null,null,null,"2016-04-09"]
["Reader's View: Support officials who see benefits of solar power",null,null,null,null,"Solar PV Cell Weekly Spot Price "]
["Duluth News Tribune",null,null,null,"2016-04-09","Item ","High ","Low ","Average ","AvgChg ","AvgChg % "]
["Massive solar storm would pose considerable dangers â\u0080\u0093 are we ready?",null,null,null,null,"Multi Cell Price Per Watt ",0.39,0.28000000000000003,0.30499999999999999,-0.01,-3.1699999999999999E-2]
["Gizmag",null,null,null,"2016-04-09","Taiwan Poly Cell Per Watt ",0.39,0.28999999999999998,0.307,-1.0999999999999999E-2,-3.4599999999999999E-2]
["PV - Photovoltaic Glass Sales Market 2015 - Costs and Price, Market Trends and Technology Report 2015 By Radiant ...",null,null,null,null,"156 mm Multi Solar Cell ",1.75,1.17,1.345,-4.4999999999999998E-2,-3.2399999999999998E-2]
["Press Release Rocket",null,null,null,"2016-04-09","156 mm Mono Solar Cell ",2.25,1.46,1.591,-4.0000000000000001E-3,-2.5000000000000001E-3]
["\"Solar Photovoltaic (PV) in Republic of Korea, Market Outlook to 2030, Update 2016\" Now Available",null,null,null,null,"125 mm Mono Solar Cell ",1.37,0.86,0.96,-3.0000000000000001E-3,-3.0999999999999999E-3]
["Digital Journal",null,null,null,"2016-04-09","Non (TW or CN) Poly Cell Per Watt ","Visit here for more detail Cell price information"]
["Chile Solar Photovoltaic (PV) Market 2016 Analysis , Size, Share, Outlook 2030",null,null,null,null,"Unit: USD ","more",null,"Last Update: 2016-04-06"]
["Patriarc",null,null,null,"2016-04-09","Solar PV Module Weekly Spot Price "]
["Let the sun shine in: Church adds more solar panels",null,null,null,null,"Item ","High ","Low ","Average ","AvgChg ","AvgChg % "]
["Yakima Herald-Republic",null,null,null,"2016-04-09","Poly Silicon Solar Module ",0.74,0.46,0.53300000000000003,-2E-3,-3.7000000000000002E-3]
["Church installs more solar while awaiting decision",null,null,null,null,"ThinFilm Solar Module ",0.74,0.47,0.56200000000000006,-1E-3,-1.8E-3]
["Greensboro News & Record",null,null,null,"2016-04-09","US Multi Solar Module","Visit here for more detail module price information"]
["UPDATE 1-Solar power firms seek delay to Brazil solar farm startups",null,null,null,null,"Mono Silicon Solar Module","Visit here for more detail module price information"]
["Reuters",null,null,null,"2016-04-09","Unit: USD / Watt ","more",null,"Last Update: 2016-04-06"]
["City considering solar panel installation in downtown",null,null,null,null,"All Spot Prices are Tax excluded and updated on Wednesday "]
["Columbia Daily Tribune",null,null,null,"2016-04-09"]
["San Diego No. 2 in nation for solar"]
["The San Diego Union-Tribune",null,null,null,"2016-04-09"]
["Solar garden backers may seek bill to improve accessibility"]
["The Denver Post",null,null,null,"2016-04-09"]
["Last Update: 2016-Apr- 09 20:00 (GMT+8)"]
["Price Methodology","Terms of Use","Privacy Policy ","About Us ","Contact Us ","Site Map"]
["Copyright © 2016 PVinsights.com All rights reserved"]

{"sheet":"pvinsights 31 07 16","index":16,"n_rows":53,"n_cols":13,"rows_kept":53,"cut":false,"hidden":false,"merged":[[3,5,6,10],[4,0,5,4],[4,11,13,11],[7,0,7,2],[8,0,8,2],[9,0,9,1],[10,0,10,2],[11,0,11,1],[11,6,11,9],[12,0,12,2],[12,6,12,9],[13,0,13,1],[13,6,13,7],[13,8,13,10],[14,11,23,11],[15,0,15,1],[16,0,16,2],[17,0,17,1],[18,0,19,4],[14,0,14,2],[20,0,20,4],[21,0,21,3],[22,0,22,4],[23,0,23,3],[23,6,23,10],[24,11,33,11],[25,0,25,3],[25,5,28,10],[26,0,26,4],[27,0,27,3],[28,0,28,4],[29,0,29,3],[30,0,30,4],[31,0,31,3],[32,0,32,4],[24,0,24,4],[24,6,24,7],[24,8,24,10],[42,6,42,10],[33,0,33,3],[34,0,34,4],[35,0,35,3],[36,0,36,4],[36,6,36,10],[37,0,37,3],[37,6,37,7],[37,8,37,10],[38,0,38,4],[39,0,39,3],[40,0,40,4],[41,0,41,3],[42,0,42,4],[50,0,50,4],[43,0,43,3],[43,6,43,10],[44,0,44,4],[44,6,44,7],[44,8,44,10],[45,0,45,3],[45,5,45,10],[46,0,46,4],[46,5,49,10],[47,0,47,3],[48,0,48,4],[49,0,49,3]]}
[null,"Login","Register","Member Center"]
[]
["Home","Why Solar","Retailer Price","Contract Price","Inverter Price","Weekly Snapshots","Price Download","Monthly Insights","Weekly Forecast","Price Forecast","Premier Insights","Premier Data","Advertising"]
[]
["Final Phase of The 2014 US AD & CVD Key Date and Notice"]
[]
[]
["Solar PV Corporate News Release",null,null,null,null,"PV Poly Silicon Weekly Spot Price"]
["First Solar, Inc. Announces First Quarter 2016 Financial Results",null,null,null,null,"Item ","High ","Low ","Average ","AvgChg ","AvgChg% "]
["First Solar",null,"2016-04-27",null,null,"PV Grade Poly Silicon Price (9N / 9N+) ",17.899999999999999,14,15.9,-0.11,-6.8999999999999999E-3]
["JinkoSolar Announces Fourth Quarter and Full Year 2015 Financial Results",null,null,null,null,"2nd Grade Poly Silicon Price (6N - 8N) ",15.8,11.5,12.98,-0.08,-6.1000000000000004E-3]
["Jinko",null,"2016-03-01",null,null,"PV Poly Silicon Price in China ","Visit here for more Poly-Si price",null,null,null,-7.6E-3]
["JinkoSolar Announces Fourth Quarter and Full Year 2015 Financial Results",null,null,null,null,"PV Poly Silicon Price Outside China ","Visit here for more Poly-Si price",null,null,null,-6.1999999999999998E-3]
["Jinko",null,"2016-03-01",null,null,"Unit: USD/Kg ","more",null,"Last Update: 2016-07-27"]
["First Solar, Inc. Announces Fourth Quarter & Full Year 2015 Financial Results",null,null,null,null,"Definition of PV Grade: Poly silicon chunk with high purity can be directly produced to Solar PV Ingots / Bricks"]
["First Solar",null,"2016-02-24",null,null,"Definition of 2nd Grade: Poly silicon chunk must be mixed with high purity polysilicon, when producing Solar PV Ingots / Bricks."]
["SunPower Corp. announced financial results for its fourth quarter and fiscal year ended Jan. 3, 2016",null,null,null,null,"Solar PV Wafer Weekly Spot Price "]
["Sunpower",null,"2016-02-18",null,null,"Item ","High ","Low ","Average ","AvgChg ","AvgChg% "]
["Latest Solar PV News",null,null,null,null,"156 mm Multi Solar Wafer ",0.8,0.7,0.72499999999999998,-1.4999999999999999E-2,-2.0299999999999999E-2]
[null,null,null,null,null,"156 mm High Eff Multi Solar Wafer ",0.8,0.71,0.73599999999999999,-1.2999999999999999E-2,-1.7399999999999999E-2]
["Solar projects can't save the forest for the trees?",null,null,null,null,"156 mm Mono Solar Wafer ",0.9,0.78,0.81499999999999995,-0.02,-2.4E-2]
["Dubuque Telegraph Herald",null,null,null,"2016-07-31","125 mm Mono Solar Wafer ",0.56999999999999995,0.55000000000000004,0.55200000000000005,-4.0000000000000001E-3,-7.1999999999999998E-3]
["Warnings issued for farmers striking solar deals",null,null,null,null,"156 mm Mono Wafer Outside China ",0.9,0.83,0.84199999999999997,-1.7999999999999999E-2,-2.0899999999999998E-2]
["Lockport Union-Sun & Journal",null,null,null,"2016-07-31","156 mm Multi Wafer Outside China","Visit here for more detail wafer price information"]
["How NASA's Juno Will Teach Us About Other Solar Systems",null,null,null,null,"Unit: USD ","more",null,"Last Update: 2016-07-27"]
["Forbes",null,null,null,"2016-07-31"]
["Optimum Tracker Selected for 30MW Photovoltaic Plant in Senegal"]
["Solar Novus Today",null,null,null,"2016-07-31"]
["Solar project and history, Roosevelt School's fate"]
["Great Falls Tribune",null,null,null,"2016-07-31","Solar PV Cell Weekly Spot Price "]
["American Solar Challenge underway",null,null,null,null,"Item ","High ","Low ","Average ","AvgChg ","AvgChg % "]
["WKYC-TV",null,null,null,"2016-07-31","Multi Cell Price Per Watt ",0.35,0.23,0.25,-5.0000000000000001E-3,-1.9599999999999999E-2]
["Vivint Solar & Renovate America Partnering To Expand Homeowner Access To Rooftop Solar PV Financing",null,null,null,null,"Taiwan Poly Cell Per Watt ",0.35,0.24,0.254,-6.0000000000000001E-3,-2.3099999999999999E-2]
["CleanTechnica",null,null,null,"2016-07-31","156 mm Multi Solar Cell ",1.6,0.98,1.1220000000000001,-2.1000000000000001E-2,-1.84E-2]
["New solar options for home and business owners coming to Weare",null,null,null,null,"156 mm Mono Solar Cell ",1.84,1.18,1.333,-4.2000000000000003E-2,-3.0499999999999999E-2]
["Concord Monitor",null,null,null,"2016-07-31","125 mm Mono Solar Cell ",1.1399999999999999,0.7,0.80700000000000005,-2.7E-2,-3.2399999999999998E-2]
["This one book will help you better understand solar energy",null,null,null,null,"Non (TW or CN) Poly Cell Per Watt ","Visit here for more detail Cell price information"]
["The San Gabriel Valley Tribune",null,null,null,"2016-07-31","Unit: USD ","more",null,"Last Update: 2016-07-27"]
["American Solar Challenge is underway | WKYC.com",null,null,null,null,"Solar PV Module Weekly Spot Price "]
["WKYC-TV",null,null,null,"2016-07-31","Item ","High ","Low ","Average ","AvgChg ","AvgChg % "]
["Breakthrough invention of solar cell that works like a plant",null,null,null,null,"Poly Silicon Solar Module ",0.67,0.4,0.48,-7.0000000000000001E-3,-1.44E-2]
["The Indian Express",null,null,null,"2016-07-31","ThinFilm Solar Module ",0.68,0.4,0.50600000000000001,-6.0000000000000001E-3,-1.17E-2]
["Solar deals come with caveats for farmers | Local News ...",null,null,null,null,"US Multi Solar Module","Visit here for more detail module price information"]
["Plattsburgh Press Republican",null,null,null,"2016-07-31","Mono Silicon Solar Module","Visit here for more detail module price information"]
["New solar option rises for county",null,null,null,null,"Unit: USD / Watt ","more",null,"Last Update: 2016-07-27"]
["Niagara Gazette",null,null,null,"2016-07-31","All Spot Prices are Tax excluded and updated on Wednesday "]
["How Juno Gathers Solar Power 588 Million KM from Sun"]
["EE Times",null,null,null,"2016-07-31"]
["MIT researchers host Reddit Ask Me Anything session on photovoltaic EDR system"]
["desalination.biz",null,null,null,"2016-07-30"]
["Last Update: 2016-Jul- 31 20:00 (GMT+8)"]
["Price Methodology","Terms of Use","Privacy Policy ","About Us ","Contact Us ","Site Map"]
["Copyright © 2016 PVinsights.com All rights reserved"]

{"sheet":"pvinsights 01 08 16","index":17,"n_rows":53,"n_cols":13,"rows_kept":53,"cut":false,"hidden":false,"merged":[[3,5,6,10],[4,0,5,4],[4,11,13,11],[7,0,7,2],[8,0,8,2],[9,0,9,1],[10,0,10,2],[11,0,11,1],[11,6,11,9],[12,0,12,2],[12,6,12,9],[13,0,13,1],[13,6,13,7],[13,8,13,10],[14,11,23,11],[15,0,15,1],[16,0,16,2],[17,0,17,1],[18,0,19,4],[14,0,14,2],[20,0,20,4],[21,0,21,3],[22,0,22,4],[23,0,23,3],[23,6,23,10],[24,11,33,11],[25,0,25,3],[25,5,28,10],[26,0,26,4],[27,0,27,3],[28,0,28,4],[29,0,29,3],[30,0,30,4],[31,0,31,3],[32,0,32,4],[24,0,24,4],[24,6,24,7],[24,8,24,10],[42,6,42,10],[33,0,33,3],[34,0,34,4],[35,0,35,3],[36,0,36,4],[36,6,36,10],[37,0,37,3],[37,6,37,7],[37,8,37,10],[38,0,38,4],[39,0,39,3],[40,0,40,4],[41,0,41,3],[42,0,42,4],[50,0,50,4],[43,0,43,3],[43,6,43,10],[44,0,44,4],[44,6,44,7],[44,8,44,10],[45,0,45,3],[45,5,45,10],[46,0,46,4],[46,5,49,10],[47,0,47,3],[48,0,48,4],[49,0,49,3]]}
[null,"Login","Register","Member Center"]
[]
["Home","Why Solar","Retailer Price","Contract Price","Inverter Price","Weekly Snapshots","Price Download","Monthly Insights","Weekly Forecast","Price Forecast","Premier Insights","Premier Data","Advertising"]
[]
["Final Phase of The 2014 US AD & CVD Key Date and Notice"]
[]
[]
["Solar PV Corporate News Release",null,null,null,null,"PV Poly Silicon Weekly Spot Price"]
["First Solar, Inc. Announces First Quarter 2016 Financial Results",null,null,null,null,"Item ","High ","Low ","Average ","AvgChg ","AvgChg% "]
["First Solar",null,"2016-04-27",null,null,"PV Grade Poly Silicon Price (9N / 9N+) ",17.899999999999999,14,15.9,-0.11,-6.8999999999999999E-3]
["JinkoSolar Announces Fourth Quarter and Full Year 2015 Financial Results",null,null,null,null,"2nd Grade Poly Silicon Price (6N - 8N) ",15.8,11.5,12.98,-0.08,-6.1000000000000004E-3]
["Jinko",null,"2016-03-01",null,null,"PV Poly Silicon Price in China ","Visit here for more Poly-Si price",null,null,null,-7.6E-3]
["JinkoSolar Announces Fourth Quarter and Full Year 2015 Financial Results",null,null,null,null,"PV Poly Silicon Price Outside China ","Visit here for more Poly-Si price",null,null,null,-6.1999999999999998E-3]
["Jinko",null,"2016-03-01",null,null,"Unit: USD/Kg ","more",null,"Last Update: 2016-07-27"]
["First Solar, Inc. Announces Fourth Quarter & Full Year 2015 Financial Results",null,null,null,null,"Definition of PV Grade: Poly silicon chunk with high purity can be directly produced to Solar PV Ingots / Bricks"]
["First Solar",null,"2016-02-24",null,null,"Definition of 2nd Grade: Poly silicon chunk must be mixed with high purity polysilicon, when producing Solar PV Ingots / Bricks."]
["SunPower Corp. announced financial results for its fourth quarter and fiscal year ended Jan. 3, 2016",null,null,null,null,"Solar PV Wafer Weekly Spot Price "]
["Sunpower",null,"2016-02-18",null,null,"Item ","High ","Low ","Average ","AvgChg ","AvgChg% "]
["Latest Solar PV News",null,null,null,null,"156 mm Multi Solar Wafer ",0.8,0.7,0.72499999999999998,-1.4999999999999999E-2,-2.0299999999999999E-2]
[null,null,null,null,null,"156 mm High Eff Multi Solar Wafer ",0.8,0.71,0.73599999999999999,-1.2999999999999999E-2,-1.7399999999999999E-2]
["UMass Amherst installing thousands of photovoltaic panels",null,null,null,null,"156 mm Mono Solar Wafer ",0.9,0.78,0.81499999999999995,-0.02,-2.4E-2]
["The Recorder",null,null,null,"2016-08-01","125 mm Mono Solar Wafer ",0.56999999999999995,0.55000000000000004,0.55200000000000005,-4.0000000000000001E-3,-7.1999999999999998E-3]
["Telangana beats solar power target; 10 per cent more than demand",null,null,null,null,"156 mm Mono Wafer Outside China ",0.9,0.83,0.84199999999999997,-1.7999999999999999E-2,-2.0899999999999998E-2]
["Deccan Chronicle",null,null,null,"2016-08-01","156 mm Multi Wafer Outside China","Visit here for more detail wafer price information"]
["Cycle Of Life: 79 days, 7513 km to raise solar awareness, IIT innovator peddles his way to glory",null,null,null,null,"Unit: USD ","more",null,"Last Update: 2016-07-27"]
["The Indian Express",null,null,null,"2016-08-01"]
["DESERT SOLAR: Here's how researchers hope to track bird deaths at Ivanpah plant"]
["Press-Enterprise",null,null,null,"2016-08-01"]
["Artificial Leaf: New Solar Cell Uses Carbon Dioxide And Sunlight To ..."]
["Tech Times",null,null,null,"2016-08-01","Solar PV Cell Weekly Spot Price "]
["Solar solution for Barmer's water woes",null,null,null,null,"Item ","High ","Low ","Average ","AvgChg ","AvgChg % "]
["Times of India",null,null,null,"2016-08-01","Multi Cell Price Per Watt ",0.35,0.23,0.25,-5.0000000000000001E-3,-1.9599999999999999E-2]
["Renewables Advocates Assess 'Stark' Difference Between Clinton and Trump On Solar and Wind",null,null,null,null,"Taiwan Poly Cell Per Watt ",0.35,0.24,0.254,-6.0000000000000001E-3,-2.3099999999999999E-2]
["Forbes",null,null,null,"2016-08-01","156 mm Multi Solar Cell ",1.6,0.98,1.1220000000000001,-2.1000000000000001E-2,-1.84E-2]
["Valley man creates solar-powered pool cleaner",null,null,null,null,"156 mm Mono Solar Cell ",1.84,1.18,1.333,-4.2000000000000003E-2,-3.0499999999999999E-2]
["FOX 10 News Phoenix",null,null,null,"2016-08-01","125 mm Mono Solar Cell ",1.1399999999999999,0.7,0.80700000000000005,-2.7E-2,-3.2399999999999998E-2]
["Will TeslaSolar continue to outsource the brain of its solar systems â\u0080\u0093 the inverter â\u0080\u0093 or develop in house?",null,null,null,null,"Non (TW or CN) Poly Cell Per Watt ","Visit here for more detail Cell price information"]
["Electrek",null,null,null,"2016-08-01","Unit: USD ","more",null,"Last Update: 2016-07-27"]
["Could The Next Solar Power Plant Be At Chernobyl?",null,null,null,null,"Solar PV Module Weekly Spot Price "]
["Forbes",null,null,null,"2016-08-01","Item ","High ","Low ","Average ","AvgChg ","AvgChg % "]
["Lowell hoping to power up solar project at treatment plant | Lake ...",null,null,null,null,"Poly Silicon Solar Module ",0.67,0.4,0.48,-7.0000000000000001E-3,-1.44E-2]
["nwitimes.com",null,null,null,"2016-08-01","ThinFilm Solar Module ",0.68,0.4,0.50600000000000001,-6.0000000000000001E-3,-1.17E-2]
["Solar Device Turns Carbon Dioxide Into Burnable Energy",null,null,null,null,"US Multi Solar Module","Visit here for more detail module price information"]
["Headlines & Global News",null,null,null,"2016-08-01","Mono Silicon Solar Module","Visit here for more detail module price information"]
["Warnings issued for farmers striking solar deals | Local News ...",null,null,null,null,"Unit: USD / Watt ","more",null,"Last Update: 2016-07-27"]
["Lockport Union-Sun & Journal",null,null,null,"2016-08-01","All Spot Prices are Tax excluded and updated on Wednesday "]
["Cycle Of Life: 9 days, 7513 km to raise solar awareness, IIT innovator peddles his way to glory"]
["The Indian Express",null,null,null,"2016-08-01"]
["Chernobyl Wasteland Could Become One Large Solar Plant | Digital ..."]
["Digital Trends",null,null,null,"2016-08-01"]
["Last Update: 2016-Aug- 01 14:00 (GMT+8)"]
["Price Methodology","Terms of Use","Privacy Policy ","About Us ","Contact Us ","Site Map"]
["Copyright © 2016 PVinsights.com All rights reserved"]

{"sheet":"pvinsights 02 10 16","index":18,"n_rows":54,"n_cols":13,"rows_kept":54,"cut":false,"hidden":false,"merged":[[51,0,51,4],[44,0,44,4],[44,6,44,10],[45,0,45,3],[45,6,45,7],[45,8,45,10],[46,0,46,4],[46,5,46,10],[47,0,47,3],[47,5,50,10],[48,0,48,4],[49,0,49,3],[50,0,50,4],[43,0,43,3],[43,6,43,10],[36,0,36,4],[36,6,36,10],[37,0,37,3],[37,6,37,7],[37,8,37,10],[38,0,38,4],[39,0,39,3],[40,0,40,4],[41,0,41,3],[42,0,42,4],[42,6,42,10],[35,0,35,3],[24,0,24,4],[24,6,24,7],[24,8,24,10],[24,11,33,11],[25,0,25,3],[25,5,28,10],[26,0,26,4],[27,0,27,3],[28,0,28,4],[29,0,29,3],[30,0,30,4],[31,0,31,3],[32,0,32,4],[33,0,33,3],[34,0,34,4],[14,11,23,11],[15,0,15,1],[16,0,16,2],[17,0,17,1],[18,0,19,4],[14,0,14,2],[20,0,20,4],[21,0,21,3],[22,0,22,4],[22,6,22,10],[23,0,23,3],[23,6,23,10],[3,5,6,10],[4,0,5,4],[4,11,13,11],[7,0,7,2],[8,0,8,2],[9,0,9,1],[10,0,10,2],[11,0,11,1],[11,6,11,9],[12,0,12,2],[12,6,12,9],[13,0,13,1],[13,6,13,7],[13,8,13,10]]}
[null,"Login","Register","Member Center"]
[]
["Home","Why Solar","Retailer Price","Contract Price","Inverter Price","Weekly Snapshots","Price Download","Monthly Insights","Weekly Forecast","Price Forecast","Premier Insights","Premier Data","Advertising"]
[]
["Final Phase of The 2014 US AD & CVD Key Date and Notice"]
[]
[]
["Solar PV Corporate News Release",null,null,null,null,"PV Poly Silicon Weekly Spot Price"]
["Hanwha Q CELLS Reports Second Quarter 2016 Results",null,null,null,null,"Item ","High ","Low ","Average ","AvgChg ","AvgChg% "]
["Hanwha Solar",null,"2016-08-23",null,null,"PV Grade PolySilicon (9N/9N+) ",14.5,11,12.65,-0.18,-1.4E-2]
["Yingli Green Energy Reports Second Quarter 2016 Results",null,null,null,null,"2nd Grade PolySilicon (6N-8N) ",13.5,10,10.98,-0.17,-1.52E-2]
["Yingli",null,"2016-08-23",null,null,"PV Grade PolySilicon in China (9N/9N+) ","Visit here for more Poly-Si price",null,null,null,"%"]
["Canadian Solar Reports Second Quarter 2016 Results",null,null,null,null,"PV Grade PolySilicon Outside China (9N/9N+) ","Visit here for more Poly-Si price",null,null,null,"%"]
["Canadian Sol",null,"2016-08-18",null,null,"Unit: USD/Kg ","more",null,"Last Update: 2016-09-28"]
["JA Solar Announces Second Quarter 2016 Results",null,null,null,null,"Definition of PV Grade: Poly silicon chunk with high purity can be directly produced to Solar PV Ingots / Bricks"]
["JA Solar",null,"2016-08-17",null,null,"Definition of 2nd Grade: Poly silicon chunk must be mixed with high purity polysilicon, when producing Solar PV Ingots / Bricks."]
["SunPower Reports Second Quarter 2016 Results",null,null,null,null,"Solar PV Wafer Weekly Spot Price "]
["SunPower",null,"2016-08-10",null,null,"Item ","High ","Low ","Average ","AvgChg ","AvgChg% "]
["Latest Solar PV News",null,null,null,null,"156 mm Multi Solar Wafer ",0.59,0.48,0.51,0,0]
[null,null,null,null,null,"156 mm High Eff Multi Solar Wafer ",0.59,0.5,0.51600000000000001,0,0]
["Photovoltaic Solar panels is anticipated to reach $125.5 billion till year 2016.",null,null,null,null,"156 mm Mono Solar Wafer ",0.72,0.63,0.65400000000000003,0,0]
["NewsMaker (press release)",null,null,null,"2016-10-02","156 mm Mono Wafer Outside China ",0.72,0.67,0.67500000000000004,0,0]
["Home News The Solar Industry Is Set To Soar Again Through the Use of...",null,null,null,null,"156 mm Multi Wafer Outside China","Visit here for more detail wafer price information"]
["Trendintech (press release)",null,null,null,"2016-10-02","156 mm N-Mono Wafer","Visit here for more detail"]
["Results for DC Solar 350 Truck Series race in Las Vegas",null,null,null,null,"Unit: USD ","more",null,"Last Update: 2016-09-28"]
["FOXSports.com",null,null,null,"2016-10-02"]
["Solar deals carry risks for farmers"]
["Lockport Union-Sun & Journal",null,null,null,"2016-10-02"]
["Hawaii Sitting On The Lid Of A Solar Explosion"]
["Forbes",null,null,null,"2016-10-02","Solar PV Cell Weekly Spot Price "]
["Perovskite Photovoltaics 2015-2025: Technologies, Markets, Players",null,null,null,null,"Item ","High ","Low ","Average ","AvgChg ","AvgChg % "]
["PR Newswire (press release)",null,null,null,"2016-10-02","Multi Cell Price Per Watt ",0.28000000000000003,0.17,0.188,0,0]
["Solar project to add power to West Boylston grid",null,null,null,null,"Taiwan Poly Cell Per Watt ",0.28000000000000003,0.17,0.19,0,0]
["Worcester Telegram",null,null,null,"2016-10-02","156 mm Multi Solar Cell ",1.28,0.72,0.84299999999999997,0,0]
["Solar power attractive for region - Eau Claire Leader-Telegram",null,null,null,null,"156 mm Mono Solar Cell ",1.49,0.95,1.032,0,0]
["Leader-Telegram",null,null,null,"2016-10-02","125 mm Mono Solar Cell ",0.93,0.56999999999999995,0.63300000000000001,0,0]
["Facts About the Solar Storm -- Massive Radiation Blasting the Earth",null,null,null,null,"Non (TW or CN) Poly Cell Per Watt ","Visit here for more detail Cell price information"]
["Nature World News",null,null,null,"2016-10-02","Unit: USD ","more",null,"Last Update: 2016-09-28"]
["East Dundee's new police station part of Illinois Solar Tour",null,null,null,null,"Solar PV Module Weekly Spot Price "]
["Chicago Tribune",null,null,null,"2016-10-02","Item ","High ","Low ","Average ","AvgChg ","AvgChg % "]
["Northern Idaho Solar Roadway Unveiling Pushed to Saturday",null,null,null,null,"Poly Silicon Solar Module ",0.53,0.34,0.40200000000000002,-8.0000000000000002E-3,-1.95E-2]
["Boise Weekly",null,null,null,"2016-10-02","ThinFilm Solar Module ",0.54,0.34,0.42,-0.01,-2.3300000000000001E-2]
["Elgin mayor touts solar power by showcasing his house on tour",null,null,null,null,"US Multi Solar Module","Visit here for more detail module price information"]
["Chicago Tribune",null,null,null,"2016-10-02","Mono Silicon Solar Module","Visit here for more detail module price information"]
["Weekend Workshop: Keep on rocking off the grid with a DIY solar Bluetooth speaker",null,null,null,null,"India Poly Module","Visit here for more detail module price information"]
["Digital Trends",null,null,null,"2016-10-02","Unit: USD / Watt ","more",null,"Last Update: 2016-09-28"]
["NREL Report Shows US Solar Photovoltaic Costs Continuing to Fall in 2016",null,null,null,null,"All Spot Prices are Tax excluded and updated on Wednesday "]
["AltEnergyMag (press release)",null,null,null,"2016-10-01"]
["10 megawatt solar photovoltaic power plant for Monrovia"]
["Liberian Daily Observer",null,null,null,"2016-10-01"]
["Last Update: 2016-Oct- 02 14:01 (GMT+8)"]
[]
["Price Methodology","Terms of Use","Privacy Policy ","About Us ","Contact Us ","Site Map"]
["Copyright © 2016 PVinsights.com All rights reserved"]

{"sheet":"pvinsights 08 01 17","index":19,"n_rows":53,"n_cols":13,"rows_kept":53,"cut":false,"hidden":false,"merged":[[3,5,6,10],[4,0,5,4],[4,11,13,11],[7,0,7,2],[8,0,8,2],[9,0,9,1],[10,0,10,2],[11,0,11,1],[11,6,11,9],[12,0,12,2],[12,6,12,9],[13,0,13,1],[13,6,13,7],[13,8,13,10],[14,11,23,11],[15,0,15,1],[16,0,16,2],[17,0,17,1],[18,0,19,4],[14,0,14,2],[20,0,20,4],[21,0,21,3],[22,0,22,4],[22,6,22,10],[23,0,23,3],[23,6,23,10],[35,0,35,3],[24,0,24,4],[24,6,24,7],[24,8,24,10],[24,11,33,11],[25,0,25,3],[25,5,28,10],[26,0,26,4],[27,0,27,3],[28,0,28,4],[29,0,29,3],[30,0,30,4],[31,0,31,3],[32,0,32,4],[33,0,33,3],[34,0,34,4],[43,0,43,3],[43,6,43,10],[36,0,36,4],[36,6,36,10],[37,0,37,3],[37,6,37,7],[37,8,37,10],[38,0,38,4],[39,0,39,3],[40,0,40,4],[41,0,41,3],[42,0,42,4],[42,6,42,10],[50,0,50,4],[50,5,50,10],[44,0,44,4],[44,6,44,10],[45,0,45,3],[45,6,45,7],[45,8,45,10],[46,0,46,4],[46,5,46,10],[47,0,47,3],[48,0,48,4],[48,5,48,10],[49,0,49,3],[49,5,49,10]]}
[null,"Login","Register","Member Center"]
[]
["Home","Why Solar","Retailer Price","Contract Price","Inverter Price","Weekly Snapshots","Price Download","Monthly Insights","Weekly Forecast","Price Forecast","Premier Insights","Premier Data","Advertising"]
[]
["Final Phase of The 2014 US AD & CVD Key Date and Notice"]
[]
[]
["Solar PV Corporate News Release",null,null,null,null,"PV Poly Silicon Weekly Spot Price"]
["Trina Solar Announces Third Quarter 2016 Results",null,null,null,null,"Item ","High ","Low ","Average ","AvgChg ","AvgChg% "]
["Trina Solar",null,"Nov 23, 2016",null,null,"PV Grade PolySilicon (9N/9N+) ",17.5,13,15.37,0.14000000000000001,9.1999999999999998E-3]
["Canadian Solar Reports Third Quarter 2016 Results",null,null,null,null,"2nd Grade PolySilicon (6N-8N) ",16.5,11.5,13.1,0.1,7.7000000000000002E-3]
["Canadian Sol",null,"Nov 21, 2016",null,null,"PV Grade PolySilicon in China (9N/9N+) ","Visit here for more Poly-Si price",null,null,null,"%"]
["JASolar Announces Third Quarter 2016 Financial Results",null,null,null,null,"PV Grade PolySilicon Outside China (9N/9N+) ","Visit here for more Poly-Si price",null,null,null,"%"]
["JA Solar",null,"Nov 17, 2016",null,null,"Unit: USD/Kg ","more",null,"Last Update: 2017-01-04"]
["JinkoSolar Announces Third Quarter 2016 Financial Results",null,null,null,null,"Definition of PV Grade: Poly silicon chunk with high purity can be directly produced to Solar PV Ingots / Bricks"]
["Jinko",null,"Nov 16, 2016",null,null,"Definition of 2nd Grade: Poly silicon chunk must be mixed with high purity polysilicon, when producing Solar PV Ingots / Bricks."]
["SunPower Reports Third Quarter 2016 Results",null,null,null,null,"Solar PV Wafer Weekly Spot Price "]
["SunPower",null,"Nov 10, 2016",null,null,"Item ","High ","Low ","Average ","AvgChg ","AvgChg% "]
["Latest Solar PV News",null,null,null,null,"156 mm Multi Solar Wafer ",0.68,0.61,0.621,-2E-3,-3.2000000000000002E-3]
[null,null,null,null,null,"156 mm High Eff Multi Solar Wafer ",0.68,0.62,0.626,-2E-3,-3.2000000000000002E-3]
["Solar Farm Companies Stock Explode in Wake of De-Regulation",null,null,null,null,"156 mm Mono Solar Wafer ",0.85,0.74,0.77,0,0]
["Yahoo Finance",null,null,null,"Jan 08, 2017","156 mm Mono Wafer Outside China ",0.85,0.78,0.79800000000000004,0,0]
["Solar Bears fall 5-2 to Colorado Eagles - Orlando Sentinel",null,null,null,null,"156 mm Multi Wafer Outside China","Visit here for more detail wafer price information"]
["Orlando Sentinel",null,null,null,"Jan 08, 2017","156 mm N-Mono Wafer","Visit here for more detail"]
["A star is hurtling towards our solar system and could knock millions of asteroids straight towards Earth",null,null,null,null,"Unit: USD ","more",null,"Last Update: 2017-01-04"]
["Business Insider",null,null,null,"Jan 08, 2017"]
["LETTER: Solar bylaw amendment proposal - News - Wicked Local ..."]
["Wicked Local Brockton",null,null,null,"Jan 08, 2017"]
["Building-Integrated Photovoltaic (BIPV) Roofing Market â\u0080\u0093 Global Industry Analysis 2024"]
["Satellite PR News (press release)",null,null,null,"Jan 08, 2017","Solar PV Cell Weekly Spot Price "]
["Solar Bears fall 5-2 to Colorado Eagles",null,null,null,null,"Item ","High ","Low ","Average ","AvgChg ","AvgChg % "]
["Orlando Sentinel",null,null,null,"Jan 08, 2017","Multi Cell Price Per Watt ",0.26,0.2,0.21299999999999999,-2E-3,-9.2999999999999992E-3]
["Solar storms trigger sparks, melt soil on Moon: NASA",null,null,null,null,"Taiwan Poly Cell Per Watt ",0.26,0.21,0.214,-2E-3,-9.2999999999999992E-3]
["Economic Times",null,null,null,"Jan 08, 2017","156 mm Multi Solar Cell ",1.19,0.85,0.95499999999999996,-0.01,-1.04E-2]
["Kenai Wildlife Refuge to track solar energy output",null,null,null,null,"156 mm Mono Solar Cell ",1.75,1.04,1.143,-8.9999999999999993E-3,-7.7999999999999996E-3]
["Juneau Empire (subscription)",null,null,null,"Jan 08, 2017","125 mm Mono Solar Cell ",1.0900000000000001,0.62,0.7,-6.0000000000000001E-3,-8.5000000000000006E-3]
["LETTER: Solar bylaw amendment proposal",null,null,null,null,"Non (TW or CN) Poly Cell Per Watt ","Visit here for more detail Cell price information"]
["Wicked Local Brockton",null,null,null,"Jan 08, 2017","Unit: USD ","more",null,"Last Update: 2017-01-04"]
["LETTER FROM HOME / HAROLD BUBIL: The other reasons to 'go solar'",null,null,null,null,"Solar PV Module Weekly Spot Price "]
["Sarasota Herald-Tribune",null,null,null,"Jan 08, 2017","Item ","High ","Low ","Average ","AvgChg ","AvgChg % "]
["Stock Mover of the Day: Is Yingli Green Energy Holding Co Ltd (ADR) a Buy? The Stock Rises Again",null,null,null,null,"Poly Silicon Solar Module ",0.42,0.31,0.35799999999999998,-2E-3,-5.5999999999999999E-3]
["Frisco Fastball",null,null,null,"Jan 08, 2017","ThinFilm Solar Module ",0.43,0.31,0.374,-2E-3,-5.3E-3]
["Solar developer proposes 300-acre set-aside in Shoreham",null,null,null,null,"US Multi Solar Module","Visit here for more detail module price information"]
["Newsday",null,null,null,"Jan 08, 2017","Mono Silicon Solar Module","Visit here for more detail module price information"]
["For rural Urbana farmer, solar power is cool",null,null,null,null,"India Poly Module","Visit here for more detail module price information"]
["Champaign/Urbana News-Gazette",null,null,null,"Jan 08, 2017","Unit: USD / Watt ","more",null,"Last Update: 2017-01-04"]
["LETTER: Solar bylaw amendment proposal",null,null,null,null,"All Spot Prices are Tax excluded and updated on Wednesday "]
["Wicked Local Abington",null,null,null,"Jan 08, 2017"]
["Jagler: Werner sees bright future in solar energy"]
["Milwaukee Journal Sentinel",null,null,null,"Jan 08, 2017"]
["Last Update: 2017-Jan- 08 23:00 (GMT+8)"]
["Price Methodology","Terms of Use","Privacy Policy ","About Us ","Contact Us ","Site Map"]
["Copyright © 2017 PVinsights.com All rights reserved"]

{"sheet":"pvinsights 26 02 17","index":20,"n_rows":55,"n_cols":13,"rows_kept":55,"cut":false,"hidden":false,"merged":[[52,0,52,4],[47,0,47,3],[47,5,47,10],[48,0,48,4],[48,5,51,10],[49,0,49,3],[50,0,50,4],[51,0,51,4],[44,0,44,4],[44,6,44,10],[45,0,45,3],[45,6,45,10],[46,0,46,4],[46,6,46,7],[46,8,46,10],[43,6,43,10],[35,0,35,3],[36,0,36,4],[37,0,37,3],[37,6,37,10],[38,0,38,4],[38,6,38,7],[38,8,38,10],[39,0,39,3],[40,0,40,4],[41,0,41,3],[42,0,42,4],[43,0,43,3],[34,0,34,4],[24,0,24,4],[24,6,24,10],[24,11,33,11],[25,0,25,3],[25,6,25,7],[25,8,25,10],[26,0,26,4],[26,5,29,10],[27,0,27,3],[28,0,28,4],[29,0,29,3],[30,0,30,4],[31,0,31,3],[32,0,32,4],[33,0,33,3],[14,11,23,11],[15,0,15,1],[16,0,16,2],[17,0,17,1],[18,0,19,4],[14,0,14,2],[20,0,20,4],[21,0,21,3],[22,0,22,4],[22,6,22,10],[23,0,23,3],[23,6,23,10],[3,5,6,10],[4,0,5,4],[4,11,13,11],[7,0,7,2],[8,0,8,2],[9,0,9,1],[10,0,10,2],[11,0,11,1],[11,6,11,9],[12,0,12,2],[12,6,12,9],[13,0,13,1],[13,6,13,7],[13,8,13,10]]}
[null,"Login","Register","Member Center"]
[]
["Home","Why Solar","Retailer Price","Contract Price","Inverter Price","Weekly Snapshots","Price Download","Monthly Insights","Weekly Forecast","Price Forecast","Premier Insights","Premier Data","Advertising"]
[]
["Final Phase of The 2014 US AD & CVD Key Date and Notice"]
[]
[]
["Solar PV Corporate News Release",null,null,null,null,"PV Poly Silicon Weekly Spot Price"]
["First Solar, Inc. Announces Fourth Quarter & Full Year 2016 Financial Results",null,null,null,null,"Item ","High ","Low ","Average ","AvgChg ","AvgChg% "]
["First Solar",null,"Feb 22, 2017",null,null,"PV Grade PolySilicon (9N/9N+) ",18.09,13.5,16.22,-0.03,-1.8E-3]
["SunPower Reports Fourth Quarter 2016 Results",null,null,null,null,"2nd Grade PolySilicon (6N-8N) ",17,11.5,13.46,-0.09,-6.6E-3]
["Sunpower",null,"Feb 16, 2017",null,null,"PV Grade PolySilicon in China (9N/9N+) ","Visit here for more Poly-Si price",null,null,null,"%"]
["Trina Solar Announces Third Quarter 2016 Results",null,null,null,null,"PV Grade PolySilicon Outside China (9N/9N+) ","Visit here for more Poly-Si price",null,null,null,"%"]
["Trina Solar",null,"Nov 23, 2016",null,null,"Unit: USD/Kg ","more",null,"Last Update: 2017-02-22"]
["Canadian Solar Reports Third Quarter 2016 Results",null,null,null,null,"Definition of PV Grade: Poly silicon chunk with high purity can be directly produced to Solar PV Ingots / Bricks"]
["Canadian Sol",null,"Nov 21, 2016",null,null,"Definition of 2nd Grade: Poly silicon chunk must be mixed with high purity polysilicon, when producing Solar PV Ingots / Bricks."]
["JASolar Announces Third Quarter 2016 Financial Results",null,null,null,null,"Solar PV Wafer Weekly Spot Price "]
["JA Solar",null,"Nov 17, 2016",null,null,"Item ","High ","Low ","Average ","AvgChg ","AvgChg% "]
["Latest Solar PV News",null,null,null,null,"156 mm Multi Solar Wafer ",0.68,0.61,0.62,0,0]
[null,null,null,null,null,"156 mm High Eff Multi Solar Wafer ",0.68,0.62,0.625,0,0]
["Solar panels get a face-lift with custom designs",null,null,null,null,"156 mm Mono Solar Wafer ",0.86,0.77,0.8,8.0000000000000002E-3,1.01E-2]
["The MIT Tech",null,null,null,"Feb 26, 2017","156 mm Mono Wafer Outside China ",0.86,0.8,0.82799999999999996,0.01,1.2200000000000001E-2]
["Malakoff to go it alone in solar photovoltaic project",null,null,null,null,"156 mm Multi Wafer Outside China","Visit here for more detail wafer price information"]
["The Sun Daily",null,null,null,"Feb 26, 2017","156mm DiamondWire Poly Wafer","Visit here for more detail wafer price information"]
["Global Thin Film Photovoltaic Modules Market 2017- Dunmore Corporation, Solarpower Systems, Kaneka-Solar, Aleo ...",null,null,null,null,"156 mm N-Mono Wafer","Visit here for more detail"]
["Publicist Report - Market Research News by Market.Biz (press release)",null,null,null,"Feb 26, 2017","Unit: USD ","more",null,"Last Update: 2017-02-22"]
["Mason City Library solar energy system has bright results"]
["Mason City Globe Gazette",null,null,null,"Feb 26, 2017"]
["Low cost solar imports from China hurting Centre's Make in India mission"]
["The Hindu",null,null,null,"Feb 26, 2017"]
["Solar's bright future seen in financing options",null,null,null,null,"Solar PV Cell Weekly Spot Price "]
["STLtoday.com",null,null,null,"Feb 26, 2017","Item ","High ","Low ","Average ","AvgChg ","AvgChg % "]
["Don't let utilities squash Kentucky's solar entrepreneurs. Here's a better plan.",null,null,null,null,"Multi Cell Price Per Watt ",0.26,0.2,0.21099999999999999,-1E-3,-4.7000000000000002E-3]
["Lexington Herald Leader (blog)",null,null,null,"Feb 26, 2017","Taiwan Poly Cell Per Watt ",0.26,0.2,0.21199999999999999,-1E-3,-4.7000000000000002E-3]
["A 'ring of fire' solar eclipse occurs Sunday morning â\u0080\u0094 here's how to watch",null,null,null,null,"156 mm Multi Solar Cell ",1.19,0.85,0.94599999999999995,-4.0000000000000001E-3,-4.1999999999999997E-3]
["Chicago Tribune",null,null,null,"Feb 26, 2017","156 mm Mono Solar Cell ",1.75,1.04,1.143,0,0]
["Global Photovoltaic Coating Market 2017 â\u0080\u0093 3M, AK Coatings, AkzoNobel, AnCatt, Arkema",null,null,null,null,"125 mm Mono Solar Cell ",1.0900000000000001,0.62,0.7,0,0]
["First Newshawk",null,null,null,"Feb 26, 2017","Non (TW or CN) Poly Cell Per Watt ","Visit here for more detail Cell price information"]
["Solar photovoltaic windows rely on inexpensive silicon quantum dots",null,null,null,null,"Unit: USD ","more",null,"Last Update: 2017-02-22"]
["Laser Focus World",null,null,null,"Feb 26, 2017","Solar PV Module Weekly Spot Price "]
["This Week in Solar",null,null,null,null,"Item ","High ","Low ","Average ","AvgChg ","AvgChg % "]
["Madison.com",null,null,null,"Feb 26, 2017","Poly Silicon Solar Module ",0.41,0.3,0.35,-2E-3,-5.7000000000000002E-3]
["Other counties eye solar farm rules - Daily Advance",null,null,null,null,"ThinFilm Solar Module ",0.42,0.31,0.36299999999999999,-2E-3,-5.4999999999999997E-3]
["The Daily Advance",null,null,null,"Feb 26, 2017","US Multi Solar Module","Visit here for more detail module price information"]
["Solar-powered smoothies? You can find them at this Kendall farm.",null,null,null,null,"Mono Silicon Solar Module","Visit here for more detail module price information"]
["Miami Herald",null,null,null,"Feb 26, 2017","India Poly Module","Visit here for more detail module price information"]
["SC solar farms on hold, awaiting tax break",null,null,null,null,"Unit: USD / Watt ","more",null,"Last Update: 2017-02-22"]
["The State",null,null,null,"Feb 26, 2017","All Spot Prices are Tax excluded and updated on Wednesday "]
["Airport, solar and local real estate"]
["Florida Today",null,null,null,"Feb 26, 2017"]
["Last Update: 2017-Feb- 26 14:00 (GMT+8)"]
[]
[]
["Price Methodology","Terms of Use","Privacy Policy ","About Us ","Contact Us ","Site Map"]
["Copyright © 2017 PVinsights.com All rights reserved"]

{"sheet":"pvinsights 06 04 17","index":21,"n_rows":55,"n_cols":13,"rows_kept":55,"cut":false,"hidden":false,"merged":[[3,5,6,10],[4,0,5,4],[4,11,13,11],[7,0,7,2],[8,0,8,2],[9,0,9,1],[10,0,10,2],[11,0,11,1],[11,6,11,9],[12,0,12,2],[12,6,12,9],[13,0,13,1],[13,6,13,7],[13,8,13,10],[14,11,23,11],[15,0,15,1],[16,0,16,2],[17,0,17,1],[18,0,19,4],[14,0,14,2],[20,0,20,4],[21,0,21,3],[22,0,22,4],[22,6,22,10],[23,0,23,3],[23,6,23,10],[34,0,34,4],[24,0,24,4],[24,6,24,10],[24,11,33,11],[25,0,25,3],[25,6,25,7],[25,8,25,10],[26,0,26,4],[26,5,29,10],[27,0,27,3],[28,0,28,4],[29,0,29,3],[30,0,30,4],[31,0,31,3],[32,0,32,4],[33,0,33,3],[43,6,43,10],[35,0,35,3],[36,0,36,4],[37,0,37,3],[37,6,37,10],[38,0,38,4],[38,6,38,7],[38,8,38,10],[39,0,39,3],[40,0,40,4],[41,0,41,3],[42,0,42,4],[43,0,43,3],[44,0,44,4],[44,6,44,10],[45,0,45,3],[45,6,45,10],[46,0,46,4],[46,6,46,7],[46,8,46,10],[52,0,52,4],[47,0,47,3],[47,5,47,10],[48,0,48,4],[48,5,51,10],[49,0,49,3],[50,0,50,4],[51,0,51,4]]}
[null,"Login","Register","Member Center"]
[]
["Home","Why Solar","Retailer Price","Contract Price","Inverter Price","Weekly Snapshots","Price Download","Monthly Insights","Weekly Forecast","Price Forecast","Premier Insights","Premier Data","Advertising"]
[]
["Final Phase of The 2014 US AD & CVD Key Date and Notice"]
[]
[]
["Solar PV Corporate News Release",null,null,null,null,"PV Poly Silicon Weekly Spot Price"]
["Hanwha Q CELLS Reports Fourth Quarter and Full Year 2016 Results",null,null,null,null,"Item ","High ","Low ","Average ","AvgChg ","AvgChg% "]
["Hanwha",null,"Mar 23, 2017",null,null,"PV Grade PolySilicon (9N/9N+) ",15.5,12.8,14.21,-0.42,-2.87E-2]
["JA Solar Announces Fourth Quarter and Fiscal Year 2016 Results",null,null,null,null,"2nd Grade PolySilicon (6N-8N) ",14.5,10.8,11.83,-0.28999999999999998,-2.3900000000000001E-2]
["JA Solar",null,"Mar 16, 2017",null,null,"PV Grade PolySilicon in China (9N/9N+) ","Visit here for more Poly-Si price",null,null,null,"%"]
["Higher yield of solar wafers and enhanced solar cell efficiency with new HeraGlaze coating by Heraeus",null,null,null,null,"PV Grade PolySilicon Outside China (9N/9N+) ","Visit here for more Poly-Si price",null,null,null,"%"]
["Heraeus",null,"Mar 01, 2017",null,null,"Unit: USD/Kg ","more",null,"Last Update: 2017-04-05"]
["Heraeus enables significant higher efficiency gains with three new metallization pastes",null,null,null,null,"Definition of PV Grade: Poly silicon chunk with high purity can be directly produced to Solar PV Ingots / Bricks"]
["Heraeus",null,"Mar 01, 2017",null,null,"Definition of 2nd Grade: Poly silicon chunk must be mixed with high purity polysilicon, when producing Solar PV Ingots / Bricks."]
["First Solar, Inc. Announces Fourth Quarter & Full Year 2016 Financial Results",null,null,null,null,"Solar PV Wafer Weekly Spot Price "]
["First Solar",null,"Feb 22, 2017",null,null,"Item ","High ","Low ","Average ","AvgChg ","AvgChg% "]
["Latest Solar PV News",null,null,null,null,"156 mm Multi Solar Wafer ",0.62,0.54,0.55500000000000005,-0.01,-1.77E-2]
[null,null,null,null,null,"156 mm High Eff Multi Solar Wafer ",0.62,0.55000000000000004,0.56000000000000005,-0.01,-1.7500000000000002E-2]
["New wrinkle for roof repairs: Panasonic photovoltaic roof for plug-in Toyota Prius",null,null,null,null,"156 mm Mono Solar Wafer ",0.86,0.77,0.8,0,0]
["Repairer Driven News (press release) (blog)",null,null,null,"Apr 06, 2017","156 mm Mono Wafer Outside China ",0.86,0.8,0.82799999999999996,0,0]
["Sluggish Growth Forecast in Key Photovoltaic Markets - Solar Novus ...",null,null,null,null,"156 mm Multi Wafer Outside China","Visit here for more detail wafer price information"]
["Solar Novus Today",null,null,null,"Apr 06, 2017","156mm DiamondWire Poly Wafer","Visit here for more detail wafer price information"]
["Multicrystalline Photovoltaic Modules Market Competition Analysis by Type, Region Forecast 2021",null,null,null,null,"156 mm N-Mono Wafer","Visit here for more detail"]
["MilTech",null,null,null,"Apr 06, 2017","Unit: USD ","more",null,"Last Update: 2017-04-05"]
["COD Offers Photovoltaic Training"]
["Patch.com",null,null,null,"Apr 06, 2017"]
["Are Solar Stocks Due for a Rebound? (FAN, FSLR)"]
["Investopedia",null,null,null,"Apr 06, 2017"]
["First Solar wants out of 'yieldco' venture with SunPower",null,null,null,null,"Solar PV Cell Weekly Spot Price "]
["Reuters",null,null,null,"Apr 06, 2017","Item ","High ","Low ","Average ","AvgChg ","AvgChg % "]
["Australia launches overdue shift to solar",null,null,null,null,"Multi Cell Price Per Watt ",0.25,0.18,0.19,-2E-3,-1.04E-2]
["Deutsche Welle",null,null,null,"Apr 06, 2017","Taiwan Poly Cell Per Watt ",0.25,0.18,0.191,-2E-3,-1.04E-2]
["School sees solar panels as bright idea",null,null,null,null,"156 mm Multi Solar Cell ",1.1399999999999999,0.77,0.85199999999999998,-0.01,-1.1599999999999999E-2]
["ABC6OnYourSide.com",null,null,null,"Apr 06, 2017","156 mm Mono Solar Cell ",1.75,0.99,1.105,-5.0000000000000001E-3,-4.4999999999999997E-3]
["Solar eclipse mania spurs festivals, tours, sold-out hotels",null,null,null,null,"125 mm Mono Solar Cell ",1.0900000000000001,0.59,0.67600000000000005,-3.0000000000000001E-3,-4.4000000000000003E-3]
["Chicago Tribune",null,null,null,"Apr 06, 2017","Non (TW or CN) Poly Cell Per Watt ","Visit here for more detail Cell price information"]
["Arizona solar job growth not as fast as rest of nation",null,null,null,null,"Unit: USD ","more",null,"Last Update: 2017-04-05"]
["Arizona Daily Sun",null,null,null,"Apr 06, 2017","Solar PV Module Weekly Spot Price "]
["Students Benefit from the Use of Wind and Solar Power",null,null,null,null,"Item ","High ","Low ","Average ","AvgChg ","AvgChg % "]
["The Hudson Independent",null,null,null,"Apr 06, 2017","Poly Silicon Solar Module ",0.41,0.3,0.34100000000000003,-1E-3,-2.8999999999999998E-3]
["Lyndon contracts to receive power from Route 5 solar project",null,null,null,null,"ThinFilm Solar Module ",0.42,0.3,0.35299999999999998,-1E-3,-2.8E-3]
["WCAX",null,null,null,"Apr 06, 2017","US Multi Solar Module","Visit here for more detail module price information"]
["Wabash Valley Power installing new solar park in Peru",null,null,null,null,"Mono Silicon Solar Module","Visit here for more detail module price information"]
["Kokomo Tribune",null,null,null,"Apr 06, 2017","India Poly Module","Visit here for more detail module price information"]
["These Ancient Texts Might Help Us Predict the Next Massive Solar Storm",null,null,null,null,"Unit: USD / Watt ","more",null,"Last Update: 2017-04-05"]
["Gizmodo",null,null,null,"Apr 06, 2017","All Spot Prices are Tax excluded and updated on Wednesday "]
["FPL drafted portions of bill that puts tough requirements on rooftop solar companies"]
["Miami Herald",null,null,null,"Apr 06, 2017"]
["Last Update: 2017-Apr- 06 07:00 (GMT+8)"]
[]
[]
["Price Methodology","Terms of Use","Privacy Policy ","About Us ","Contact Us ","Site Map"]
["Copyright © 2017 PVinsights.com All rights reserved"]

{"sheet":"pvinsights 01 06 17","index":22,"n_rows":55,"n_cols":13,"rows_kept":55,"cut":false,"hidden":false,"merged":[[51,0,51,4],[52,0,52,4],[45,6,45,10],[46,6,46,7],[46,8,46,10],[48,0,48,4],[49,0,49,3],[50,0,50,4],[38,8,38,10],[43,6,43,10],[44,6,44,10],[48,5,51,10],[4,11,13,11],[14,11,23,11],[3,5,6,10],[26,5,29,10],[22,6,22,10],[23,6,23,10],[24,6,24,10],[25,6,25,7],[47,5,47,10],[25,8,25,10],[37,6,37,10],[38,6,38,7],[11,6,11,9],[12,6,12,9],[13,6,13,7],[13,8,13,10],[17,0,17,1],[43,0,43,3],[44,0,44,4],[45,0,45,3],[46,0,46,4],[47,0,47,3],[38,0,38,4],[39,0,39,3],[40,0,40,4],[41,0,41,3],[42,0,42,4],[33,0,33,3],[34,0,34,4],[35,0,35,3],[36,0,36,4],[37,0,37,3],[28,0,28,4],[29,0,29,3],[30,0,30,4],[31,0,31,3],[32,0,32,4],[23,0,23,3],[24,0,24,4],[25,0,25,3],[26,0,26,4],[27,0,27,3],[20,0,20,4],[21,0,21,3],[22,0,22,4],[12,0,12,2],[13,0,13,1],[14,0,14,2],[15,0,15,1],[16,0,16,2],[18,0,19,4],[4,0,5,4],[8,0,8,2],[9,0,9,1],[10,0,10,2],[11,0,11,1],[7,0,7,2]]}
[null,"Login","Register","Member Center"]
[]
["Home","Why Solar","Retailer Price","Contract Price","Inverter Price","Weekly Snapshots","Price Download","Monthly Insights","Weekly Forecast","Price Forecast","Premier Insights","Premier Data","Advertising"]
[]
["Key Date of The US 2017 Section 201 Safeguard Investigation"]
[]
[]
["Solar PV Corporate News Release",null,null,null,null,"PV Poly Silicon Weekly Spot Price"]
["Hanwha Q CELLS Reports ",null,null,null,null,"Item ","High ","Low ","Average ","AvgChg ","AvgChg% "]
["Hanwha Q Cel",null,"May 25, 2017",null,null,"PV Grade PolySilicon (9N/9N+) ",15.55,12,13.85,0.42,3.1300000000000001E-2]
["JA Solar Announces First Quarter 2017 Results",null,null,null,null,"2nd Grade PolySilicon (6N-8N) ",14.25,10,11.55,0.33,2.9399999999999999E-2]
["JA Solar",null,"May 24, 2017",null,null,"PV Grade PolySilicon in China (9N/9N+) ","Visit here for more Poly-Si price",null,null,null,"%"]
["Yingli Green Energy Reports Fourth Quarter and Full Year 2016 Results",null,null,null,null,"PV Grade PolySilicon Outside China (9N/9N+) ","Visit here for more Poly-Si price",null,null,null,"%"]
["Yingli",null,"Apr 13, 2017",null,null,"Unit: USD/Kg ","more",null,"Last Update: 2017-05-31"]
["Hanwha Q CELLS Reports Fourth Quarter and Full Year 2016 Results",null,null,null,null,"Definition of PV Grade: Poly silicon chunk with high purity can be directly produced to Solar PV Ingots / Bricks"]
["Hanwha",null,"Mar 23, 2017",null,null,"Definition of 2nd Grade: Poly silicon chunk must be mixed with high purity polysilicon, when producing Solar PV Ingots / Bricks."]
["JA Solar Announces Fourth Quarter and Fiscal Year 2016 Results",null,null,null,null,"Solar PV Wafer Weekly Spot Price "]
["JA Solar",null,"Mar 16, 2017",null,null,"Item ","High ","Low ","Average ","AvgChg ","AvgChg% "]
["Latest Solar PV News",null,null,null,null,"156 mm Multi Solar Wafer ",0.63,0.57999999999999996,0.59699999999999998,1.7000000000000001E-2,2.93E-2]
[null,null,null,null,null,"156 mm High Eff Multi Solar Wafer ",0.63,0.59,0.60199999999999998,1.7000000000000001E-2,2.9100000000000001E-2]
["More Than Half of Small-Scale Photovoltaic Generation Comes from Residential Rooftops",null,null,null,null,"156 mm Mono Solar Wafer ",0.86,0.77,0.79500000000000004,0,0]
["Energy Collective",null,null,null,"Jun 01, 2017","156 mm Mono Wafer Outside China ",0.86,0.8,0.82299999999999995,0,0]
["Former North Nashville landfill to transform into city's first solar program",null,null,null,null,"156 mm Multi Wafer Outside China","Visit here for more detail wafer price information"]
["WZTV",null,null,null,"Jun 01, 2017","156mm DiamondWire Poly Wafer","Visit here for more detail wafer price information"]
["Tazewell board acts to lure solar farms - News - Washington Times ...",null,null,null,null,"156 mm N-Mono Wafer","Visit here for more detail"]
["Washington Times-Reporter",null,null,null,"Jun 01, 2017","Unit: USD ","more",null,"Last Update: 2017-05-31"]
["Currituck listens to solar experts on safety, but not convinced yet"]
["Virginian-Pilot",null,null,null,"Jun 01, 2017"]
["A solar energy trade war may be looming"]
["Washington Examiner",null,null,null,"Jun 01, 2017"]
["Carbondale, Illinois Prepares to Broadcast 2017 Solar Eclipse Nationally",null,null,null,null,"Solar PV Cell Weekly Spot Price "]
["Space.com",null,null,null,"Jun 01, 2017","Item ","High ","Low ","Average ","AvgChg ","AvgChg % "]
["Construction begins at Abu Dhabi's largest solar power project",null,null,null,null,"Multi Cell Price Per Watt ",0.26,0.2,0.215,7.0000000000000001E-3,3.3700000000000001E-2]
["The National",null,null,null,"Jun 01, 2017","Taiwan Poly Cell Per Watt ",0.26,0.2,0.218,8.0000000000000002E-3,3.8100000000000002E-2]
["Financial agreements of Sweihan Photovoltaic Independent Power Project in Abu Dhabi were signed",null,null,null,null,"156 mm Multi Solar Cell ",1.19,0.85,0.96499999999999997,3.2000000000000001E-2,3.4299999999999997E-2]
["RenewEconomy",null,null,null,"Jun 01, 2017","156 mm Mono Solar Cell ",1.75,1.04,1.1919999999999999,0.03,2.58E-2]
["Natcore Technology to Present Paper to IEEE Photovoltaic Conference",null,null,null,null,"125 mm Mono Solar Cell ",1.0900000000000001,0.62,0.73,1.7999999999999999E-2,2.53E-2]
["AltEnergyMag (press release)",null,null,null,"Jun 01, 2017","Non (TW or CN) Poly Cell Per Watt ","Visit here for more detail Cell price information"]
["Building Integrated Photovoltaic (PV) Solar Market to Record an Impressive Growth Rate During Forecast 2025",null,null,null,null,"Unit: USD ","more",null,"Last Update: 2017-05-31"]
["MilTech",null,null,null,"Jun 01, 2017","Solar PV Module Weekly Spot Price "]
["RACE for Solar program helps residents reduce energy costs",null,null,null,null,"Item ","High ","Low ","Average ","AvgChg ","AvgChg % "]
["The Ridgefield Press",null,null,null,"Jun 01, 2017","Poly Silicon Solar Module ",0.41,0.3,0.33300000000000002,0,0]
["Solar energy storage as a business",null,null,null,null,"ThinFilm Solar Module ",0.42,0.3,0.34599999999999997,0,0]
["Deutsche Welle",null,null,null,"Jun 01, 2017","US Multi Solar Module","Visit here for more detail module price information"]
["CNY coal plant owner to build one of New York's largest solar farms ...",null,null,null,null,"Mono Silicon Solar Module","Visit here for more detail module price information"]
["Syracuse.com",null,null,null,"Jun 01, 2017","India Poly Module","Visit here for more detail module price information"]
["One-megawatt solar field dedicated in Benton | KATV",null,null,null,null,"Unit: USD / Watt ","more",null,"Last Update: 2017-05-31"]
["KATV",null,null,null,"Jun 01, 2017","All Spot Prices are Tax excluded and updated on Wednesday "]
["Companies offering more aesthetically pleasing solar panels"]
["The Fayette Tribune",null,null,null,"Jun 01, 2017"]
["Last Update: 2017-Jun- 01 23:00 (GMT+8)"]
[]
[]
["Price Methodology","Terms of Use","Privacy Policy ","About Us ","Contact Us ","Site Map"]
["Copyright © 2017 PVinsights.com All rights reserved"]

{"sheet":"pvinsights 26 08 17","index":23,"n_rows":60,"n_cols":13,"rows_kept":60,"cut":false,"hidden":false,"merged":[[4,11,13,11],[14,11,23,11],[51,0,51,4],[52,0,52,4],[53,0,53,4],[3,5,6,10],[28,5,31,10],[26,8,26,10],[41,6,41,10],[42,6,42,10],[50,6,50,10],[51,6,51,7],[51,8,51,10],[48,6,48,10],[50,0,50,4],[18,0,19,4],[57,0,57,4],[52,5,52,10],[53,5,56,10],[54,0,54,4],[55,0,55,4],[56,0,56,4],[11,6,11,9],[12,6,12,9],[13,6,13,7],[13,8,13,10],[23,6,23,10],[24,6,24,10],[25,6,25,10],[26,6,26,7],[44,0,44,4],[45,0,45,3],[32,0,32,4],[33,0,33,3],[34,0,34,4],[35,0,35,3],[43,6,43,7],[43,8,43,10],[49,6,49,10],[38,0,38,4],[39,0,39,3],[40,0,40,4],[41,0,41,3],[42,0,42,4],[47,0,47,3],[48,0,48,4],[49,0,49,3],[43,0,43,3],[46,0,46,4],[23,0,23,3],[24,0,24,4],[25,0,25,3],[36,0,36,4],[37,0,37,3],[26,0,26,4],[27,0,27,3],[28,0,28,4],[29,0,29,3],[30,0,30,4],[31,0,31,3],[17,0,17,1],[7,0,7,2],[20,0,20,4],[21,0,21,3],[22,0,22,4],[12,0,12,2],[13,0,13,1],[14,0,14,2],[15,0,15,1],[16,0,16,2],[4,0,5,4],[8,0,8,2],[9,0,9,1],[10,0,10,2],[11,0,11,1]]}
[null,"Login","Register","Member Center"]
[]
["Home","Why Solar","Retailer Price","Contract Price","Inverter Price","Weekly Snapshots","Price Download","Monthly Insights","Weekly Forecast","Price Forecast","Premier Insights","Premier Data","Advertising"]
[]
["Key Date of The US 2017 Section 201 Safeguard Investigation"]
[]
[]
["Solar PV Corporate News Release",null,null,null,null,"PV Poly Silicon Weekly Spot Price"]
["Panasonic Solar Promotes First Group of Authorized Installers to Premium Level",null,null,null,null,"Item ","High ","Low ","Average ","AvgChg ","AvgChg% "]
["Panasonic",null,"2017-07-26",null,null,"PV Grade PolySilicon (9N/9N+) ",17.899999999999999,12.5,15.55,0,0]
["Benefiting from the Leading Edge Technology, TZS Announced Mono-Crystalline Wafer Price Modification",null,null,null,null,"2nd Grade PolySilicon (6N-8N) ",15.8,10.5,12.78,0,0]
["TZS",null,"2017-07-18",null,null,"PV Grade PolySilicon in China (9N/9N+) ","Visit here for more Poly-Si price",null,null,null,"%"]
["Canadian Solar Reports First Quarter 2017 Results",null,null,null,null,"PV Grade PolySilicon Outside China (9N/9N+) ","Visit here for more Poly-Si price",null,null,null,"%"]
["CanadianSola",null,"2017-06-06",null,null,"Unit: USD/Kg ","more",null,"Last Update: 2017-08-23"]
["JinkoSolar Announces First Quarter 2017 Financial Results",null,null,null,null,"Definition of PV Grade: Poly silicon chunk with high purity can be directly produced to Solar PV Ingots / Bricks"]
["Jinko",null,"2017-06-05",null,null,"Definition of 2nd Grade: Poly silicon chunk must be mixed with high purity polysilicon, when producing Solar PV Ingots / Bricks."]
["Hanwha Q CELLS Reports ",null,null,null,null,"PolySilicon Price In China: The Price is surveyed by RMB term with Tax and then shown in USD term without 17% of VAT."]
["Hanwha Q Cel",null,"2017-05-25",null,null,"Solar PV Wafer Weekly Spot Price "]
["Latest Solar PV News",null,null,null,null,"Item ","High ","Low ","Average ","AvgChg ","AvgChg% "]
[null,null,null,null,null,"156 mm Multi Solar Wafer ",0.7,0.57999999999999996,0.64700000000000002,0,0]
["Comcast inks partnership deal with solar-power provider Sunrun",null,null,null,null,"156 mm High Eff Multi Solar Wafer ",0.7,0.59,0.65200000000000002,0,0]
["MarketWatch",null,null,null,"2017-08-26","156 mm Mono Solar Wafer ",0.81,0.73,0.753,0,0]
["Energy Drive: India needs to tread cautiously in its solar path",null,null,null,null,"156 mm Mono Wafer Outside China ",0.81,0.77,0.78200000000000003,0,0]
["International Business Times, India Edition",null,null,null,"2017-08-26","156 mm Multi Wafer Outside China","Visit here for more detail wafer price information"]
["While you're watching the eclipse, solar power companies are going ...",null,null,null,null,"156mm DiamondWire Poly Wafer","Visit here for more detail wafer price information"]
["BGR",null,null,null,"2017-08-26","156 mm N-Mono Wafer","Visit here for more detail"]
["Solar power companies are not excited for the solar eclipse",null,null,null,null,"Unit: USD ","more",null,"Last Update: 2017-08-23"]
["New York Post",null,null,null,"2017-08-26","Wafer Prices In China: The Prices are surveyed by RMB term with Tax and then shown in USD term without 17% of VAT."]
["Sunseap, ST Kinetics ink solar energy agreement"]
["THE BUSINESS TIMES",null,null,null,"2017-08-26"]
["Comcast To Shine Marketing Resources On Residential Solar Panel ..."]
["Deadline",null,null,null,"2017-08-26"]
["Why Comcast Wants to Sell You Solar Panels",null,null,null,null,"Solar PV Cell Weekly Spot Price "]
["Philadelphia magazine",null,null,null,"2017-08-26","Item ","High ","Low ","Average ","AvgChg ","AvgChg % "]
["My Turn: Put solar power in the poor's hands. It'll pay off for all",null,null,null,null,"Multi Cell Price Per Watt ",0.26,0.2,0.21299999999999999,-2E-3,-9.2999999999999992E-3]
["AZCentral.com",null,null,null,"2017-08-26","Taiwan Poly Cell Per Watt ",0.26,0.2,0.215,-2E-3,-9.1999999999999998E-3]
["Fed turns to solar power at Phoenix cash-processing facility",null,null,null,null,"Poly PERC Cell Per Watt ",0.26,0.23,0.249,-1E-3,-4.0000000000000001E-3]
["AZCentral.com",null,null,null,"2017-08-25","Mono PERC Cell Per Watt ",0.32,0.27,0.28799999999999998,-3.0000000000000001E-3,-1.03E-2]
["Why go for a Solar Energy System",null,null,null,null,"Taiwan Mono PERC Cell Per Watt ",0.32,0.23,0.29399999999999998,-2E-3,-6.7999999999999996E-3]
["TG Daily (blog)",null,null,null,"2017-08-25","156 mm Multi Solar Cell ",1.19,0.85,0.95499999999999996,-0.01,-1.04E-2]
["Solar Energy Stocks Dip Post-Solar Eclipse",null,null,null,null,"156 mm Mono Solar Cell ",1.64,1.01,1.095,-0.01,-8.9999999999999993E-3]
["Investing News Network (registration)",null,null,null,"2017-08-25","China Poly Cell Per Watt ","Visit here for more detail Cell price information"]
["Alternative energy: Residential solar power systems rising in ...",null,null,null,null,"Non (TW or CN) Poly Cell Per Watt","Visit here for more detail Cell price information"]
["Tulsa World",null,null,null,"2017-08-25","Unit: USD ","more",null,"Last Update: 2017-08-23"]
["Eclipse offers power companies opportunity for experiments",null,null,null,null,"Solar PV Module Weekly Spot Price "]
["The Gazette: Eastern Iowa Breaking News and Headlines",null,null,null,"2017-08-25","Item ","High ","Low ","Average ","AvgChg ","AvgChg % "]
["Engie in talks with AST to provide off-grid power to telcos, banks",null,null,null,null,"Poly Silicon Solar Module ",0.41,0.28000000000000003,0.32100000000000001,-2E-3,-6.1999999999999998E-3]
["Livemint",null,null,null,"2017-08-25","ThinFilm Solar Module ",0.42,0.28999999999999998,0.34,-2E-3,-5.7999999999999996E-3]
["Total Eclipse Vs Solar Power",null,null,null,null,"US Multi Solar Module","Visit here for more detail module price information"]
["Sky & Telescope",null,null,null,"2017-08-25","Mono Silicon Solar Module","Visit here for more detail module price information"]
["Last Update: 2017-Aug- 26 23:00 (GMT+8)",null,null,null,null,"India Poly Module","Visit here for more detail module price information"]
[null,null,null,null,null,"Unit: USD / Watt ","more",null,"Last Update: 2017-08-23"]
[null,null,null,null,null,"All Spot Prices are Tax excluded and updated on Wednesday "]
[]
[]
[]
[]
[]
["Price Methodology","Terms of Use","Privacy Policy ","About Us ","Contact Us ","Site Map"]
["Copyright © 2017 PVinsights.com All rights reserved"]

{"sheet":"pvinsights 16 09 17","index":24,"n_rows":60,"n_cols":13,"rows_kept":60,"cut":false,"hidden":false,"merged":[[4,0,5,4],[8,0,8,2],[9,0,9,1],[10,0,10,2],[11,0,11,1],[17,0,17,1],[7,0,7,2],[20,0,20,4],[21,0,21,3],[22,0,22,4],[12,0,12,2],[13,0,13,1],[14,0,14,2],[15,0,15,1],[16,0,16,2],[23,0,23,3],[24,0,24,4],[25,0,25,3],[36,0,36,4],[37,0,37,3],[26,0,26,4],[27,0,27,3],[28,0,28,4],[29,0,29,3],[30,0,30,4],[31,0,31,3],[49,6,49,10],[38,0,38,4],[39,0,39,3],[40,0,40,4],[41,0,41,3],[42,0,42,4],[47,0,47,3],[48,0,48,4],[49,0,49,3],[43,0,43,3],[46,0,46,4],[24,6,24,10],[25,6,25,10],[26,6,26,7],[44,0,44,4],[45,0,45,3],[32,0,32,4],[33,0,33,3],[34,0,34,4],[35,0,35,3],[43,6,43,7],[43,8,43,10],[11,6,11,9],[12,6,12,9],[13,6,13,7],[13,8,13,10],[23,6,23,10],[57,0,57,4],[52,5,52,10],[53,5,56,10],[54,0,54,4],[55,0,55,4],[56,0,56,4],[4,11,13,11],[14,11,23,11],[51,0,51,4],[52,0,52,4],[53,0,53,4],[3,5,6,10],[28,5,31,10],[26,8,26,10],[41,6,41,10],[42,6,42,10],[50,6,50,10],[51,6,51,7],[51,8,51,10],[48,6,48,10],[50,0,50,4],[18,0,19,4]]}
[null,"Login","Register","Member Center"]
[]
["Home","Why Solar","Retailer Price","Contract Price","Inverter Price","Weekly Snapshots","Price Download","Monthly Insights","Weekly Forecast","Price Forecast","Premier Insights","Premier Data","Advertising"]
[]
["Key Date of The US 2017 Section 201 Safeguard Investigation"]
[]
[]
["Solar PV Corporate News Release",null,null,null,null,"PV Poly Silicon Weekly Spot Price"]
["Panasonic Solar Promotes First Group of Authorized Installers to Premium Level",null,null,null,null,"Item ","High ","Low ","Average ","AvgChg ","AvgChg% "]
["Panasonic",null,"2017-07-26",null,null,"PV Grade PolySilicon (9N/9N+) ",19.57,12.5,16.71,0,0]
["Benefiting from the Leading Edge Technology, TZS Announced Mono-Crystalline Wafer Price Modification",null,null,null,null,"2nd Grade PolySilicon (6N-8N) ",17.5,10.5,13.6,0,0]
["TZS",null,"2017-07-18",null,null,"PV Grade PolySilicon in China (9N/9N+) ","Visit here for more Poly-Si price",null,null,null,"%"]
["Canadian Solar Reports First Quarter 2017 Results",null,null,null,null,"PV Grade PolySilicon Outside China (9N/9N+) ","Visit here for more Poly-Si price",null,null,null,"%"]
["CanadianSola",null,"2017-06-06",null,null,"Unit: USD/Kg ","more",null,"Last Update: 2017-09-13"]
["JinkoSolar Announces First Quarter 2017 Financial Results",null,null,null,null,"Definition of PV Grade: Poly silicon chunk with high purity can be directly produced to Solar PV Ingots / Bricks"]
["Jinko",null,"2017-06-05",null,null,"Definition of 2nd Grade: Poly silicon chunk must be mixed with high purity polysilicon, when producing Solar PV Ingots / Bricks."]
["Hanwha Q CELLS Reports ",null,null,null,null,"PolySilicon Price In China: The Price is surveyed by RMB term with Tax and then shown in USD term without 17% of VAT."]
["Hanwha Q Cel",null,"2017-05-25",null,null,"Solar PV Wafer Weekly Spot Price "]
["Latest Solar PV News",null,null,null,null,"Item ","High ","Low ","Average ","AvgChg ","AvgChg% "]
[null,null,null,null,null,"156 mm Multi Solar Wafer ",0.72,0.57999999999999996,0.65700000000000003,-2E-3,-3.0000000000000001E-3]
["Top residential solar power companies in US",null,null,null,null,"156 mm High Eff Multi Solar Wafer ",0.72,0.59,0.66300000000000003,-2E-3,-3.0000000000000001E-3]
["Energy Business Review",null,null,null,"2017-09-16","156 mm Mono Solar Wafer ",0.82,0.74,0.76900000000000002,-1E-3,-1.2999999999999999E-3]
["The scramble for solar is on! Hundreds go solar as discount program ...",null,null,null,null,"156 mm Mono Wafer Outside China ",0.82,0.77,0.79600000000000004,-1E-3,-1.2999999999999999E-3]
["The Courier",null,null,null,"2017-09-16","156 mm Multi Wafer Outside China","Visit here for more detail wafer price information"]
["'Solarize Tonawanda' campaign offers incentive for homeowners to ...",null,null,null,null,"156mm DiamondWire Poly Wafer","Visit here for more detail wafer price information"]
["wivb.com",null,null,null,"2017-09-14","156 mm N-Mono Wafer","Visit here for more detail"]
["Cost of US Solar Drops 75 percent in Six Years, Ahead of Federal ...",null,null,null,null,"Unit: USD ","more",null,"Last Update: 2017-09-13"]
["Yale Environment 360",null,null,null,"2017-09-14","Wafer Prices In China: The Prices are surveyed by RMB term with Tax and then shown in USD term without 17% of VAT."]
["Massive jump in solar energy roll-out means scarcity fears ..."]
["The Sydney Morning Herald",null,null,null,"2017-09-14"]
["Upper Merion Township receives 'SolSmart Bronze' Award for ..."]
["The Times Herald",null,null,null,"2017-09-14"]
["TVA Now Using Solar Energy At New Allen Gas Plant",null,null,null,null,"Solar PV Cell Weekly Spot Price "]
["www.localmemphis.com",null,null,null,"2017-09-14","Item ","High ","Low ","Average ","AvgChg ","AvgChg % "]
["Solar energy industry inefficient",null,null,null,null,"Multi Cell Price Per Watt ",0.26,0.2,0.21099999999999999,-1E-3,-4.7000000000000002E-3]
["Allentown Morning Call",null,null,null,"2017-09-14","Taiwan Poly Cell Per Watt ",0.26,0.2,0.21299999999999999,-1E-3,-4.7000000000000002E-3]
["Phinma Energy to develop solar energy in Batangas",null,null,null,null,"Poly PERC Cell Per Watt ",0.26,0.23,0.247,-1E-3,-4.0000000000000001E-3]
["Inquirer.net",null,null,null,"2017-09-14","Mono PERC Cell Per Watt ",0.32,0.27,0.28499999999999998,-2E-3,-7.0000000000000001E-3]
["Pro-Tech Energy Solutions Named to Solar Power World's Top 500 ...",null,null,null,null,"Taiwan Mono PERC Cell Per Watt ",0.32,0.23,0.29199999999999998,-1E-3,-3.3999999999999998E-3]
["Marketwired (press release)",null,null,null,"2017-09-14","156 mm Multi Solar Cell ",1.19,0.85,0.94599999999999995,-4.0000000000000001E-3,-4.1999999999999997E-3]
["Solar power for Syria: Stepping away from the fuels at the centre of ...",null,null,null,null,"156 mm Mono Solar Cell ",1.64,1.01,1.085,-5.0000000000000001E-3,-4.5999999999999999E-3]
["Power Technology",null,null,null,"2017-09-13","China Poly Cell Per Watt ","Visit here for more detail Cell price information"]
["Sunny Outlook for NJ's Solar Sector, Which Continues to Add Capacity",null,null,null,null,"Non (TW or CN) Poly Cell Per Watt","Visit here for more detail Cell price information"]
["NJ Spotlight",null,null,null,"2017-09-13","Unit: USD ","more",null,"Last Update: 2017-09-13"]
["Massachusetts solar marketplace changing",null,null,null,null,"Solar PV Module Weekly Spot Price "]
["Wicked Local Wayland",null,null,null,"2017-09-13","Item ","High ","Low ","Average ","AvgChg ","AvgChg % "]
["French Ambassador opens solar power plant in Uttarakhand village",null,null,null,null,"Poly Silicon Solar Module ",0.41,0.28000000000000003,0.32200000000000001,-1E-3,-3.0999999999999999E-3]
["ETEnergyworld.com",null,null,null,"2017-09-13","ThinFilm Solar Module ",0.42,0.28999999999999998,0.34100000000000003,0,0]
["Waseda Farms plugs into new energy source with solar power",null,null,null,null,"US Multi Solar Module","Visit here for more detail module price information"]
["Wisconsin State Farmer",null,null,null,"2017-09-13","Mono Silicon Solar Module","Visit here for more detail module price information"]
["Last Update: 2017-Sep- 16 14:01 (GMT+8)",null,null,null,null,"India Poly Module","Visit here for more detail module price information"]
[null,null,null,null,null,"Unit: USD / Watt ","more",null,"Last Update: 2017-09-13"]
[null,null,null,null,null,"All Spot Prices are Tax excluded and updated on Wednesday "]
[]
[]
[]
[]
[]
["Price Methodology","Terms of Use","Privacy Policy ","About Us ","Contact Us ","Site Map"]
["Copyright © 2017 PVinsights.com All rights reserved"]

{"sheet":"pvinsights 30 10 17","index":25,"n_rows":62,"n_cols":13,"rows_kept":62,"cut":false,"hidden":false,"merged":[[4,11,13,11],[14,11,23,11],[51,0,51,4],[52,0,52,4],[53,0,53,4],[51,6,51,10],[52,6,52,10],[53,6,53,7],[53,8,53,10],[3,5,6,10],[28,5,31,10],[26,8,26,10],[41,6,41,10],[42,6,42,10],[26,6,26,7],[11,6,11,9],[57,0,57,4],[58,0,58,4],[59,0,59,4],[54,5,54,10],[55,5,58,10],[54,0,54,4],[55,0,55,4],[56,0,56,4],[12,6,12,9],[13,6,13,7],[13,8,13,10],[23,6,23,10],[48,0,48,4],[41,0,41,3],[42,0,42,4],[33,0,33,3],[34,0,34,4],[35,0,35,3],[36,0,36,4],[37,0,37,3],[28,0,28,4],[29,0,29,3],[30,0,30,4],[31,0,31,3],[49,0,49,3],[50,6,50,10],[50,0,50,4],[18,0,19,4],[24,6,24,10],[25,6,25,10],[43,6,43,7],[43,8,43,10],[43,0,43,3],[44,0,44,4],[45,0,45,3],[46,0,46,4],[47,0,47,3],[38,0,38,4],[39,0,39,3],[40,0,40,4],[32,0,32,4],[23,0,23,3],[24,0,24,4],[25,0,25,3],[26,0,26,4],[27,0,27,3],[17,0,17,1],[7,0,7,2],[20,0,20,4],[21,0,21,3],[22,0,22,4],[12,0,12,2],[13,0,13,1],[14,0,14,2],[15,0,15,1],[16,0,16,2],[4,0,5,4],[8,0,8,2],[9,0,9,1],[10,0,10,2],[11,0,11,1]]}
[null,"Login","Register","Member Center"]
[]
["Home","Why Solar","Retailer Price","Contract Price","Inverter Price","Weekly Snapshots","Price Download","Monthly Insights","Weekly Forecast","Price Forecast","Premier Insights","Premier Data","Advertising"]
[]
["Key Date of The US 2017 Section 201 Safeguard Investigation"]
[]
[]
["Solar PV Corporate News Release",null,null,null,null,"PV Poly Silicon Weekly Spot Price"]
["Panasonic Solar Promotes First Group of Authorized Installers to Premium Level",null,null,null,null,"Item ","High ","Low ","Average ","AvgChg ","AvgChg% "]
["Panasonic",null,"2017-07-26",null,null,"PV Grade PolySilicon (9N/9N+) ",19.3,12.5,16.68,0,0]
["Benefiting from the Leading Edge Technology, TZS Announced Mono-Crystalline Wafer Price Modification",null,null,null,null,"2nd Grade PolySilicon (6N-8N) ",17.350000000000001,10.5,13.57,0,0]
["TZS",null,"2017-07-18",null,null,"PV Grade PolySilicon in China (9N/9N+) ","Visit here for more Poly-Si price",null,null,null,"%"]
["Canadian Solar Reports First Quarter 2017 Results",null,null,null,null,"PV Grade PolySilicon Outside China (9N/9N+) ","Visit here for more Poly-Si price",null,null,null,"%"]
["CanadianSola",null,"2017-06-06",null,null,"Unit: USD/Kg ","more",null,"Last Update: 2017-10-25"]
["JinkoSolar Announces First Quarter 2017 Financial Results",null,null,null,null,"Definition of PV Grade: Poly silicon chunk with high purity can be directly produced to Solar PV Ingots / Bricks"]
["Jinko",null,"2017-06-05",null,null,"Definition of 2nd Grade: Poly silicon chunk must be mixed with high purity polysilicon, when producing Solar PV Ingots / Bricks."]
["Hanwha Q CELLS Reports ",null,null,null,null,"PolySilicon Price In China: The Price is surveyed by RMB term with Tax and then shown in USD term without 17% of VAT."]
["Hanwha Q Cel",null,"2017-05-25",null,null,"Solar PV Wafer Weekly Spot Price "]
["Latest Solar PV News",null,null,null,null,"Item ","High ","Low ","Average ","AvgChg ","AvgChg% "]
[null,null,null,null,null,"156 mm Multi Solar Wafer ",0.69,0.57999999999999996,0.63100000000000001,-3.0000000000000001E-3,-4.7000000000000002E-3]
["Initiate clean cooking movement by tapping solar energy market: PM ...",null,null,null,null,"156 mm High Eff Multi Solar Wafer ",0.69,0.59,0.63700000000000001,-3.0000000000000001E-3,-4.7000000000000002E-3]
["Moneycontrol.com",null,null,null,"2017-10-30","156 mm Mono Solar Wafer ",0.8,0.74,0.76100000000000001,-3.0000000000000001E-3,-3.8999999999999998E-3]
["Solar power making gains",null,null,null,null,"156 mm Mono Wafer Outside China ",0.8,0.77,0.78500000000000003,-5.0000000000000001E-3,-6.3E-3]
["Lethbridge Herald",null,null,null,"2017-10-30","156 mm Multi Wafer Outside China","Visit here for more detail wafer price information"]
["Sun kings: racing across Australia on solar power alone",null,null,null,null,"156mm DiamondWire Poly Wafer","Visit here for more detail wafer price information"]
["Telegraph.co.uk",null,null,null,"2017-10-30","156 mm N-Mono Wafer","Visit here for more detail"]
["Nigeria: Sokoto State Govt to Connect Solar Power in Rural Areas",null,null,null,null,"Unit: USD ","more",null,"Last Update: 2017-10-25"]
["AllAfrica.com",null,null,null,"2017-10-30","Wafer Prices In China: The Prices are surveyed by RMB term with Tax and then shown in USD term without 17% of VAT."]
["PM Narendra Modi says more green energy should power India"]
["Financial Express",null,null,null,"2017-10-30"]
["'Need to focus more on renewable energy'"]
["The Hindu",null,null,null,"2017-10-30"]
["New tech could turn windows into solar panels",null,null,null,null,"Solar PV Cell Weekly Spot Price "]
["The Sydney Morning Herald",null,null,null,"2017-10-30","Item ","High ","Low ","Average ","AvgChg ","AvgChg % "]
["Solar Industry Anxious Ahead Of Tariff Decision",null,null,null,null,"Multi Cell Price Per Watt ",0.24,0.2,0.20399999999999999,-1E-3,-4.8999999999999998E-3]
["NPR",null,null,null,"2017-10-30","Taiwan Poly Cell Per Watt ",0.24,0.2,0.20399999999999999,-1E-3,-4.8999999999999998E-3]
["Two major solar installations quadruple solar in Farmington electric ...",null,null,null,null,"Poly PERC Cell Per Watt ",0.24,0.23,0.23699999999999999,-2E-3,-8.3999999999999995E-3]
["Farmington Daily Times",null,null,null,"2017-10-30","Mono PERC Cell Per Watt ",0.31,0.26,0.27300000000000002,-2E-3,-7.3000000000000001E-3]
["Possible tariff on imported solar panels makes the industry nervous",null,null,null,null,"Taiwan Mono PERC Cell Per Watt ",0.31,0.27,0.27700000000000002,-3.0000000000000001E-3,-1.0699999999999999E-2]
["Los Angeles Times",null,null,null,"2017-10-30","156 mm Multi Solar Cell ",1.1000000000000001,0.85,0.91400000000000003,-4.0000000000000001E-3,-4.4000000000000003E-3]
["Backus renewable energy organization makes global connections",null,null,null,null,"156 mm Mono Solar Cell ",1.59,0.96,1.0349999999999999,-5.0000000000000001E-3,-4.7999999999999996E-3]
["Duluth News Tribune",null,null,null,"2017-10-28","China Poly Cell Per Watt ","Visit here for more detail Cell price information"]
["Interest in solar batteries spikes after Hurricane Irma power outages",null,null,null,null,"Non (TW or CN) Poly Cell Per Watt","Visit here for more detail Cell price information"]
["Bradenton Herald",null,null,null,"2017-10-28","Unit: USD ","more",null,"Last Update: 2017-10-25"]
["Switzerland Solar Energy Market Outlook to 2023 - Research and ...",null,null,null,null,"Solar PV Module Weekly Spot Price "]
["Business Wire (press release)",null,null,null,"2017-10-28","Item ","High ","Low ","Average ","AvgChg ","AvgChg % "]
["Tesla uses solar energy to power Puerto Rico children's hospital",null,null,null,null,"Poly Silicon Solar Module ",0.41,0.28000000000000003,0.318,-1E-3,-3.0999999999999999E-3]
["WSVN 7News | Miami News, Weather, Sports | Fort Lauderdale",null,null,null,"2017-10-27","Poly High Eff / PERC Module ",0.45,0.35,0.38300000000000001,-1E-3,-2.5999999999999999E-3]
["Elon Musk's Tesla delivers solar power to Puerto Rico children's ...",null,null,null,null,"Mono High Eff / PERC Module ",0.55000000000000004,0.39,0.42499999999999999,-2E-3,-4.7000000000000002E-3]
["Telegraph.co.uk",null,null,null,"2017-10-27","ThinFilm Solar Module ",0.42,0.28999999999999998,0.33900000000000002,0,0]
["Last Update: 2017-Oct- 30 23:00 (GMT+8)",null,null,null,null,"US Multi Solar Module","Visit here for more detail module price information"]
[null,null,null,null,null,"Mono Silicon Solar Module","Visit here for more detail module price information"]
[null,null,null,null,null,"India Poly Module","Visit here for more detail module price information"]
[null,null,null,null,null,"Unit: USD / Watt ","more",null,"Last Update: 2017-10-25"]
[null,null,null,null,null,"All Spot Prices are Tax excluded and updated on Wednesday "]
[]
[]
[]
[]
[]
["Price Methodology","Terms of Use","Privacy Policy ","About Us ","Contact Us ","Site Map"]
["Copyright © 2017 PVinsights.com All rights reserved"]

{"sheet":"pvinsights 20 11 17","index":26,"n_rows":62,"n_cols":13,"rows_kept":62,"cut":false,"hidden":false,"merged":[[4,11,13,11],[14,11,23,11],[51,0,51,4],[52,0,52,4],[53,0,53,4],[51,6,51,10],[52,6,52,10],[53,6,53,7],[53,8,53,10],[3,5,6,10],[28,5,31,10],[26,8,26,10],[41,6,41,10],[42,6,42,10],[26,6,26,7],[11,6,11,9],[57,0,57,4],[58,0,58,4],[59,0,59,4],[54,5,54,10],[55,5,58,10],[54,0,54,4],[55,0,55,4],[56,0,56,4],[12,6,12,9],[13,6,13,7],[13,8,13,10],[23,6,23,10],[48,0,48,4],[41,0,41,3],[42,0,42,4],[33,0,33,3],[34,0,34,4],[35,0,35,3],[36,0,36,4],[37,0,37,3],[28,0,28,4],[29,0,29,3],[30,0,30,4],[31,0,31,3],[49,0,49,3],[50,6,50,10],[50,0,50,4],[18,0,19,4],[24,6,24,10],[25,6,25,10],[43,6,43,7],[43,8,43,10],[43,0,43,3],[44,0,44,4],[45,0,45,3],[46,0,46,4],[47,0,47,3],[38,0,38,4],[39,0,39,3],[40,0,40,4],[32,0,32,4],[23,0,23,3],[24,0,24,4],[25,0,25,3],[26,0,26,4],[27,0,27,3],[17,0,17,1],[7,0,7,2],[20,0,20,4],[21,0,21,3],[22,0,22,4],[12,0,12,2],[13,0,13,1],[14,0,14,2],[15,0,15,1],[16,0,16,2],[4,0,5,4],[8,0,8,2],[9,0,9,1],[10,0,10,2],[11,0,11,1]]}
[null,"Login","Register","Member Center"]
[]
["Home","Why Solar","Retailer Price","Contract Price","Inverter Price","Weekly Snapshots","Price Download","Monthly Insights","Weekly Forecast","Price Forecast","Premier Insights","Premier Data","Advertising"]
[]
["Key Date of The US 2017 Section 201 Safeguard Investigation"]
[]
[]
["Solar PV Corporate News Release",null,null,null,null,"PV Poly Silicon Weekly Spot Price"]
["Panasonic Solar Promotes First Group of Authorized Installers to Premium Level",null,null,null,null,"Item ","High ","Low ","Average ","AvgChg ","AvgChg% "]
["Panasonic",null,"2017-07-26",null,null,"PV Grade PolySilicon (9N/9N+) ",19.3,12.5,16.66,0,0]
["Benefiting from the Leading Edge Technology, TZS Announced Mono-Crystalline Wafer Price Modification",null,null,null,null,"2nd Grade PolySilicon (6N-8N) ",17.350000000000001,10.5,13.56,0,0]
["TZS",null,"2017-07-18",null,null,"PV Grade PolySilicon in China (9N/9N+) ","Visit here for more Poly-Si price",null,null,null,"%"]
["Canadian Solar Reports First Quarter 2017 Results",null,null,null,null,"PV Grade PolySilicon Outside China (9N/9N+) ","Visit here for more Poly-Si price",null,null,null,"%"]
["CanadianSola",null,"2017-06-06",null,null,"Unit: USD/Kg ","more",null,"Last Update: 2017-11-15"]
["JinkoSolar Announces First Quarter 2017 Financial Results",null,null,null,null,"Definition of PV Grade: Poly silicon chunk with high purity can be directly produced to Solar PV Ingots / Bricks"]
["Jinko",null,"2017-06-05",null,null,"Definition of 2nd Grade: Poly silicon chunk must be mixed with high purity polysilicon, when producing Solar PV Ingots / Bricks."]
["Hanwha Q CELLS Reports ",null,null,null,null,"PolySilicon Price In China: The Price is surveyed by RMB term with Tax and then shown in USD term without 17% of VAT."]
["Hanwha Q Cel",null,"2017-05-25",null,null,"Solar PV Wafer Weekly Spot Price "]
["Latest Solar PV News",null,null,null,null,"Item ","High ","Low ","Average ","AvgChg ","AvgChg% "]
[null,null,null,null,null,"156 mm Multi Solar Wafer ",0.69,0.57999999999999996,0.626,-1E-3,-1.6000000000000001E-3]
["Man injured after being shot with BB gun in Soulard",null,null,null,null,"156 mm High Eff Multi Solar Wafer ",0.69,0.59,0.63200000000000001,-1E-3,-1.6000000000000001E-3]
["KSDK",null,null,null,"2017-11-20","156 mm Mono Solar Wafer ",0.8,0.72,0.73499999999999999,-5.0000000000000001E-3,-6.7999999999999996E-3]
["Missouri city opens largest solar farm in the state",null,null,null,null,"156 mm Mono Wafer Outside China ",0.8,0.74,0.755,-5.0000000000000001E-3,-6.6E-3]
["STLtoday.com",null,null,null,"2017-11-20","156 mm Multi Wafer Outside China","Visit here for more detail wafer price information"]
["Go Green the Right Way",null,null,null,null,"156mm DiamondWire Poly Wafer","Visit here for more detail wafer price information"]
["RealClearEnergy",null,null,null,"2017-11-20","156 mm N-Mono Wafer","Visit here for more detail"]
["Solar panels on skyscrapers not so farfetched",null,null,null,null,"Unit: USD ","more",null,"Last Update: 2017-11-15"]
["gulfnews.com",null,null,null,"2017-11-20","Wafer Prices In China: The Prices are surveyed by RMB term with Tax and then shown in USD term without 17% of VAT."]
["Solar 'revolution' as residents sharing energy create virtual power ..."]
["ABC Online",null,null,null,"2017-11-20"]
["Beth McKee-Huger: Adding our part to renewable energy supply"]
["Greensboro News & Record",null,null,null,"2017-11-20"]
["AGL to expand energy plan that allows householders to sell or share ...",null,null,null,null,"Solar PV Cell Weekly Spot Price "]
["The Advertiser",null,null,null,"2017-11-20","Item ","High ","Low ","Average ","AvgChg ","AvgChg % "]
["The Coming Solar Energy Age?",null,null,null,null,"Multi Cell Price Per Watt ",0.24,0.19,0.20100000000000001,-1E-3,-5.0000000000000001E-3]
["ValueWalk",null,null,null,"2017-11-20","Taiwan Poly Cell Per Watt ",0.24,0.19,0.20100000000000001,-1E-3,-5.0000000000000001E-3]
["Shallotte Community To Feature Solar Energy, Clean Water Systems",null,null,null,null,"Poly PERC Cell Per Watt ",0.24,0.21,0.23100000000000001,-1E-3,-4.3E-3]
["Greater Wilmington Business Journal",null,null,null,"2017-11-18","Mono PERC Cell Per Watt ",0.31,0.24,0.26300000000000001,-3.0000000000000001E-3,-1.1299999999999999E-2]
["Despite huge Millington project, Tennessee lagging in solar power",null,null,null,null,"Taiwan Mono PERC Cell Per Watt ",0.31,0.25,0.26600000000000001,-3.0000000000000001E-3,-1.12E-2]
["The Commercial Appeal",null,null,null,"2017-11-18","156 mm Multi Solar Cell ",1.1000000000000001,0.81,0.90200000000000002,-5.0000000000000001E-3,-5.4999999999999997E-3]
["Rent-a-roof policy can give residential solar energy the push it ...",null,null,null,null,"156 mm Mono Solar Cell ",1.59,0.91,1.02,-5.0000000000000001E-3,-4.8999999999999998E-3]
["Hindustan Times",null,null,null,"2017-11-18","China Poly Cell Per Watt ","Visit here for more detail Cell price information"]
["Credit Union Place solar panels and storage battery now online in ...",null,null,null,null,"Non (TW or CN) Poly Cell Per Watt","Visit here for more detail Cell price information"]
["The Journal Pioneer",null,null,null,"2017-11-18","Unit: USD ","more",null,"Last Update: 2017-11-15"]
["Solar energy project exceeds expectations in Summerside",null,null,null,null,"Solar PV Module Weekly Spot Price "]
["CBC.ca",null,null,null,"2017-11-18","Item ","High ","Low ","Average ","AvgChg ","AvgChg % "]
["UB-led renewable energy project aims to leverage Buffalo's past ...",null,null,null,null,"Poly Silicon Solar Module ",0.41,0.28000000000000003,0.315,-1E-3,-3.2000000000000002E-3]
["University at Buffalo Reporter",null,null,null,"2017-11-17","Poly High Eff / PERC Module ",0.45,0.35,0.379,-1E-3,-2.5999999999999999E-3]
["Incredible Material That Harvests Light for Energy Just Like Plants ...",null,null,null,null,"Mono High Eff / PERC Module ",0.55000000000000004,0.39,0.41699999999999998,-2E-3,-4.7999999999999996E-3]
["Newsweek",null,null,null,"2017-11-17","ThinFilm Solar Module ",0.42,0.28999999999999998,0.33600000000000002,-1E-3,-3.0000000000000001E-3]
["Last Update: 2017-Nov- 20 20:02 (GMT+8)",null,null,null,null,"US Multi Solar Module","Visit here for more detail module price information"]
[null,null,null,null,null,"Mono Silicon Solar Module","Visit here for more detail module price information"]
[null,null,null,null,null,"India Poly Module","Visit here for more detail module price information"]
[null,null,null,null,null,"Unit: USD / Watt ","more",null,"Last Update: 2017-11-15"]
[null,null,null,null,null,"All Spot Prices are Tax excluded and updated on Wednesday "]
[]
[]
[]
[]
[]
["Price Methodology","Terms of Use","Privacy Policy ","About Us ","Contact Us ","Site Map"]
["Copyright © 2017 PVinsights.com All rights reserved"]

{"sheet":"pvinsights 01 02 18","index":27,"n_rows":62,"n_cols":13,"rows_kept":62,"cut":false,"hidden":false,"merged":[[4,0,5,4],[8,0,8,2],[9,0,9,1],[10,0,10,2],[11,0,11,1],[17,0,17,1],[7,0,7,2],[20,0,20,4],[21,0,21,3],[22,0,22,4],[12,0,12,2],[13,0,13,1],[14,0,14,2],[15,0,15,1],[16,0,16,2],[23,0,23,3],[24,0,24,4],[25,0,25,3],[26,0,26,4],[27,0,27,3],[28,0,28,4],[29,0,29,3],[30,0,30,4],[31,0,31,3],[32,0,32,4],[40,0,40,4],[41,0,41,3],[42,0,42,4],[33,0,33,3],[34,0,34,4],[35,0,35,3],[36,0,36,4],[37,0,37,3],[48,0,48,4],[49,0,49,3],[51,6,51,10],[50,0,50,4],[18,0,19,4],[24,6,24,10],[25,6,25,10],[44,6,44,7],[44,8,44,10],[43,0,43,3],[44,0,44,4],[45,0,45,3],[46,0,46,4],[47,0,47,3],[38,0,38,4],[39,0,39,3],[54,0,54,4],[55,0,55,4],[56,0,56,4],[52,6,52,10],[53,6,53,10],[54,6,54,7],[54,8,54,10],[57,0,57,4],[58,0,58,4],[59,0,59,4],[55,5,55,10],[56,5,59,10],[4,11,13,11],[14,11,23,11],[51,0,51,4],[52,0,52,4],[53,0,53,4],[3,5,6,10],[28,5,31,10],[26,8,26,10],[42,6,42,10],[43,6,43,10],[26,6,26,7],[11,6,11,9],[12,6,12,9],[13,6,13,7],[13,8,13,10],[23,6,23,10]]}
[null,"Login","Register","Member Center"]
[]
["Home","Why Solar","Retailer Price","Contract Price","Inverter Price","Weekly Snapshots","Price Download","Monthly Insights","Weekly Forecast","Price Forecast","Premier Insights","Premier Data","Advertising"]
[]
["Key Date of The US 2017 Section 201 Safeguard Investigation"]
[]
[]
["Solar PV Corporate News Release",null,null,null,null,"PV Poly Silicon Weekly Spot Price"]
["Panasonic Solar Promotes First Group of Authorized Installers to Premium Level",null,null,null,null,"Item ","High ","Low ","Average ","AvgChg ","AvgChg% "]
["Panasonic",null,"2017-07-26",null,null,"PV Grade PolySilicon (9N/9N+) ",20.25,13,17.440000000000001,-0.25,-1.41E-2]
["Benefiting from the Leading Edge Technology, TZS Announced Mono-Crystalline Wafer Price Modification",null,null,null,null,"2nd Grade PolySilicon (6N-8N) ",17.8,11,14.08,-0.22,-1.54E-2]
["TZS",null,"2017-07-18",null,null,"PV Grade PolySilicon in China (9N/9N+) ","Visit here for more Poly-Si price",null,null,null,"%"]
["Canadian Solar Reports First Quarter 2017 Results",null,null,null,null,"PV Grade PolySilicon Outside China (9N/9N+) ","Visit here for more Poly-Si price",null,null,null,"%"]
["CanadianSola",null,"2017-06-06",null,null,"Unit: USD/Kg ","more",null,"Last Update: 2018-01-31"]
["JinkoSolar Announces First Quarter 2017 Financial Results",null,null,null,null,"Definition of PV Grade: Poly silicon chunk with high purity can be directly produced to Solar PV Ingots / Bricks"]
["Jinko",null,"2017-06-05",null,null,"Definition of 2nd Grade: Poly silicon chunk must be mixed with high purity polysilicon, when producing Solar PV Ingots / Bricks."]
["Hanwha Q CELLS Reports ",null,null,null,null,"PolySilicon Price In China: The Price is surveyed by RMB term with Tax and then shown in USD term without 17% of VAT."]
["Hanwha Q Cel",null,"2017-05-25",null,null,"Solar PV Wafer Weekly Spot Price "]
["Latest Solar PV News",null,null,null,null,"Item ","High ","Low ","Average ","AvgChg ","AvgChg% "]
[null,null,null,null,null,"156 mm Multi Solar Wafer ",0.65,0.52,0.55700000000000005,-4.1000000000000002E-2,-6.8599999999999994E-2]
["India achieves 20 GW solar capacity goal four years ahead of deadline",null,null,null,null,"156 mm High Eff Multi Solar Wafer ",0.65,0.53,0.56299999999999994,-4.1000000000000002E-2,-6.7900000000000002E-2]
["Business Today",null,null,null,"2018-02-01","156 mm Mono Solar Wafer ",0.77,0.65,0.67400000000000004,-1.4E-2,-2.0299999999999999E-2]
["Solar tariff's impact on New Mexico renewable energy disputed",null,null,null,null,"156 mm Mono Wafer Outside China ",0.77,0.67,0.68500000000000005,-1.4E-2,-0.02]
["Deming Headlight",null,null,null,"2018-02-01","156 mm Multi Wafer Outside China","Visit here for more detail wafer price information"]
["Shining a light on agricultural solar energy development",null,null,null,null,"156mm DiamondWire Poly Wafer","Visit here for more detail wafer price information"]
["Michigan State University Extension",null,null,null,"2018-02-01","156 mm N-Mono Wafer","Visit here for more detail"]
["Trump administration to 'cut renewable energy office budget by ...",null,null,null,null,"Unit: USD ","more",null,"Last Update: 2018-01-31"]
["The Independent",null,null,null,"2018-02-01","Wafer Prices In China: The Prices are surveyed by RMB term with Tax and then shown in USD term without 17% of VAT."]
["The9 Singapore and a Solar Energy Company Signed a Partnership ..."]
["The Financial",null,null,null,"2018-02-01"]
["Mayor of London launches £34 million energy efficiency and solar ..."]
["Climate Action Programme",null,null,null,"2018-02-01"]
["Lawmakers Are Divided on How to Best Implement Renewable ...",null,null,null,null,"Solar PV Cell Weekly Spot Price "]
["WVTF",null,null,null,"2018-02-01","Item ","High ","Low ","Average ","AvgChg ","AvgChg % "]
["Why I Chose Solar Power: A Self-Storage Owner Shares His Insight",null,null,null,null,"Multi Cell Price Per Watt ",0.24,0.17,0.187,-7.0000000000000001E-3,-3.61E-2]
["Inside Self",null,null,null,"2018-02-01","Non China Poly Cell Per Watt ",0.24,0.18,0.191,-5.0000000000000001E-3,-2.5499999999999998E-2]
["Alberta urged to require licensed land agents as wind and solar ...",null,null,null,null,"Poly PERC Cell Per Watt ",0.24,0.19,0.20399999999999999,-1.2999999999999999E-2,-5.9900000000000002E-2]
["CBC.ca",null,null,null,"2018-02-01","Non China Poly PERC Cell Per Watt ",0.24,0.19,0.20599999999999999,-1.0999999999999999E-2,-5.0700000000000002E-2]
["White House to ask for 72 percent cut in renewable energy ...",null,null,null,null,"Mono PERC Cell Per Watt ",0.27,0.21,0.223,-3.0000000000000001E-3,-1.3299999999999999E-2]
["The Hill",null,null,null,"2018-02-01","Non China Mono PERC Cell Per Watt ",0.27,0.21,0.22500000000000001,-3.0000000000000001E-3,-1.32E-2]
["Solar Cooperatives Launched In St. Petersburg To Broaden Support ...",null,null,null,null,"156 mm Multi Solar Cell ",1.1000000000000001,0.72,0.83799999999999997,-3.5000000000000003E-2,-4.0099999999999997E-2]
["WGCU News",null,null,null,"2018-02-01","156 mm Mono Solar Cell ",1.39,0.86,0.94,-0.02,-2.0799999999999999E-2]
["Is a Transition to Renewable Energy on the Verge of Being ...",null,null,null,null,"China Poly Cell Per Watt ","Visit here for more detail Cell price information"]
["Knowledge@Wharton",null,null,null,"2018-02-01","Non (TW or CN) Poly Cell Per Watt","Visit here for more detail Cell price information"]
["Solar energy can create more good jobs",null,null,null,null,"Unit: USD ","more",null,"Last Update: 2018-01-31"]
["Newton Daily News",null,null,null,"2018-02-01","Solar PV Module Weekly Spot Price "]
["IREDA, Rewa Ultra Mega Solar sign loan agreement",null,null,null,null,"Item ","High ","Low ","Average ","AvgChg ","AvgChg % "]
["Business Line",null,null,null,"2018-02-01","Poly Silicon Solar Module ",0.41,0.27,0.31,0,0]
["Montana solar panel installers not fazed by new tariff",null,null,null,null,"Poly High Eff / PERC Module ",0.45,0.33,0.36799999999999999,0,0]
["NBC Montana",null,null,null,"2018-02-01","Mono High Eff / PERC Module ",0.55000000000000004,0.34,0.39600000000000002,0,0]
["Last Update: 2018-Feb- 01 23:00 (GMT+8)",null,null,null,null,"ThinFilm Solar Module ",0.42,0.28999999999999998,0.33100000000000002,0,0]
[null,null,null,null,null,"US Multi Solar Module","Visit here for more detail module price information"]
[null,null,null,null,null,"Mono Silicon Solar Module","Visit here for more detail module price information"]
[null,null,null,null,null,"India Poly Module","Visit here for more detail module price information"]
[null,null,null,null,null,"Unit: USD / Watt ","more",null,"Last Update: 2018-01-31"]
[null,null,null,null,null,"All Spot Prices are Tax excluded and updated on Wednesday "]
[]
[]
[]
[]
["Price Methodology","Terms of Use","Privacy Policy ","About Us ","Contact Us ","Site Map"]
["Copyright © 2018 PVinsights.com All rights reserved"]

{"sheet":"pvinsights 14 02 18","index":28,"n_rows":62,"n_cols":13,"rows_kept":62,"cut":false,"hidden":false,"merged":[[4,11,13,11],[14,11,23,11],[51,0,51,4],[52,0,52,4],[53,0,53,4],[3,5,6,10],[28,5,31,10],[26,8,26,10],[42,6,42,10],[43,6,43,10],[26,6,26,7],[11,6,11,9],[12,6,12,9],[13,6,13,7],[13,8,13,10],[23,6,23,10],[57,0,57,4],[58,0,58,4],[59,0,59,4],[55,5,55,10],[56,5,59,10],[54,0,54,4],[55,0,55,4],[56,0,56,4],[52,6,52,10],[53,6,53,10],[54,6,54,7],[54,8,54,10],[48,0,48,4],[49,0,49,3],[51,6,51,10],[50,0,50,4],[18,0,19,4],[24,6,24,10],[25,6,25,10],[44,6,44,7],[44,8,44,10],[43,0,43,3],[44,0,44,4],[45,0,45,3],[46,0,46,4],[47,0,47,3],[38,0,38,4],[39,0,39,3],[40,0,40,4],[41,0,41,3],[42,0,42,4],[33,0,33,3],[34,0,34,4],[35,0,35,3],[36,0,36,4],[37,0,37,3],[28,0,28,4],[29,0,29,3],[30,0,30,4],[31,0,31,3],[32,0,32,4],[23,0,23,3],[24,0,24,4],[25,0,25,3],[26,0,26,4],[27,0,27,3],[17,0,17,1],[7,0,7,2],[20,0,20,4],[21,0,21,3],[22,0,22,4],[12,0,12,2],[13,0,13,1],[14,0,14,2],[15,0,15,1],[16,0,16,2],[4,0,5,4],[8,0,8,2],[9,0,9,1],[10,0,10,2],[11,0,11,1]]}
[null,"Login","Register","Member Center"]
[]
["Home","Why Solar","Retailer Price","Contract Price","Inverter Price","Weekly Snapshots","Price Download","Monthly Insights","Weekly Forecast","Price Forecast","Premier Insights","Premier Data","Advertising"]
[]
["Key Date of The US 2017 Section 201 Safeguard Investigation"]
[]
[]
["Solar PV Corporate News Release",null,null,null,null,"PV Poly Silicon Weekly Spot Price"]
["Panasonic Solar Promotes First Group of Authorized Installers to Premium Level",null,null,null,null,"Item ","High ","Low ","Average ","AvgChg ","AvgChg% "]
["Panasonic",null,"2017-07-26",null,null,"PV Grade PolySilicon (9N/9N+) ",18.649999999999999,13,16.32,-0.27,-1.6299999999999999E-2]
["Benefiting from the Leading Edge Technology, TZS Announced Mono-Crystalline Wafer Price Modification",null,null,null,null,"2nd Grade PolySilicon (6N-8N) ",16.5,11,13.41,-0.16,-1.18E-2]
["TZS",null,"2017-07-18",null,null,"PV Grade PolySilicon in China (9N/9N+) ","Visit here for more Poly-Si price",null,null,null,"%"]
["Canadian Solar Reports First Quarter 2017 Results",null,null,null,null,"PV Grade PolySilicon Outside China (9N/9N+) ","Visit here for more Poly-Si price",null,null,null,"%"]
["CanadianSola",null,"2017-06-06",null,null,"Unit: USD/Kg ","more",null,"Last Update: 2018-02-14"]
["JinkoSolar Announces First Quarter 2017 Financial Results",null,null,null,null,"Definition of PV Grade: Poly silicon chunk with high purity can be directly produced to Solar PV Ingots / Bricks"]
["Jinko",null,"2017-06-05",null,null,"Definition of 2nd Grade: Poly silicon chunk must be mixed with high purity polysilicon, when producing Solar PV Ingots / Bricks."]
["Hanwha Q CELLS Reports ",null,null,null,null,"PolySilicon Price In China: The Price is surveyed by RMB term with Tax and then shown in USD term without 17% of VAT."]
["Hanwha Q Cel",null,"2017-05-25",null,null,"Solar PV Wafer Weekly Spot Price "]
["Latest Solar PV News",null,null,null,null,"Item ","High ","Low ","Average ","AvgChg ","AvgChg% "]
[null,null,null,null,null,"156 mm Multi Solar Wafer ",0.6,0.52,0.53400000000000003,-2E-3,-3.7000000000000002E-3]
["Schaumburg Receives Silver Designation for Advancements in ...",null,null,null,null,"156 mm High Eff Multi Solar Wafer ",0.6,0.53,0.54,-2E-3,-3.7000000000000002E-3]
["Chicago Tribune",null,null,null,"2018-02-15","156 mm Mono Solar Wafer ",0.74,0.64,0.65500000000000003,-2E-3,-3.0000000000000001E-3]
["Florida Matters Re-Broadcast: Solar Power In The Sunshine State",null,null,null,null,"156 mm Mono Wafer Outside China ",0.74,0.65,0.66600000000000004,-2E-3,-3.0000000000000001E-3]
["WUSF News",null,null,null,"2018-02-15","156 mm Multi Wafer Outside China","Visit here for more detail wafer price information"]
["Case to decide if Ann Arbor can keep taxing solar energy systems",null,null,null,null,"156mm DiamondWire Poly Wafer","Visit here for more detail wafer price information"]
["MLive.com",null,null,null,"2018-02-15","156 mm N-Mono Wafer","Visit here for more detail"]
["Renewable energy still trending up for Delaware with solar, wind ...",null,null,null,null,"Unit: USD ","more",null,"Last Update: 2018-02-14"]
["Delmarva Daily Times",null,null,null,"2018-02-15","Wafer Prices In China: The Prices are surveyed by RMB term with Tax and then shown in USD term without 17% of VAT."]
["Tasmanian State Election 2018: Labor pushes for solar power stations"]
["The Mercury",null,null,null,"2018-02-15"]
["Putnam County expands zoning ordinance to allow for solar energy"]
["LaSalle News Tribune",null,null,null,"2018-02-15"]
["IBC SOLAR and EVBox announce partnership to combine solar ...",null,null,null,null,"Solar PV Cell Weekly Spot Price "]
["Sun & Wind Energy",null,null,null,"2018-02-15","Item ","High ","Low ","Average ","AvgChg ","AvgChg % "]
["BP School District Is Looking At Solar Energy",null,null,null,null,"Multi Cell Price Per Watt ",0.24,0.17,0.182,-1E-3,-5.4999999999999997E-3]
["Belleplaineherald",null,null,null,"2018-02-15","Non China Poly Cell Per Watt ",0.24,0.18,0.185,-1E-3,-5.4000000000000003E-3]
["Time is up for solar subsidies pushed by the elite, anti-coal activists",null,null,null,null,"Poly PERC Cell Per Watt ",0.24,0.19,0.19900000000000001,-1E-3,-5.0000000000000001E-3]
["Lexington Herald Leader",null,null,null,"2018-02-15","Non China Poly PERC Cell Per Watt ",0.24,0.19,0.2,-1E-3,-5.0000000000000001E-3]
["In Brief: the Economics of Renewable Energy",null,null,null,null,"Mono PERC Cell Per Watt ",0.27,0.21,0.219,-1E-3,-4.4999999999999997E-3]
["Albany Times Union (blog)",null,null,null,"2018-02-15","Non China Mono PERC Cell Per Watt ",0.27,0.21,0.221,-1E-3,-4.4999999999999997E-3]
["Solar energy garden draws concerns over glare, property values",null,null,null,null,"156 mm Multi Solar Cell ",1.1000000000000001,0.72,0.81599999999999995,-5.0000000000000001E-3,-6.1000000000000004E-3]
["Mountain Mail Newspaper",null,null,null,"2018-02-15","156 mm Mono Solar Cell ",1.39,0.86,0.93,-5.0000000000000001E-3,-5.3E-3]
["Mysuru City Corporation finally takes the solar route",null,null,null,null,"China Poly Cell Per Watt ","Visit here for more detail Cell price information"]
["The Hindu",null,null,null,"2018-02-14","Non (TW or CN) Poly Cell Per Watt","Visit here for more detail Cell price information"]
["Billionaire Trump Foe Behind Solar Energy Measures in Arizona ...",null,null,null,null,"Unit: USD ","more",null,"Last Update: 2018-02-14"]
["Phoenix New Times",null,null,null,"2018-02-14","Solar PV Module Weekly Spot Price "]
["Iowa solar advocates fear proposals would stunt industry growth",null,null,null,null,"Item ","High ","Low ","Average ","AvgChg ","AvgChg % "]
["Quad City Times",null,null,null,"2018-02-14","Poly Silicon Solar Module ",0.41,0.27,0.309,0,0]
["'PDO aims to be leading player in solar energy development in region'",null,null,null,null,"Poly High Eff / PERC Module ",0.45,0.32,0.36599999999999999,-1E-3,-2.7000000000000001E-3]
["Muscat Daily",null,null,null,"2018-02-14","Mono High Eff / PERC Module ",0.55000000000000004,0.33,0.39300000000000002,-1E-3,-2.5000000000000001E-3]
["Last Update: 2018-Feb- 15 07:00 (GMT+8)",null,null,null,null,"ThinFilm Solar Module ",0.42,0.28999999999999998,0.33,0,0]
[null,null,null,null,null,"US Multi Solar Module","Visit here for more detail module price information"]
[null,null,null,null,null,"Mono Silicon Solar Module","Visit here for more detail module price information"]
[null,null,null,null,null,"India Poly Module","Visit here for more detail module price information"]
[null,null,null,null,null,"Unit: USD / Watt ","more",null,"Last Update: 2018-02-14"]
[null,null,null,null,null,"All Spot Prices are Tax excluded and updated on Wednesday "]
[]
[]
[]
[]
["Price Methodology","Terms of Use","Privacy Policy ","About Us ","Contact Us ","Site Map"]
["Copyright © 2018 PVinsights.com All rights reserved"]

{"sheet":"pvinsights 09 04 18","index":29,"n_rows":62,"n_cols":13,"rows_kept":62,"cut":false,"hidden":false,"merged":[[4,0,5,4],[8,0,8,2],[9,0,9,1],[10,0,10,2],[11,0,11,1],[17,0,17,1],[7,0,7,2],[20,0,20,4],[21,0,21,3],[22,0,22,4],[12,0,12,2],[13,0,13,1],[14,0,14,2],[15,0,15,1],[16,0,16,2],[23,0,23,3],[24,0,24,4],[25,0,25,3],[26,0,26,4],[27,0,27,3],[28,0,28,4],[29,0,29,3],[30,0,30,4],[31,0,31,3],[32,0,32,4],[40,0,40,4],[41,0,41,3],[42,0,42,4],[33,0,33,3],[34,0,34,4],[35,0,35,3],[36,0,36,4],[37,0,37,3],[48,0,48,4],[49,0,49,3],[51,6,51,10],[50,0,50,4],[18,0,19,4],[24,6,24,10],[25,6,25,10],[44,6,44,7],[44,8,44,10],[43,0,43,3],[44,0,44,4],[45,0,45,3],[46,0,46,4],[47,0,47,3],[38,0,38,4],[39,0,39,3],[54,0,54,4],[55,0,55,4],[56,0,56,4],[52,6,52,10],[53,6,53,10],[54,6,54,7],[54,8,54,10],[57,0,57,4],[58,0,58,4],[59,0,59,4],[55,5,55,10],[56,5,59,10],[4,11,13,11],[14,11,23,11],[51,0,51,4],[52,0,52,4],[53,0,53,4],[3,5,6,10],[28,5,31,10],[26,8,26,10],[42,6,42,10],[43,6,43,10],[26,6,26,7],[11,6,11,9],[12,6,12,9],[13,6,13,7],[13,8,13,10],[23,6,23,10]]}
[null,"Login","Register","Member Center"]
[]
["Home","Why Solar","Retailer Price","Contract Price","Inverter Price","Weekly Snapshots","Price Download","Monthly Insights","Weekly Forecast","Price Forecast","Premier Insights","Premier Data","Advertising"]
[]
["Key Date of The US 2017 Section 201 Safeguard Investigation"]
[]
[]
["Solar PV Corporate News Release",null,null,null,null,"PV Poly Silicon Weekly Spot Price"]
["Canadian Solar Reports Fourth Quarter and Full Year 2017 Results",null,null,null,null,"Item ","High ","Low ","Average ","AvgChg ","AvgChg% "]
["Canadian Sol",null,"2018-03-19",null,null,"PV Grade PolySilicon (9N/9N+) ",17.7,13,15.41,0.5,3.3500000000000002E-2]
["First Solar, Inc. Announces Fourth Quarter & Full Year 2017 Financial Results ",null,null,null,null,"2nd Grade PolySilicon (6N-8N) ",15.8,11,12.92,0.44,3.5299999999999998E-2]
["First Solar",null,"2018-02-23",null,null,"PV Grade PolySilicon in China (9N/9N+) ","Visit here for more Poly-Si price",null,null,null,"%"]
["SunPower Reports Fourth Quarter and FY 2017 Results",null,null,null,null,"PV Grade PolySilicon Outside China (9N/9N+) ","Visit here for more Poly-Si price",null,null,null,"%"]
["Sunpower",null,"2018-02-15",null,null,"Unit: USD/Kg ","more",null,"Last Update: 2018-04-04"]
["Panasonic Solar Promotes First Group of Authorized Installers to Premium Level",null,null,null,null,"Definition of PV Grade: Poly silicon chunk with high purity can be directly produced to Solar PV Ingots / Bricks"]
["Panasonic",null,"2017-07-26",null,null,"Definition of 2nd Grade: Poly silicon chunk must be mixed with high purity polysilicon, when producing Solar PV Ingots / Bricks."]
["Benefiting from the Leading Edge Technology, TZS Announced Mono-Crystalline Wafer Price Modification",null,null,null,null,"PolySilicon Price In China: The Price is surveyed by RMB term with Tax and then shown in USD term without 17% of VAT."]
["TZS",null,"2017-07-18",null,null,"Solar PV Wafer Weekly Spot Price "]
["Latest Solar PV News",null,null,null,null,"Item ","High ","Low ","Average ","AvgChg ","AvgChg% "]
[null,null,null,null,null,"156 mm Multi Solar Wafer ",0.57999999999999996,0.48,0.503,-1E-3,-2E-3]
["Google Say Renewable Energy Purchases Exceeded Consumption ...",null,null,null,null,"156 mm High Eff Multi Solar Wafer ",0.57999999999999996,0.49,0.50900000000000001,-1E-3,-2E-3]
["eWeek",null,null,null,"2018-04-09","156 mm Mono Solar Wafer ",0.72,0.57999999999999996,0.61499999999999999,0,0]
["Sydney man touts household energy bill that is cheaper than his ...",null,null,null,null,"156 mm Mono Wafer Outside China ",0.72,0.57999999999999996,0.62,0,0]
["NEWS.com.au",null,null,null,"2018-04-09","156 mm Multi Wafer Outside China","Visit here for more detail wafer price information"]
["Solar farms receive more cash from green subsidies than selling the ...",null,null,null,null,"156mm DiamondWire Poly Wafer","Visit here for more detail wafer price information"]
["Daily Mail",null,null,null,"2018-04-09","156 mm N-Mono Wafer","Visit here for more detail"]
["81000 solar panels: Washington's largest solar farm planned near ...",null,null,null,null,"Unit: USD ","more",null,"Last Update: 2018-04-04"]
["The Spokesman",null,null,null,"2018-04-09","Wafer Prices In China: The Prices are surveyed by RMB term with Tax and then shown in USD term without 17% of VAT."]
["Salt Lake City rises above many other American cities for solar energy"]
["WTVA",null,null,null,"2018-04-09"]
["Solar Energy Leads New Investments in Power Generation, Says ..."]
["Prensa Latina",null,null,null,"2018-04-09"]
["Melbourne solar panel users ditching major retailers for a ...",null,null,null,null,"Solar PV Cell Weekly Spot Price "]
["Herald Sun",null,null,null,"2018-04-09","Item ","High ","Low ","Average ","AvgChg ","AvgChg % "]
["Montana's largest utility overpays for rooftop solar energy, study ...",null,null,null,null,"Multi Cell Price Per Watt ",0.24,0.16,0.17699999999999999,0,0]
["Billings Gazette",null,null,null,"2018-04-09","Non China Poly Cell Per Watt ",0.24,0.16,0.17899999999999999,0,0]
["Solar array set for old Troy landfill",null,null,null,null,"Poly PERC Cell Per Watt ",0.24,0.18,0.19400000000000001,0,0]
["Troy Record",null,null,null,"2018-04-09","Non China Poly PERC Cell Per Watt ",0.24,0.18,0.19500000000000001,0,0]
["How Standing Rock Is Leading by Example on Renewable Energy",null,null,null,null,"Mono PERC Cell Per Watt ",0.26,0.2,0.21,-1E-3,-4.7000000000000002E-3]
["Truth",null,null,null,"2018-04-09","Non China Mono PERC Cell Per Watt ",0.26,0.2,0.21299999999999999,-1E-3,-4.7000000000000002E-3]
["China becomes driving force for global surge in solar energy ...",null,null,null,null,"156 mm Multi Solar Cell ",1.1000000000000001,0.7,0.80800000000000005,0,0]
["Xinhua",null,null,null,"2018-04-09","156 mm Mono Solar Cell ",1.33,0.82,0.90500000000000003,0,0]
["Big push for renewable energy as companies plan to invest more ...",null,null,null,null,"China Poly Cell Per Watt ","Visit here for more detail Cell price information"]
["The Nation",null,null,null,"2018-04-09","Non (TW or CN) Poly Cell Per Watt","Visit here for more detail Cell price information"]
["$5m Solar Energy Park Planned For Grand Bahama",null,null,null,null,"Unit: USD ","more",null,"Last Update: 2018-04-04"]
["Bahamas Tribune",null,null,null,"2018-04-07","Solar PV Module Weekly Spot Price "]
["FGCU using solar energy, go-karts to further sustainability initiatives",null,null,null,null,"Item ","High ","Low ","Average ","AvgChg ","AvgChg % "]
["Wink News",null,null,null,"2018-04-07","Poly Silicon Solar Module ",0.41,0.27,0.30199999999999999,0,0]
["EnergyAustralia launches trial to boost solar energy installations",null,null,null,null,"Poly High Eff / PERC Module ",0.45,0.32,0.35399999999999998,-2E-3,-5.5999999999999999E-3]
["Herald Sun",null,null,null,"2018-04-07","Mono High Eff / PERC Module ",0.55000000000000004,0.33,0.38100000000000001,-2E-3,-5.1999999999999998E-3]
["Last Update: 2018-Apr- 09 23:00 (GMT+8)",null,null,null,null,"ThinFilm Solar Module ",0.42,0.28999999999999998,0.32200000000000001,-1E-3,-3.0999999999999999E-3]
[null,null,null,null,null,"US Multi Solar Module","Visit here for more detail module price information"]
[null,null,null,null,null,"Mono Silicon Solar Module","Visit here for more detail module price information"]
[null,null,null,null,null,"India Poly Module","Visit here for more detail module price information"]
[null,null,null,null,null,"Unit: USD / Watt ","more",null,"Last Update: 2018-04-04"]
[null,null,null,null,null,"All Spot Prices are Tax excluded and updated on Wednesday "]
[]
[]
[]
[]
["Price Methodology","Terms of Use","Privacy Policy ","About Us ","Contact Us ","Site Map"]
["Copyright © 2018 PVinsights.com All rights reserved"]

{"sheet":"pvinsights 05 06 18","index":30,"n_rows":58,"n_cols":13,"rows_kept":58,"cut":false,"hidden":false,"merged":[[4,0,5,4],[8,0,8,2],[9,0,9,1],[10,0,10,2],[11,0,11,1],[17,0,17,1],[7,0,7,2],[20,0,20,4],[21,0,21,3],[22,0,22,4],[12,0,12,2],[13,0,13,1],[14,0,14,2],[15,0,15,1],[16,0,16,2],[23,0,23,3],[24,0,24,4],[25,0,25,3],[26,0,26,4],[27,0,27,3],[28,0,28,4],[29,0,29,3],[30,0,30,4],[31,0,31,3],[32,0,32,4],[33,0,33,3],[34,0,34,4],[35,0,35,3],[36,0,36,4],[37,0,37,3],[38,0,38,4],[39,0,39,3],[40,0,40,4],[41,0,41,3],[42,0,42,4],[7,6,7,9],[8,6,8,9],[9,6,9,7],[9,8,9,10],[19,6,19,10],[47,6,47,10],[48,0,48,4],[49,0,49,3],[50,0,50,4],[18,0,19,4],[20,6,20,10],[21,6,21,10],[22,6,22,7],[50,6,50,7],[50,8,50,10],[24,5,27,10],[43,0,43,3],[44,0,44,4],[45,0,45,3],[46,0,46,4],[47,0,47,3],[52,5,55,10],[4,11,13,11],[14,11,23,11],[51,0,51,4],[52,0,52,4],[53,0,53,4],[54,0,54,4],[55,0,55,4],[48,6,48,10],[49,6,49,10],[51,5,51,10],[22,8,22,10],[38,6,38,10],[39,6,39,10],[40,6,40,7],[40,8,40,10]]}
[null,"Login","Register","Member Center"]
[]
["Home","Why Solar","Retailer Price","Contract Price","Inverter Price","Weekly Snapshots","Price Download","Monthly Insights","Weekly Forecast","Price Forecast","Premier Insights","Premier Data","Advertising"]
[null,null,null,null,null,"PV Poly Silicon Weekly Spot Price"]
["Key Date of The US 2017 Section 201 Safeguard Investigation",null,null,null,null,"Item ","High ","Low ","Average ","AvgChg ","AvgChg% "]
[null,null,null,null,null,"PV Grade PolySilicon (9N/9N+) ",16.43,12.9,14.65,-0.49,-3.2399999999999998E-2]
[null,null,null,null,null,"2nd Grade PolySilicon (6N-8N) ",14.75,11,12.3,-0.38,-0.03]
["Solar PV Corporate News Release",null,null,null,null,"PV Grade PolySilicon in China (9N/9N+) ","Visit here for more Poly-Si price",null,null,null,"%"]
["Canadian Solar Reports First Quarter 2018 Results",null,null,null,null,"PV Grade PolySilicon Outside China (9N/9N+) ","Visit here for more Poly-Si price",null,null,null,"%"]
["Canadian Sol",null,"2018-05-16",null,null,"Unit: USD/Kg ","more",null,"Last Update: 2018-05-30"]
["With 4GW advance PERC capacity, Aiko Solar is now the best and largest PERC cell supplier over the world",null,null,null,null,"Definition of PV Grade: Poly silicon chunk with high purity can be directly produced to Solar PV Ingots / Bricks"]
["Aiko Solar",null,"2018-05-14",null,null,"Definition of 2nd Grade: Poly silicon chunk must be mixed with high purity polysilicon, when producing Solar PV Ingots / Bricks."]
["Hanwha Q CELLS Reports First Quarter 2018 Results",null,null,null,null,"PolySilicon Price In China: The Price is surveyed by RMB term with Tax and then shown in USD term without 16% of VAT after May 1, 2018 and 17% of VAT before May 1, 2018."]
["Hanwha Q-Cel",null,"2018-05-14",null,null,"Solar PV Wafer Weekly Spot Price "]
["JA Solar Announces Fourth Quarter and Fiscal Year 2017 Results",null,null,null,null,"Item ","High ","Low ","Average ","AvgChg ","AvgChg% "]
["JA Solar",null,"2018-04-30",null,null,"156 mm Multi Solar Wafer ",0.47,0.39,0.41499999999999998,-0.03,-6.7400000000000002E-2]
["First Solar, Inc. Announces First Quarter 2018 Financial Results",null,null,null,null,"156 mm High Eff Multi Solar Wafer ",0.47,0.4,0.42,-0.03,-6.6699999999999995E-2]
["First Solar",null,"2018-04-27",null,null,"156 mm Mono Solar Wafer ",0.64,0.54,0.56799999999999995,-2.1999999999999999E-2,-3.73E-2]
["Latest Solar PV News",null,null,null,null,"156 mm Mono Wafer Outside China ",0.64,0.54,0.57799999999999996,-2.1999999999999999E-2,-3.6700000000000003E-2]
[null,null,null,null,null,"156 mm Multi Wafer Outside China","Visit here for more detail wafer price information"]
["Video: 'Finger' Solar Power Project Signing",null,null,null,null,"156mm DiamondWire Poly Wafer","Visit here for more detail wafer price information"]
["Bernews",null,null,null,"2018-06-05","156 mm N-Mono Wafer","Visit here for more detail"]
["Florida community enjoys near-free solar power",null,null,null,null,"Unit: USD ","more",null,"Last Update: 2018-05-30"]
["FOX 13 News, Tampa Bay",null,null,null,"2018-06-05","Wafer Prices In China: The Prices are surveyed by RMB term with Tax and then shown in USD term without 16% of VAT after May 1, 2018 and 17% of VAT before May 1, 2018."]
["Solar energy transforming agricultural scenario in MP"]
["Daily Pioneer",null,null,null,"2018-06-05"]
["Warning about solar panels after fire in Wellbrooke Gardens"]
["Daily Echo",null,null,null,"2018-06-05"]
["PPL acquires solar power company",null,null,null,null,"Solar PV Cell Weekly Spot Price "]
["Reading Eagle",null,null,null,"2018-06-05","Item ","High ","Low ","Average ","AvgChg ","AvgChg % "]
["Ulverstone Neighbourhood House gets solar power grant from ...",null,null,null,null,"Multi Cell Price Per Watt ",0.24,0.15,0.17,-2E-3,-1.1599999999999999E-2]
["The Advocate",null,null,null,"2018-06-05","Non China Poly Cell Per Watt ",0.24,0.15,0.17,-2E-3,-1.1599999999999999E-2]
["China Focus: China fuels clean energy growth",null,null,null,null,"Poly PERC Cell Per Watt ",0.24,0.18,0.191,-2E-3,-1.04E-2]
["Xinhua",null,null,null,"2018-06-05","Non China Poly PERC Cell Per Watt ",0.24,0.18,0.193,-2E-3,-1.03E-2]
["Inside the New Technology That Could Transform the Solar Power ...",null,null,null,null,"Mono PERC Cell Per Watt ",0.26,0.2,0.20699999999999999,-2E-3,-9.5999999999999992E-3]
["TIME",null,null,null,"2018-06-05","Non China Mono PERC Cell Per Watt ",0.26,0.2,0.20899999999999999,-2E-3,-9.4999999999999998E-3]
["Solar energy systems installed at three NYSDOT locations in WNY",null,null,null,null,"156 mm Multi Solar Cell ",1.1000000000000001,0.66,0.77600000000000002,-6.0000000000000001E-3,-7.7000000000000002E-3]
["WIVB",null,null,null,"2018-06-05","156 mm Mono Solar Cell ",1.33,0.82,0.89,-0.01,-1.11E-2]
["Solar power plant deal signed",null,null,null,null,"China Poly Cell Per Watt ","Visit here for more detail Cell price information"]
["Royal Gazette",null,null,null,"2018-06-05","Non (TW or CN) Poly Cell Per Watt","Visit here for more detail Cell price information"]
["Discoms to buy 750 MW solar power",null,null,null,null,"Unit: USD ","more",null,"Last Update: 2018-05-30"]
["The Hindu",null,null,null,"2018-06-05","Solar PV Module Weekly Spot Price "]
["Your Town Minocqua: Lakeland HS solar panels educate students ...",null,null,null,null,"Item ","High ","Low ","Average ","AvgChg ","AvgChg % "]
["WSAW",null,null,null,"2018-06-05","Poly Silicon Solar Module ",0.41,0.27,0.29199999999999998,-3.0000000000000001E-3,-1.0200000000000001E-2]
["Off the grid",null,null,null,null,"Poly High Eff / PERC Module ",0.45,0.31,0.34100000000000003,-3.0000000000000001E-3,-8.6999999999999994E-3]
["BlueRidgeNow.com",null,null,null,"2018-06-05","Mono High Eff / PERC Module ",0.55000000000000004,0.32,0.36599999999999999,-2E-3,-5.4000000000000003E-3]
["Renewable energy sector sees increasing appeal among job ...",null,null,null,null,"ThinFilm Solar Module ",0.42,0.28999999999999998,0.314,-1E-3,-3.2000000000000002E-3]
["United News of India",null,null,null,"2018-06-04","US Multi Solar Module","Visit here for more detail module price information"]
["Renewable energy reaches record high in 2017, research shows",null,null,null,null,"Mono Silicon Solar Module","Visit here for more detail module price information"]
["Business Review",null,null,null,"2018-06-04","India Poly Module","Visit here for more detail module price information"]
["Last Update: 2018-Jun- 05 23:00 (GMT+8)",null,null,null,null,"Unit: USD / Watt ","more",null,"Last Update: 2018-05-30"]
[null,null,null,null,null,"All Spot Prices are Tax excluded and updated on Wednesday "]
[]
[]
[]
[]
["Price Methodology","Terms of Use","Privacy Policy ","About Us ","Contact Us ","Site Map"]
["Copyright © 2018 PVinsights.com All rights reserved"]

{"sheet":"pvinsights 09 07 18","index":31,"n_rows":54,"n_cols":13,"rows_kept":54,"cut":false,"hidden":false,"merged":[[4,11,13,11],[14,11,23,11],[51,0,51,4],[48,6,48,10],[49,6,49,10],[50,6,50,7],[50,8,50,10],[3,5,6,10],[51,5,51,10],[26,8,26,10],[47,6,47,10],[50,0,50,4],[47,0,47,3],[48,0,48,4],[49,0,49,3],[11,6,11,9],[12,6,12,9],[13,6,13,7],[13,8,13,10],[23,6,23,10],[46,0,46,4],[38,0,38,4],[39,0,39,3],[40,0,40,4],[41,0,41,3],[42,0,42,4],[24,6,24,10],[25,6,25,10],[26,6,26,7],[44,0,44,4],[45,0,45,3],[38,6,38,10],[39,6,39,10],[40,6,40,7],[40,8,40,10],[31,0,31,3],[43,0,43,3],[32,0,32,4],[33,0,33,3],[34,0,34,4],[35,0,35,3],[36,0,36,4],[37,0,37,3],[26,0,26,4],[27,0,27,3],[28,0,28,4],[29,0,29,3],[30,0,30,4],[24,0,24,4],[25,0,25,3],[13,0,13,1],[14,0,14,2],[15,0,15,1],[16,0,16,2],[17,0,17,1],[18,0,19,4],[20,0,20,4],[21,0,21,3],[22,0,22,4],[23,0,23,3],[12,0,12,2],[7,0,7,2],[4,0,5,4],[8,0,8,2],[9,0,9,1],[10,0,10,2],[11,0,11,1]]}
[null,"Login","Register","Member Center"]
[]
["Home","Why Solar","Retailer Price","Contract Price","Inverter Price","Weekly Snapshots","Price Download","Monthly Insights","Weekly Forecast","Price Forecast","Premier Insights","Premier Data","Advertising"]
[]
["Key Date of The US 2017 Section 201 Safeguard Investigation"]
[]
[]
["Solar PV Corporate News Release",null,null,null,null,"PV Poly Silicon Weekly Spot Price"]
["JinkoSolar Announces First Quarter 2018 Financial Results",null,null,null,null,"Item ","High ","Low ","Average ","AvgChg ","AvgChg% "]
["Jinko",null,"2018-06-26",null,null,"PV Grade PolySilicon (9N/9N+) ",12.89,9.77,11.16,-0.13,-1.15E-2]
["Canadian Solar Reports First Quarter 2018 Results",null,null,null,null,"2nd Grade PolySilicon (6N-8N) ",10.9,7.35,8.94,-0.11,-1.2200000000000001E-2]
["Canadian Sol",null,"2018-05-16",null,null,"PV Grade PolySilicon in China (9N/9N+) ","Visit here for more Poly-Si price",null,null,null,"%"]
["With 4GW advance PERC capacity, Aiko Solar is now the best and largest PERC cell supplier over the world",null,null,null,null,"PV Grade PolySilicon Outside China (9N/9N+) ","Visit here for more Poly-Si price",null,null,null,"%"]
["Aiko Solar",null,"2018-05-14",null,null,"Unit: USD/Kg ","more",null,"Last Update: 2018-07-04"]
["Hanwha Q CELLS Reports First Quarter 2018 Results",null,null,null,null,"Definition of PV Grade: Poly silicon chunk with high purity can be directly produced to Solar PV Ingots / Bricks"]
["Hanwha Q-Cel",null,"2018-05-14",null,null,"Definition of 2nd Grade: Poly silicon chunk must be mixed with high purity polysilicon, when producing Solar PV Ingots / Bricks."]
["JA Solar Announces Fourth Quarter and Fiscal Year 2017 Results",null,null,null,null,"PolySilicon Price In China: The Price is surveyed by RMB term with Tax and then shown in USD term without 16% of VAT after May 1, 2018 and 17% of VAT before May 1, 2018."]
["JA Solar",null,"2018-04-30",null,null,"Solar PV Wafer Weekly Spot Price "]
["Latest Solar PV News",null,null,null,null,"Item ","High ","Low ","Average ","AvgChg ","AvgChg% "]
[null,null,null,null,null,"156 mm Multi Solar Wafer ",0.36,0.28000000000000003,0.308,-0.01,-3.1399999999999997E-2]
["Rajasthan: Solar energy is now the preferred source of power",null,null,null,null,"156 mm High Eff Multi Solar Wafer ",0.36,0.28999999999999998,0.313,-0.01,-3.1E-2]
["Daily News & Analysis",null,null,null,"2018-07-09","156 mm Mono Solar Wafer ",0.47,0.4,0.42799999999999999,-4.0000000000000001E-3,-9.2999999999999992E-3]
["Solar Energy Informational Meeting Set for Thursday",null,null,null,null,"156 mm Mono Wafer Outside China ",0.47,0.4,0.43,-4.0000000000000001E-3,-9.1999999999999998E-3]
["KNIA / KRLS Radio",null,null,null,"2018-07-09","156 mm Multi Wafer Outside China","Visit here for more detail wafer price information"]
["Grants fund solar power for schools",null,null,null,null,"156mm DiamondWire Poly Wafer","Visit here for more detail wafer price information"]
["Rocky Mount Telegram",null,null,null,"2018-07-09","156 mm N-Mono Wafer","Visit here for more detail"]
["Couple plans for renewable energy of solar panels to live off-grid",null,null,null,null,"Unit: USD ","more",null,"Last Update: 2018-07-04"]
["Record",null,null,null,"2018-07-09","Wafer Prices In China: The Prices are surveyed by RMB term with Tax and then shown in USD term without 16% of VAT after May 1, 2018 and 17% of VAT before May 1, 2018."]
["Study looks at boosting solar energy's future in Pennsylvania",null,null,null,null,"Solar PV Cell Weekly Spot Price "]
["Reading Eagle",null,null,null,"2018-07-09","Item ","High ","Low ","Average ","AvgChg ","AvgChg % "]
["Duke Energy Solar Rebates Now Available In NC",null,null,null,null,"Multi Cell Price Per Watt ",0.18,0.12,0.13200000000000001,-3.0000000000000001E-3,-2.2200000000000001E-2]
["WFAE",null,null,null,"2018-07-09","Non China Poly Cell Per Watt ",0.18,0.12,0.13200000000000001,-3.0000000000000001E-3,-2.2200000000000001E-2]
["Gwyn Morgan: Renewable energy is no quick fix for oil pipelines",null,null,null,null,"Poly PERC Cell Per Watt ",0.18,0.14000000000000001,0.156,-4.0000000000000001E-3,-2.5000000000000001E-2]
["Times Colonist",null,null,null,"2018-07-09","Non China Poly PERC Cell Per Watt ",0.18,0.15,0.16200000000000001,-2E-3,-1.2200000000000001E-2]
["Energy boost: Yakima County could soon use sun, wind to its ...",null,null,null,null,"Mono PERC Cell Per Watt ",0.23,0.15,0.16700000000000001,-5.0000000000000001E-3,-2.9100000000000001E-2]
["Yakima Herald",null,null,null,"2018-07-09","Non China Mono PERC Cell Per Watt ",0.23,0.16,0.17399999999999999,-4.0000000000000001E-3,-2.2499999999999999E-2]
["Wind and solar are called clean for a reason",null,null,null,null,"156 mm Multi Solar Cell ",0.84,0.54,0.60899999999999999,-1.4999999999999999E-2,-2.4E-2]
["The Hill",null,null,null,"2018-07-09","156 mm Mono Solar Cell ",1.18,0.67,0.73699999999999999,-3.7999999999999999E-2,-4.9000000000000002E-2]
["Town of Canton considering moratorium on solar power development",null,null,null,null,"China Poly Cell Per Watt ","Visit here for more detail Cell price information"]
["WatertownDailyTimes.com",null,null,null,"2018-07-09","Non (TW or CN) Poly Cell Per Watt","Visit here for more detail Cell price information"]
["The roiled solar power market shows how Trump's tariffs can disrupt ...",null,null,null,null,"Unit: USD ","more",null,"Last Update: 2018-07-04"]
["Los Angeles Times",null,null,null,"2018-07-09","Solar PV Module Weekly Spot Price "]
["New Zealand's changing energy landscape to include solar micro ...",null,null,null,null,"Item ","High ","Low ","Average ","AvgChg ","AvgChg % "]
["Stuff.co.nz",null,null,null,"2018-07-09","Poly Silicon Solar Module ",0.41,0.24,0.26600000000000001,-4.0000000000000001E-3,-1.4800000000000001E-2]
["'Waterworld' folk tap solar power for clean drink",null,null,null,null,"Poly High Eff / PERC Module ",0.45,0.27,0.32100000000000001,-5.0000000000000001E-3,-1.5299999999999999E-2]
["Inquirer.net",null,null,null,"2018-07-09","Mono High Eff / PERC Module ",0.54,0.3,0.34599999999999997,-6.0000000000000001E-3,-1.7000000000000001E-2]
["Revised renewable energy goal to go before Concord City Council",null,null,null,null,"ThinFilm Solar Module ",0.42,0.26,0.29599999999999999,-4.0000000000000001E-3,-1.3299999999999999E-2]
["Concord Monitor",null,null,null,"2018-07-09","US Multi Solar Module","Visit here for more detail module price information"]
["Solar power users relying on more utilities with rainy days",null,null,null,null,"Mono Silicon Solar Module","Visit here for more detail module price information"]
["WHSV",null,null,null,"2018-07-07","India Poly Module","Visit here for more detail module price information"]
["Last Update: 2018-Jul- 09 23:00 (GMT+8)",null,null,null,null,"Unit: USD / Watt ","more",null,"Last Update: 2018-07-04"]
[null,null,null,null,null,"All Spot Prices are Tax excluded and updated on Wednesday "]
["Price Methodology","Terms of Use","Privacy Policy ","About Us ","Contact Us ","Site Map"]
["Copyright © 2018 PVinsights.com All rights reserved"]

{"sheet":"pvinsights 31 08 18","index":32,"n_rows":56,"n_cols":13,"rows_kept":56,"cut":false,"hidden":false,"merged":[[4,0,5,4],[8,0,8,2],[9,0,9,1],[10,0,10,2],[11,0,11,1],[17,0,17,1],[7,0,7,2],[20,0,20,4],[21,0,21,3],[22,0,22,4],[12,0,12,2],[13,0,13,1],[14,0,14,2],[15,0,15,1],[16,0,16,2],[23,0,23,3],[24,0,24,4],[25,0,25,3],[26,0,26,4],[27,0,27,3],[28,0,28,4],[29,0,29,3],[30,0,30,4],[31,0,31,3],[32,0,32,4],[41,0,41,3],[42,0,42,4],[33,0,33,3],[34,0,34,4],[35,0,35,3],[36,0,36,4],[37,0,37,3],[11,6,11,9],[12,6,12,9],[13,6,13,7],[13,8,13,10],[23,6,23,10],[49,6,49,10],[48,0,48,4],[49,0,49,3],[50,0,50,4],[18,0,19,4],[24,6,24,10],[25,6,25,10],[26,6,26,7],[43,0,43,3],[44,0,44,4],[45,0,45,3],[46,0,46,4],[47,0,47,3],[38,0,38,4],[39,0,39,3],[40,0,40,4],[4,11,13,11],[14,11,23,11],[51,0,51,4],[52,0,52,4],[53,0,53,4],[50,6,50,10],[51,6,51,10],[52,6,52,7],[52,8,52,10],[3,5,6,10],[53,5,53,10],[26,8,26,10],[38,6,38,10],[39,6,39,10],[40,6,40,7],[40,8,40,10]]}
[null,"Login","Register","Member Center"]
[]
["Home","Why Solar","Retailer Price","Contract Price","Inverter Price","Weekly Snapshots","Price Download","Monthly Insights","Weekly Forecast","Price Forecast","Premier Insights","Premier Data","Advertising"]
[]
["Key Date of The US 2017 Section 201 Safeguard Investigation"]
[]
[]
["Solar PV Corporate News Release",null,null,null,null,"PV Poly Silicon Weekly Spot Price"]
["Hanwha Q CELLS Reports Second Quarter 2018 Results",null,null,null,null,"Item ","High ","Low ","Average ","AvgChg ","AvgChg% "]
["Hanwha Q-Cel",null,"2018-08-13",null,null,"PV Grade PolySilicon (9N/9N+) ",13.3,9.85,11.26,-0.03,-2.7000000000000001E-3]
["JinkoSolar Announces Second Quarter 2018 Financial Results",null,null,null,null,"2nd Grade PolySilicon (6N-8N) ",10.9,7.5,9.02,-0.03,-3.3E-3]
["Jinko",null,"2018-08-13",null,null,"PV Grade PolySilicon in China (9N/9N+) ","Visit here for more Poly-Si price",null,null,null,"%"]
["SunPower Reports Second Quarter 2018 Results",null,null,null,null,"PV Grade PolySilicon Outside China (9N/9N+) ","Visit here for more Poly-Si price",null,null,null,"%"]
["Sunpower",null,"2018-07-31",null,null,"Unit: USD/Kg ","more",null,"Last Update: 2018-08-29"]
["First Solar, Inc. Announces Second Quarter 2018 Financial Results",null,null,null,null,"Definition of PV Grade: Poly silicon chunk with high purity can be directly produced to Solar PV Ingots / Bricks"]
["First Solar",null,"2018-07-27",null,null,"Definition of 2nd Grade: Poly silicon chunk must be mixed with high purity polysilicon, when producing Solar PV Ingots / Bricks."]
["JinkoSolar Announces First Quarter 2018 Financial Results",null,null,null,null,"PolySilicon Price In China: The Price is surveyed by RMB term with Tax and then shown in USD term without 16% of VAT after May 1, 2018 and 17% of VAT before May 1, 2018."]
["Jinko",null,"2018-06-26",null,null,"Solar PV Wafer Weekly Spot Price "]
["Latest Solar PV News",null,null,null,null,"Item ","High ","Low ","Average ","AvgChg ","AvgChg% "]
[null,null,null,null,null,"156 mm Multi Solar Wafer ",0.35,0.28000000000000003,0.30199999999999999,-6.0000000000000001E-3,-1.95E-2]
["Solar panel maker to power DRC firms",null,null,null,null,"156 mm High Eff Multi Solar Wafer ",0.35,0.28999999999999998,0.307,-6.0000000000000001E-3,-1.9199999999999998E-2]
["Chinadaily USA",null,null,null,"2018-08-31","156 mm Mono Solar Wafer ",0.44,0.37,0.40100000000000002,0,0]
["Printed solar cells may help energy crisis",null,null,null,null,"156 mm Mono Wafer Outside China ",0.44,0.37,0.40799999999999997,0,0]
["Katherine Times",null,null,null,"2018-08-30","156 mm Multi Wafer Outside China","Visit here for more detail wafer price information"]
["Solar panels that are as thick as a ¡§packet of chips¡¨ power ...",null,null,null,null,"156mm DiamondWire Poly Wafer","Visit here for more detail wafer price information"]
["Newcastle Herald",null,null,null,"2018-08-30","156 mm N-Mono Wafer","Visit here for more detail"]
["Ultra thin solar panels",null,null,null,null,"Unit: USD ","more",null,"Last Update: 2018-08-29"]
["Newcastle Star",null,null,null,"2018-08-30","Wafer Prices In China: The Prices are surveyed by RMB term with Tax and then shown in USD term without 16% of VAT after May 1, 2018 and 17% of VAT before May 1, 2018."]
["Silfab Solar Invests in Itek Energy to Expand US Manufacturing",null,null,null,null,"Solar PV Cell Weekly Spot Price "]
["Hastings Tribune",null,null,null,"2018-08-30","Item ","High ","Low ","Average ","AvgChg ","AvgChg % "]
["Renewable energy advocates ask for changes to state law on solar",null,null,null,null,"Multi Cell Price Per Watt ",0.16,0.105,0.11899999999999999,-2E-3,-1.6500000000000001E-2]
["Spectrum News",null,null,null,"2018-08-30","Non China Poly Cell Per Watt ",0.16,0.11,0.12,-4.0000000000000001E-3,-3.2300000000000002E-2]
["PCC to offer learning lab in solar energy industry",null,null,null,null,"Poly PERC Cell Per Watt ",0.16,0.125,0.13,-2E-3,-1.52E-2]
["Pueblo Chieftain",null,null,null,"2018-08-30","Non China Poly PERC Cell Per Watt ",0.16,0.13500000000000001,0.14000000000000001,-2E-3,-1.41E-2]
["The economy of sunshine: Alaskans finding solar energy use ...",null,null,null,null,"Mono PERC Cell Per Watt ",0.18,0.14000000000000001,0.14199999999999999,0,0]
["KTUU.com",null,null,null,"2018-08-30","Non China Mono PERC Cell Per Watt ",0.17499999999999999,0.13500000000000001,0.14399999999999999,-6.0000000000000001E-3,-0.04]
["The economy of sunshine: Solar boom in Alaska proves prosperous",null,null,null,null,"156 mm Multi Solar Cell ",0.75,0.47,0.54700000000000004,-8.9999999999999993E-3,-1.6199999999999999E-2]
["KTUU.com",null,null,null,"2018-08-30","156 mm Mono Solar Cell ",0.9,0.53,0.59799999999999998,0,0]
["NYS renewable energy advocates want an easier to understand ...",null,null,null,null,"China Poly Cell Per Watt ","Visit here for more detail Cell price information"]
["WBFO",null,null,null,"2018-08-30","Non (TW or CN) Poly Cell Per Watt","Visit here for more detail Cell price information"]
["New solar cells offer you the chance to print out solar panels and ...",null,null,null,null,"Unit: USD ","more",null,"Last Update: 2018-08-29"]
["The Conversation AU",null,null,null,"2018-08-30","Solar PV Module Weekly Spot Price "]
["Ultralight solar cells created by University of Newcastle physicist ...",null,null,null,null,"Item ","High ","Low ","Average ","AvgChg ","AvgChg % "]
["Newcastle Herald",null,null,null,"2018-08-30","Poly Solar Module ",0.38,0.23,0.25,-2E-3,-7.9000000000000008E-3]
["Air pollution can put a dent in solar power",null,null,null,null,"Poly Module in China ",0.28000000000000003,0.23,0.23899999999999999,0,0]
["MIT News",null,null,null,"2018-08-29","Poly High Eff / PERC Module ",0.42,0.25,0.29199999999999998,-3.0000000000000001E-3,-1.0200000000000001E-2]
["Solar energy advocates want Cuomo to reinstate net metering for ...",null,null,null,null,"Mono High Eff / PERC Module ",0.5,0.27,0.31,-4.0000000000000001E-3,-1.2699999999999999E-2]
["WRVO Public Media",null,null,null,"2018-08-29","Mono High Eff / PERC Module in China ",0.31,0.27,0.27500000000000002,0,0]
["Kyushu Electric mulls cutback on solar power",null,null,null,null,"ThinFilm Solar Module ",0.42,0.25,0.27400000000000002,-2E-3,-7.1999999999999998E-3]
["Asahi Shimbun",null,null,null,"2018-08-29","US Multi Solar Module","Visit here for more detail module price information"]
["Last Update: 2018-Aug- 31 23:00 (GMT+8)",null,null,null,null,"Mono Silicon Solar Module","Visit here for more detail module price information"]
[null,null,null,null,null,"India Poly Module","Visit here for more detail module price information"]
[null,null,null,null,null,"Unit: USD / Watt ","more",null,"Last Update: 2018-08-29"]
[null,null,null,null,null,"All Spot Prices are Tax excluded and updated on Wednesday "]
["Price Methodology","Terms of Use","Privacy Policy ","About Us ","Contact Us ","Site Map"]
["Copyright © 2018 PVinsights.com All rights reserved"]

{"sheet":"pvinsights 21 09 18","index":33,"n_rows":58,"n_cols":13,"rows_kept":58,"cut":false,"hidden":false,"merged":[[4,0,5,4],[8,0,8,2],[9,0,9,1],[10,0,10,2],[11,0,11,1],[7,0,7,2],[20,0,20,4],[21,0,21,3],[22,0,22,4],[12,0,12,2],[13,0,13,1],[14,0,14,2],[15,0,15,1],[16,0,16,2],[18,0,19,4],[17,0,17,1],[23,0,23,3],[24,0,24,4],[25,0,25,3],[26,0,26,4],[27,0,27,3],[35,0,35,3],[36,0,36,4],[37,0,37,3],[28,0,28,4],[29,0,29,3],[30,0,30,4],[31,0,31,3],[32,0,32,4],[20,6,20,10],[21,6,21,10],[22,6,22,7],[50,8,50,10],[43,0,43,3],[44,0,44,4],[45,0,45,3],[46,0,46,4],[47,0,47,3],[38,0,38,4],[39,0,39,3],[40,0,40,4],[41,0,41,3],[42,0,42,4],[33,0,33,3],[34,0,34,4],[7,6,7,9],[8,6,8,9],[9,6,9,7],[9,8,9,10],[19,6,19,10],[38,8,38,10],[47,6,47,10],[48,0,48,4],[49,0,49,3],[50,0,50,4],[55,0,55,4],[4,11,13,11],[14,11,23,11],[51,0,51,4],[52,0,52,4],[53,0,53,4],[54,0,54,4],[48,6,48,10],[49,6,49,10],[50,6,50,7],[51,5,51,10],[52,5,55,10],[22,8,22,10],[36,6,36,10],[37,6,37,10],[38,6,38,7]]}
[null,"Login","Register","Member Center"]
[]
["Home","Why Solar","Retailer Price","Contract Price","Inverter Price","Weekly Snapshots","Price Download","Monthly Insights","Weekly Forecast","Price Forecast","Premier Insights","Premier Data","Advertising"]
[null,null,null,null,null,"PV Poly Silicon Weekly Spot Price"]
["Key Date of The US 2017 Section 201 Safeguard Investigation",null,null,null,null,"Item ","High ","Low ","Average ","AvgChg ","AvgChg% "]
[null,null,null,null,null,"PV Grade PolySilicon (9N/9N+) ",12.6,9.69,10.68,-0.1,-9.2999999999999992E-3]
[null,null,null,null,null,"2nd Grade PolySilicon (6N-8N) ",10.3,7.5,8.59,-0.09,-1.04E-2]
["Solar PV Corporate News Release",null,null,null,null,"PV Grade PolySilicon in China (9N/9N+) ","Visit here for more Poly-Si price",null,null,null,"%"]
["Hanwha Q CELLS Reports Second Quarter 2018 Results",null,null,null,null,"PV Grade PolySilicon Outside China (9N/9N+) ","Visit here for more Poly-Si price",null,null,null,"%"]
["Hanwha Q-Cel",null,"2018-08-13",null,null,"Unit: USD/Kg ","more",null,"Last Update: 2018-09-19"]
["JinkoSolar Announces Second Quarter 2018 Financial Results",null,null,null,null,"Definition of PV Grade: Poly silicon chunk with high purity can be directly produced to Solar PV Ingots / Bricks"]
["Jinko",null,"2018-08-13",null,null,"Definition of 2nd Grade: Poly silicon chunk must be mixed with high purity polysilicon, when producing Solar PV Ingots / Bricks."]
["SunPower Reports Second Quarter 2018 Results",null,null,null,null,"PolySilicon Price In China: The Price is surveyed by RMB term with Tax and then shown in USD term without 16% of VAT after May 1, 2018 and 17% of VAT before May 1, 2018."]
["Sunpower",null,"2018-07-31",null,null,"Solar PV Wafer Weekly Spot Price "]
["First Solar, Inc. Announces Second Quarter 2018 Financial Results",null,null,null,null,"Item ","High ","Low ","Average ","AvgChg ","AvgChg% "]
["First Solar",null,"2018-07-27",null,null,"156 mm Multi Solar Wafer ",0.34,0.27,0.28599999999999998,-6.0000000000000001E-3,-2.0500000000000001E-2]
["JinkoSolar Announces First Quarter 2018 Financial Results",null,null,null,null,"156 mm High Eff Multi Solar Wafer ",0.34,0.28000000000000003,0.29099999999999998,-6.0000000000000001E-3,-2.0199999999999999E-2]
["Jinko",null,"2018-06-26",null,null,"156 mm Mono Solar Wafer ",0.44,0.37,0.39400000000000002,-4.0000000000000001E-3,-1.01E-2]
["Latest Solar PV News",null,null,null,null,"156 mm Mono Wafer Outside China ",0.44,0.37,0.40200000000000002,-3.0000000000000001E-3,-7.4000000000000003E-3]
[null,null,null,null,null,"156 mm Multi Wafer Outside China","Visit here for more detail wafer price information"]
["Solar energy company makes Pivot to new name, services as it ...",null,null,null,null,"156mm DiamondWire Poly Wafer","Visit here for more detail wafer price information"]
["The Denver Post",null,null,null,"2018-09-21","156 mm N-Mono Wafer","Visit here for more detail"]
["Rooftop solar power expands in Zhejiang",null,null,null,null,"Unit: USD ","more",null,"Last Update: 2018-09-19"]
["Power Technology",null,null,null,"2018-09-21","Wafer Prices In China: The Prices are surveyed by RMB term with Tax and then shown in USD term without 16% of VAT after May 1, 2018 and 17% of VAT before May 1, 2018."]
["Solar-Log® Headliners at Solar Power International",null,null,null,null,"Solar PV Cell Weekly Spot Price "]
["AltEnergyMag (press release)",null,null,null,"2018-09-21","Item ","High ","Low ","Average ","AvgChg ","AvgChg % "]
["Mission Solar Energy will debut four new solar panels at SPI",null,null,null,null,"Multi Cell Price Per Watt ",0.16,9.5000000000000001E-2,0.111,-3.0000000000000001E-3,-2.63E-2]
["Solar Power World",null,null,null,"2018-09-21","Non China Poly Cell Per Watt ",0.16,0.1,0.112,-3.0000000000000001E-3,-2.6100000000000002E-2]
["Standard Solar boosts community solar portfolio through acquisition ...",null,null,null,null,"Poly PERC Cell Per Watt ",0.16,0.11,0.121,0,0]
["pv magazine USAETEnergyworld.com",null,null,null,"2018-09-21","Non China Poly PERC Cell Per Watt ",0.16,0.12,0.13100000000000001,0,0]
["Crystal Lake home one stop on Illinois Solar Tour",null,null,null,null,"Mono PERC Cell Per Watt ",0.17499999999999999,0.13500000000000001,0.14199999999999999,0,0]
["Northwest Herald",null,null,null,"2018-09-21","Non China Mono PERC Cell Per Watt ",0.17499999999999999,0.13500000000000001,0.14199999999999999,0,0]
["Taylor incurs wrath of community solar groups, including in his own ...",null,null,null,null,"High Eff Mono PERC Cell Per Watt ",0.17499999999999999,0.14000000000000001,0.14699999999999999,0,0]
["RenewEconomy",null,null,null,"2018-09-21","Bi-Facial Mono PERC Cell Per Watt ",0.19,0.15,0.157,0,0]
["Energising China's renewable power tariffs",null,null,null,null,"156 mm Multi Solar Cell ",0.75,0.42,0.50700000000000001,-1.4999999999999999E-2,-2.87E-2]
["East Asia Forum",null,null,null,"2018-09-21","156 mm Mono Solar Cell ",0.9,0.53,0.59799999999999998,0,0]
["UN Secretary General to visit India with focus on renewable energy",null,null,null,null,"China Poly Cell Per Watt ","Visit here for more detail Cell price information"]
["Economic Times",null,null,null,"2018-09-21","Non (TW or CN) Poly Cell Per Watt","Visit here for more detail Cell price information"]
["India's renewable energy sector hits a milestone but loses speed",null,null,null,null,"Unit: USD ","more",null,"Last Update: 2018-09-19"]
["Livemint",null,null,null,"2018-09-21","Solar PV Module Weekly Spot Price "]
["French Environment Minister Shakeup Dampens Renewable ...",null,null,null,null,"Item ","High ","Low ","Average ","AvgChg ","AvgChg % "]
["Greentech Media",null,null,null,"2018-09-21","Poly Solar Module ",0.36,0.22,0.24199999999999999,-4.0000000000000001E-3,-1.6299999999999999E-2]
["Saudi energy firm plans to invest Rs6 billion in solar power project",null,null,null,null,"Poly Module in China ",0.28000000000000003,0.22,0.23400000000000001,-4.0000000000000001E-3,-1.6799999999999999E-2]
["The News International",null,null,null,"2018-09-21","Poly High Eff / PERC Module ",0.4,0.24,0.28000000000000003,-7.0000000000000001E-3,-2.4400000000000002E-2]
["TVA, environmental groups duel over the future of solar energy",null,null,null,null,"Mono High Eff / PERC Module ",0.48,0.26,0.30199999999999999,-3.0000000000000001E-3,-9.7999999999999997E-3]
["Knoxville News Sentinel",null,null,null,"2018-09-21","Mono High Eff / PERC Module in China ",0.31,0.27,0.27300000000000002,-1E-3,-3.5999999999999999E-3]
["City considers partnerships to bring solar energy to Soledad",null,null,null,null,"ThinFilm Solar Module ",0.41,0.24,0.26500000000000001,-3.0000000000000001E-3,-1.12E-2]
["Soledad Bee",null,null,null,"2018-09-21","US Multi Solar Module","Visit here for more detail module price information"]
["Solar Energy Creating Value For A ¡§Just Energy Transition¡¨",null,null,null,null,"Mono Silicon Solar Module","Visit here for more detail module price information"]
["iAfrica.com",null,null,null,"2018-09-21","India Poly Module","Visit here for more detail module price information"]
["Last Update: 2018-Sep- 21 20:00 (GMT+8)",null,null,null,null,"Unit: USD / Watt ","more",null,"Last Update: 2018-09-19"]
[null,null,null,null,null,"All Spot Prices are Tax excluded and updated on Wednesday "]
[]
[]
[]
[]
["Price Methodology","Terms of Use","Privacy Policy ","About Us ","Contact Us ","Site Map"]
["Copyright © 2018 PVinsights.com All rights reserved"]

{"sheet":"pvinsights 31 10 18","index":34,"n_rows":54,"n_cols":13,"rows_kept":54,"cut":false,"hidden":false,"merged":[[51,0,51,4],[48,6,48,10],[49,6,49,10],[50,6,50,7],[50,8,50,10],[51,5,51,10],[48,0,48,4],[49,0,49,3],[4,11,13,11],[14,11,23,11],[22,8,22,10],[36,6,36,10],[37,6,37,10],[22,6,22,7],[7,6,7,9],[8,6,8,9],[9,6,9,7],[9,8,9,10],[19,6,19,10],[47,6,47,10],[50,0,50,4],[18,0,19,4],[20,6,20,10],[21,6,21,10],[38,6,38,7],[38,8,38,10],[43,0,43,3],[44,0,44,4],[45,0,45,3],[46,0,46,4],[47,0,47,3],[38,0,38,4],[39,0,39,3],[40,0,40,4],[41,0,41,3],[42,0,42,4],[33,0,33,3],[34,0,34,4],[35,0,35,3],[36,0,36,4],[37,0,37,3],[28,0,28,4],[29,0,29,3],[30,0,30,4],[31,0,31,3],[32,0,32,4],[23,0,23,3],[24,0,24,4],[25,0,25,3],[26,0,26,4],[27,0,27,3],[17,0,17,1],[7,0,7,2],[20,0,20,4],[21,0,21,3],[22,0,22,4],[12,0,12,2],[13,0,13,1],[14,0,14,2],[15,0,15,1],[16,0,16,2],[4,0,5,4],[8,0,8,2],[9,0,9,1],[10,0,10,2],[11,0,11,1]]}
[null,"Login","Register","Member Center"]
[]
["Home","Why Solar","Retailer Price","Contract Price","Inverter Price","Weekly Snapshots","Price Download","Monthly Insights","Weekly Forecast","Price Forecast","Premier Insights","Premier Data","Advertising"]
[null,null,null,null,null,"PV Poly Silicon Weekly Spot Price"]
["Key Date of The US 2017 Section 201 Safeguard Investigation",null,null,null,null,"Item ","High ","Low ","Average ","AvgChg ","AvgChg% "]
[null,null,null,null,null,"PV Grade PolySilicon (9N/9N+) ",12.25,8.6999999999999993,9.75,-0.26,-2.5999999999999999E-2]
[null,null,null,null,null,"2nd Grade PolySilicon (6N-8N) ",9.6,6.5,7.59,-0.33,-4.1700000000000001E-2]
["Solar PV Corporate News Release",null,null,null,null,"PV Grade PolySilicon in China (9N/9N+) ","Visit here for more Poly-Si price",null,null,null,"%"]
["First Solar, Inc. Announces Third Quarter 2018 Financial Results",null,null,null,null,"PV Grade PolySilicon Outside China (9N/9N+) ","Visit here for more Poly-Si price",null,null,null,"%"]
["First Solar",null,"Oct 26, 2018",null,null,"Unit: USD/Kg ","more",null,"Last Update: 2018-10-31"]
["Hanwha Q CELLS Reports Second Quarter 2018 Results",null,null,null,null,"Definition of PV Grade: Poly silicon chunk with high purity can be directly produced to Solar PV Ingots / Bricks"]
["Hanwha Q-Cel",null,"Aug 13, 2018",null,null,"Definition of 2nd Grade: Poly silicon chunk must be mixed with high purity polysilicon, when producing Solar PV Ingots / Bricks."]
["JinkoSolar Announces Second Quarter 2018 Financial Results",null,null,null,null,"PolySilicon Price In China: The Price is surveyed by RMB term with Tax and then shown in USD term without 16% of VAT after May 1, 2018 and 17% of VAT before May 1, 2018."]
["Jinko",null,"Aug 13, 2018",null,null,"Solar PV Wafer Weekly Spot Price "]
["SunPower Reports Second Quarter 2018 Results",null,null,null,null,"Item ","High ","Low ","Average ","AvgChg ","AvgChg% "]
["Sunpower",null,"Jul 31, 2018",null,null,"156 mm Multi Solar Wafer ",0.32,0.26,0.27,-1E-3,-3.7000000000000002E-3]
["First Solar, Inc. Announces Second Quarter 2018 Financial Results",null,null,null,null,"156 mm High Eff Multi Solar Wafer ",0.32,0.26500000000000001,0.27500000000000002,-1E-3,-3.5999999999999999E-3]
["First Solar",null,"Jul 27, 2018",null,null,"156 mm Mono Solar Wafer ",0.41,0.35,0.372,-5.0000000000000001E-3,-1.3299999999999999E-2]
["Latest Solar PV News",null,null,null,null,"156 mm Mono Wafer Outside China ",0.41,0.36,0.38500000000000001,-5.0000000000000001E-3,-1.2800000000000001E-2]
[null,null,null,null,null,"156 mm Multi Wafer Outside China","Visit here for more detail wafer price information"]
["Floating solar panels in Kranji could be option for private firms ...",null,null,null,null,"156mm DiamondWire Poly Wafer","Visit here for more detail wafer price information"]
["TODAYonline",null,null,null,"Oct 31, 2018","156 mm N-Mono Wafer","Visit here for more detail"]
["Solar panel, renewable energy discussion to take place in North Lufkin",null,null,null,null,"Unit: USD ","more",null,"Last Update: 2018-10-31"]
["KTRE",null,null,null,"Oct 31, 2018","Wafer Prices In China: The Prices are surveyed by RMB term with Tax and then shown in USD term without 16% of VAT after May 1, 2018 and 17% of VAT before May 1, 2018."]
["Solar energy lighting up the way to financial inclusion",null,null,null,null,"Solar PV Cell Weekly Spot Price "]
["Daily Monitor (press release) (blog)",null,null,null,"Oct 31, 2018","Item ","High ","Low ","Average ","AvgChg ","AvgChg % "]
["Floating solar energy transforming India into a greener nation",null,null,null,null,"Multi Cell Price Per Watt ",0.14000000000000001,8.5000000000000006E-2,0.10100000000000001,-1E-3,-9.7999999999999997E-3]
["ETEnergyworld.comGreen Matters",null,null,null,"Oct 31, 2018","Non China Poly Cell Per Watt ",0.14000000000000001,0.09,0.10100000000000001,-1E-3,-9.7999999999999997E-3]
["Solar experts talk benefits of solar energy in Hampton Roads",null,null,null,null,"Poly PERC Cell Per Watt ",0.14000000000000001,0.1,0.109,-2E-3,-1.7999999999999999E-2]
["wtkr.com",null,null,null,"Oct 31, 2018","Non China Poly PERC Cell Per Watt ",0.14000000000000001,0.11,0.12,-2E-3,-1.6400000000000001E-2]
["US, South Africa partner on solar energy storage",null,null,null,null,"Mono PERC Cell Per Watt ",0.17,0.13500000000000001,0.14000000000000001,0,0]
["ESI Africa",null,null,null,"Oct 31, 2018","Non China Mono PERC Cell Per Watt ",0.17,0.13500000000000001,0.14000000000000001,0,0]
["Solar power 101",null,null,null,null,"High Eff Mono PERC Cell Per Watt ",0.17,0.14000000000000001,0.14499999999999999,0,0]
["Tri-City Herald",null,null,null,"Oct 31, 2018","Bi-Facial Mono PERC Cell Per Watt ",0.18,0.15,0.155,0,0]
["Solar Renewable Energy Advocate",null,null,null,null,"156 mm Multi Solar Cell ",0.65,0.38,0.46300000000000002,-6.0000000000000001E-3,-1.2800000000000001E-2]
["SustainableBusiness.com",null,null,null,"Oct 31, 2018","156 mm Mono Solar Cell ",0.87,0.53,0.59,0,0]
["Regina pledges to go to 100% renewable energy by 2050",null,null,null,null,"China Poly Cell Per Watt ","Visit here for more detail Cell price information"]
["CBC.ca",null,null,null,"Oct 31, 2018","Non (TW or CN) Poly Cell Per Watt","Visit here for more detail Cell price information"]
["Europe's largest floating solar system to be powered by 17MW of PV ...",null,null,null,null,"Unit: USD ","more",null,"Last Update: 2018-10-31"]
["Energy Industry Review (press release)",null,null,null,"Oct 31, 2018","Solar PV Module Weekly Spot Price "]
["Floating solar tech increases hydropower output, finds report",null,null,null,null,"Item ","High ","Low ","Average ","AvgChg ","AvgChg % "]
["ESI Africa",null,null,null,"Oct 31, 2018","Poly Solar Module ",0.33,0.2,0.224,-2E-3,-8.8000000000000005E-3]
["Trina Solar supplies 17MW to the largest floating PV system in Europe",null,null,null,null,"Poly Module in China ",0.26,0.2,0.21199999999999999,-2E-3,-9.2999999999999992E-3]
["PR Newswire (press release)",null,null,null,"Oct 31, 2018","Poly High Eff / PERC Module ",0.37,0.22,0.25600000000000001,-2E-3,-7.7999999999999996E-3]
["Growing Exponentially, Floating Solar Opens Up New Horizons for ...",null,null,null,null,"Mono High Eff / PERC Module ",0.42,0.24,0.27300000000000002,-3.0000000000000001E-3,-1.09E-2]
["The FINANCIAL",null,null,null,"Oct 31, 2018","Mono High Eff / PERC Module in China ",0.27,0.24,0.251,-1E-3,-4.0000000000000001E-3]
["Queens lawmakers push for increased usage of solar power",null,null,null,null,"ThinFilm Solar Module ",0.35,0.22,0.247,-3.0000000000000001E-3,-1.2E-2]
["TimesLedger",null,null,null,"Oct 31, 2018","US Multi Solar Module","Visit here for more detail module price information"]
["Solar Power Jobs Campaign Aims to Provide Education, Training for ...",null,null,null,null,"Mono Silicon Solar Module","Visit here for more detail module price information"]
["Solar Magazine",null,null,null,"Oct 31, 2018","India Poly Module","Visit here for more detail module price information"]
["Last Update: 2018-Oct- 31 23:00 (GMT+8)",null,null,null,null,"Unit: USD / Watt ","more",null,"Last Update: 2018-10-31"]
[null,null,null,null,null,"All Spot Prices are Tax excluded and updated on Wednesday "]
["Price Methodology","Terms of Use","Privacy Policy ","About Us ","Contact Us ","Site Map"]
["Copyright © 2018 PVinsights.com All rights reserved"]

{"sheet":"pvinsights 02 12 18","index":35,"n_rows":54,"n_cols":13,"rows_kept":54,"cut":false,"hidden":false,"merged":[[4,0,5,4],[8,0,8,2],[9,0,9,1],[10,0,10,2],[11,0,11,1],[17,0,17,1],[7,0,7,2],[20,0,20,4],[21,0,21,3],[22,0,22,4],[12,0,12,2],[13,0,13,1],[14,0,14,2],[15,0,15,1],[16,0,16,2],[23,0,23,3],[24,0,24,4],[25,0,25,3],[26,0,26,4],[27,0,27,3],[28,0,28,4],[29,0,29,3],[30,0,30,4],[31,0,31,3],[32,0,32,4],[42,0,42,4],[33,0,33,3],[34,0,34,4],[35,0,35,3],[36,0,36,4],[37,0,37,3],[47,6,47,10],[50,0,50,4],[18,0,19,4],[20,6,20,10],[21,6,21,10],[37,6,37,7],[37,8,37,10],[43,0,43,3],[44,0,44,4],[45,0,45,3],[46,0,46,4],[47,0,47,3],[38,0,38,4],[39,0,39,3],[40,0,40,4],[41,0,41,3],[4,11,13,11],[14,11,23,11],[22,8,22,10],[35,6,35,10],[36,6,36,10],[22,6,22,7],[7,6,7,9],[8,6,8,9],[9,6,9,7],[9,8,9,10],[19,6,19,10],[51,0,51,4],[48,6,48,10],[49,6,49,10],[50,6,50,7],[50,8,50,10],[51,5,51,10],[48,0,48,4],[49,0,49,3]]}
[null,"Login","Register","Member Center"]
[]
["Home","Why Solar","Retailer Price","Contract Price","Inverter Price","Weekly Snapshots","Price Download","Monthly Insights","Weekly Forecast","Price Forecast","Premier Insights","Premier Data","Advertising"]
[null,null,null,null,null,"PV Poly Silicon Weekly Spot Price"]
["Key Date of The US 2017 Section 201 Safeguard Investigation",null,null,null,null,"Item ","High ","Low ","Average ","AvgChg ","AvgChg% "]
[null,null,null,null,null,"PV Grade PolySilicon (9N/9N+) ",11.8,8.6999999999999993,9.5299999999999994,-0.03,-3.0999999999999999E-3]
[null,null,null,null,null,"2nd Grade PolySilicon (6N-8N) ",9.3000000000000007,6.5,7.4,-0.03,-4.0000000000000001E-3]
["Solar PV Corporate News Release",null,null,null,null,"PV Grade PolySilicon in China (9N/9N+) ","Visit here for more Poly-Si price",null,null,null,"%"]
["JinkoSolar Announces Third Quarter 2018 Financial Results",null,null,null,null,"PV Grade PolySilicon Outside China (9N/9N+) ","Visit here for more Poly-Si price",null,null,null,"%"]
["JinkoSolar",null,"Nov 26, 2018",null,null,"Unit: USD/Kg ","more",null,"Last Update: 2018-11-28"]
["CANADIAN SOLAR REPORTS THIRD QUARTER 2018 RESULTS",null,null,null,null,"Definition of PV Grade: Poly silicon chunk with high purity can be directly produced to Solar PV Ingots / Bricks"]
["CanadianSola",null,"Nov 15, 2018",null,null,"Definition of 2nd Grade: Poly silicon chunk must be mixed with high purity polysilicon, when producing Solar PV Ingots / Bricks."]
["SunPower Reports Third Quarter 2018 Results",null,null,null,null,"PolySilicon Price In China: The Price is surveyed by RMB term with Tax and then shown in USD term without 16% of VAT after May 1, 2018 and 17% of VAT before May 1, 2018."]
["Sunpower",null,"Oct 31, 2018",null,null,"Solar PV Wafer Weekly Spot Price "]
["First Solar, Inc. Announces Third Quarter 2018 Financial Results",null,null,null,null,"Item ","High ","Low ","Average ","AvgChg ","AvgChg% "]
["First Solar",null,"Oct 26, 2018",null,null,"156 mm Multi Solar Wafer ",0.31,0.26,0.27,2E-3,7.4999999999999997E-3]
["Hanwha Q CELLS Reports Second Quarter 2018 Results",null,null,null,null,"156 mm High Eff Multi Solar Wafer ",0.31,0.26500000000000001,0.27500000000000002,2E-3,7.3000000000000001E-3]
["Hanwha Q-Cel",null,"Aug 13, 2018",null,null,"156 mm Mono Solar Wafer ",0.41,0.35,0.371,0,0]
["Latest Solar PV News",null,null,null,null,"156 mm Mono Wafer Outside China ",0.41,0.36,0.38400000000000001,0,0]
[null,null,null,null,null,"156 mm Multi Wafer Outside China","Visit here for more detail wafer price information"]
["China Targets Cut in Wind-, Solar-Power Blocked From Grid Access",null,null,null,null,"156mm DiamondWire Poly Wafer","Visit here for more detail wafer price information"]
["Bloomberg",null,null,null,"Dec 01, 2018","156 mm N-Mono Wafer","Visit here for more detail"]
["Kenya secures funding for solar energy development",null,null,null,null,"Unit: USD ","more",null,"Last Update: 2018-11-28"]
["New Business Ethiopia",null,null,null,"Dec 01, 2018","Wafer Prices In China: The Prices are surveyed by RMB term with Tax and then shown in USD term without 16% of VAT after May 1, 2018 and 17% of VAT before May 1, 2018."]
["Solar energy farm proposals for 250 acres of green fields",null,null,null,null,"Solar PV Cell Weekly Spot Price "]
["The Northern Echo",null,null,null,"Dec 01, 2018","Item ","High ","Low ","Average ","AvgChg ","AvgChg % "]
["Iron-based molecule could replace rarer metals in solar power ...",null,null,null,null,"Multi Cell Price Per Watt ",0.13500000000000001,0.09,0.10100000000000001,2E-3,2.0199999999999999E-2]
["Market Business News",null,null,null,"Dec 01, 2018","Non China Poly Cell Per Watt ",0.14000000000000001,0.09,0.10100000000000001,2E-3,2.0199999999999999E-2]
["New Brilliant Iron Molecule May Be the Key to Cheap Solar Energy",null,null,null,null,"Poly PERC Cell Per Watt ",0.13500000000000001,0.105,0.109,2E-3,1.8700000000000001E-2]
["Interesting Engineering",null,null,null,"Dec 01, 2018","Non China Poly PERC Cell Per Watt ",0.13500000000000001,0.115,0.12,2E-3,1.6899999999999998E-2]
["What Changed In The Solar Energy Industry In November?",null,null,null,null,"Mono PERC Cell Per Watt ",0.17,0.14000000000000001,0.14499999999999999,5.0000000000000001E-3,3.5700000000000003E-2]
["CleanTechnica",null,null,null,"Dec 01, 2018","Non China Mono PERC Cell Per Watt ",0.17,0.14000000000000001,0.14499999999999999,5.0000000000000001E-3,3.5700000000000003E-2]
["Windy weather carries Britain to renewable energy record",null,null,null,null,"High Eff Mono PERC Cell Per Watt ",0.17,0.14499999999999999,0.15,5.0000000000000001E-3,3.4500000000000003E-2]
["The Guardian",null,null,null,"Dec 01, 2018","156 mm Multi Solar Cell ",0.63,0.4,0.46200000000000002,6.0000000000000001E-3,1.32E-2]
["IRC at Buckhorn to use solar power",null,null,null,null,"156 mm Mono Solar Cell ",0.87,0.53,0.6,0.01,1.6899999999999998E-2]
["Altoona Mirror",null,null,null,"Dec 01, 2018","China Poly Cell Per Watt ","Visit here for more detail Cell price information"]
["Build A Bridge, Not A Wall: US Companies Have Renewable Energy ...",null,null,null,null,"Non (TW or CN) Poly Cell Per Watt","Visit here for more detail Cell price information"]
["CleanTechnica",null,null,null,"Dec 01, 2018","Unit: USD ","more",null,"Last Update: 2018-11-28"]
["RPT-FEATURE-In Mexico, resistance to solar projects bodes badly ...",null,null,null,null,"High Efficency Mono PERC Cell: The Prices are mainly represented to solar cells for 21.7% efficiency with less than 2% of CTM efficiency lost."]
["Reuters",null,null,null,"Dec 01, 2018","Solar PV Module Weekly Spot Price "]
["Texas and Mexico have a perfect partnership opportunity ...",null,null,null,null,"Item ","High ","Low ","Average ","AvgChg ","AvgChg % "]
["Dallas News (blog)",null,null,null,"Dec 01, 2018","Poly Solar Module ",0.33,0.19,0.217,-3.0000000000000001E-3,-1.3599999999999999E-2]
["How Using Solar Power Energy Can Help Make Crypto Mining ...",null,null,null,null,"Poly Module in China ",0.24,0.19,0.20399999999999999,-4.0000000000000001E-3,-1.9199999999999998E-2]
["Bitcoin Exchange Guide",null,null,null,"Dec 01, 2018","Poly High Eff / PERC Module ",0.37,0.22,0.252,0,0]
["Clean energy technologies threaten to overwhelm the grid. Here's ...",null,null,null,null,"Mono High Eff / PERC Module ",0.42,0.24,0.26900000000000002,0,0]
["Vox",null,null,null,"Dec 01, 2018","Mono High Eff / PERC Module in China ",0.27,0.24,0.249,0,0]
["Future of solar power looks bright",null,null,null,null,"ThinFilm Solar Module ",0.35,0.22,0.24299999999999999,-1E-3,-4.1000000000000003E-3]
["Lethbridge Herald",null,null,null,"Dec 01, 2018","US Multi Solar Module","Visit here for more detail module price information"]
["Solar power, brightening up your world",null,null,null,null,"Mono Silicon Solar Module","Visit here for more detail module price information"]
["The New Indian Express",null,null,null,"Dec 01, 2018","India Poly Module","Visit here for more detail module price information"]
["Last Update: 2018-Dec- 02 14:00 (GMT+8)",null,null,null,null,"Unit: USD / Watt ","more",null,"Last Update: 2018-11-28"]
[null,null,null,null,null,"All Spot Prices are Tax excluded and updated on Wednesday "]
["Price Methodology","Terms of Use","Privacy Policy ","About Us ","Contact Us ","Site Map"]
["Copyright © 2018 PVinsights.com All rights reserved"]

{"sheet":"pvinsights 02 01 19","index":36,"n_rows":54,"n_cols":13,"rows_kept":54,"cut":false,"hidden":false,"merged":[[51,0,51,4],[48,6,48,10],[49,6,49,10],[50,6,50,7],[50,8,50,10],[51,5,51,10],[48,0,48,4],[49,0,49,3],[4,11,13,11],[22,8,22,10],[35,6,35,10],[36,6,36,10],[37,6,37,7],[37,8,37,10],[22,6,22,7],[7,6,7,9],[8,6,8,9],[9,6,9,7],[9,8,9,10],[19,6,19,10],[47,6,47,10],[50,0,50,4],[18,0,19,4],[20,6,20,10],[21,6,21,10],[43,0,43,3],[44,0,44,4],[45,0,45,3],[46,0,46,4],[47,0,47,3],[38,0,38,4],[39,0,39,3],[40,0,40,4],[41,0,41,3],[42,0,42,4],[33,0,33,3],[34,0,34,4],[35,0,35,3],[36,0,36,4],[37,0,37,3],[28,0,28,4],[29,0,29,3],[30,0,30,4],[31,0,31,3],[32,0,32,4],[23,0,23,3],[24,0,24,4],[25,0,25,3],[26,0,26,4],[27,0,27,3],[17,0,17,1],[7,0,7,2],[20,0,20,4],[21,0,21,3],[22,0,22,4],[12,0,12,2],[13,0,13,1],[14,0,14,2],[15,0,15,1],[16,0,16,2],[4,0,5,4],[8,0,8,2],[9,0,9,1],[10,0,10,2],[11,0,11,1]]}
[null,"Login","Register","Member Center"]
[]
["Home","Why Solar","Retailer Price","Contract Price","Inverter Price","Weekly Snapshots","Price Download","Monthly Insights","Weekly Forecast","Price Forecast","Premier Insights","Premier Data","Advertising"]
[null,null,null,null,null,"PV Poly Silicon Weekly Spot Price"]
["Key Date of The US 2017 Section 201 Safeguard Investigation",null,null,null,null,"Item ","High ","Low ","Average ","AvgChg ","AvgChg% "]
[null,null,null,null,null,"PV Grade PolySilicon (9N/9N+) ",11.5,8.4499999999999993,9.26,-0.27,-2.8299999999999999E-2]
[null,null,null,null,null,"2nd Grade PolySilicon (6N-8N) ",9,6.25,7.16,-0.24,-3.2399999999999998E-2]
["Solar PV Corporate News Release",null,null,null,null,"PV Grade PolySilicon in China (9N/9N+) ","Visit here for more Poly-Si price",null,null,null,"%"]
["JinkoSolar Announces Third Quarter 2018 Financial Results",null,null,null,null,"PV Grade PolySilicon Outside China (9N/9N+) ","Visit here for more Poly-Si price",null,null,null,"%"]
["JinkoSolar",null,"Nov 26, 2018",null,null,"Unit: USD/Kg ","more",null,"Last Update: 2019-01-02"]
["CANADIAN SOLAR REPORTS THIRD QUARTER 2018 RESULTS",null,null,null,null,"Definition of PV Grade: Poly silicon chunk with high purity can be directly produced to Solar PV Ingots / Bricks"]
["CanadianSola",null,"Nov 15, 2018",null,null,"Definition of 2nd Grade: Poly silicon chunk must be mixed with high purity polysilicon, when producing Solar PV Ingots / Bricks."]
["SunPower Reports Third Quarter 2018 Results",null,null,null,null,"PolySilicon Price In China: The Price is surveyed by RMB term with Tax and then shown in USD term without 16% of VAT after May 1, 2018 and 17% of VAT before May 1, 2018."]
["Sunpower",null,"Oct 31, 2018",null,null,"Solar PV Wafer Weekly Spot Price "]
["First Solar, Inc. Announces Third Quarter 2018 Financial Results",null,null,null,null,"Item ","High ","Low ","Average ","AvgChg ","AvgChg% "]
["First Solar",null,"Oct 26, 2018",null,null,"156 mm Multi Solar Wafer ",0.3,0.26,0.27200000000000002,-2E-3,-7.3000000000000001E-3]
["Hanwha Q CELLS Reports Second Quarter 2018 Results",null,null,null,null,"156 mm High Eff Multi Solar Wafer ",0.3,0.27,0.27700000000000002,-2E-3,-7.1999999999999998E-3]
["Hanwha Q-Cel",null,"Aug 13, 2018",null,null,"156 mm Mono Solar Wafer ",0.41,0.36,0.378,0,0]
["Latest Solar PV News",null,null,null,null,"156 mm Mono Wafer Outside China ",0.41,0.36,0.38900000000000001,0,0]
[null,null,null,null,null,"156 mm Multi Wafer Outside China","Visit here for more detail wafer price information"]
["Spotsylvania planners to address proposed solar power facility ...",null,null,null,null,"156mm DiamondWire Poly Wafer","Visit here for more detail wafer price information"]
["Fredericksburg.com",null,null,null,"Jan 03, 2019","156 mm N-Mono Wafer","Visit here for more detail"]
["Staring down tariffs and rollbacks, US renewables rang in a record ...",null,null,null,null,"Unit: USD ","more",null,"Last Update: 2019-01-02"]
["Utility Dive",null,null,null,"Jan 03, 2019","Wafer Prices In China: The Prices are surveyed by RMB term with Tax and then shown in USD term without 16% of VAT after May 1, 2018 and 17% of VAT before May 1, 2018."]
["Coalition Releases '100 Day Clean Energy Agenda' For South ...",null,null,null,null,"Solar PV Cell Weekly Spot Price "]
["Solar Industry",null,null,null,"Jan 03, 2019","Item ","High ","Low ","Average ","AvgChg ","AvgChg % "]
["Watch: Why farmers are unhappy with Karnataka's big bet on solar ...",null,null,null,null,"Multi Cell Price Per Watt ",0.13500000000000001,0.09,0.105,0,0]
["The News Minute",null,null,null,"Jan 03, 2019","Non China Poly Cell Per Watt ",0.14000000000000001,0.09,0.105,0,0]
["Commercial Solar Outlook: A Q&A with GE Solar",null,null,null,null,"Poly PERC Cell Per Watt ",0.13500000000000001,0.105,0.113,0,0]
["Energy Manager Today",null,null,null,"Jan 03, 2019","Non China Poly PERC Cell Per Watt ",0.13500000000000001,0.115,0.124,0,0]
["SECI begins process for installation of solar power projects in Ladakh",null,null,null,null,"Mono PERC Cell Per Watt ",0.17,0.14499999999999999,0.152,0,0]
["Daily Excelsior",null,null,null,"Jan 03, 2019","Non China Mono PERC Cell Per Watt ",0.17,0.14499999999999999,0.151,0,0]
["Installation of 7.5 GW solar power projects begins in Ladakh",null,null,null,null,"High Eff Mono PERC Cell Per Watt ",0.17,0.15,0.16200000000000001,2E-3,1.2500000000000001E-2]
["Greater Kashmir",null,null,null,"Jan 03, 2019","156 mm Multi Solar Cell ",0.63,0.4,0.48099999999999998,0,0]
["What's In Store for US Solar Energy in 2019?",null,null,null,null,"156 mm Mono Solar Cell ",0.87,0.53,0.61499999999999999,0,0]
["State of the Planet (press release) (blog)",null,null,null,"Jan 03, 2019","China Poly Cell Per Watt ","Visit here for more detail Cell price information"]
["How To Go Solar If You Cannot Put Panels On Your Roof",null,null,null,null,"Non (TW or CN) Poly Cell Per Watt","Visit here for more detail Cell price information"]
["Forbes",null,null,null,"Jan 03, 2019","Unit: USD ","more",null,"Last Update: 2019-01-02"]
["Thin-film PV company Sunflare readies production boost with big ...",null,null,null,null,"High Efficency Mono PERC Cell: The Prices are mainly represented to solar cells for 21.8% efficiency with less than 1.5% of CTM efficiency lost or 22.0% with less than 2% of CTM efficiency lost."]
["Solar Builder (press release) (blog)",null,null,null,"Jan 03, 2019","Solar PV Module Weekly Spot Price "]
["Midsummer receives major order from US solar panel manufacturer ...",null,null,null,null,"Item ","High ","Low ","Average ","AvgChg ","AvgChg % "]
["Renewable Energy Magazine (press release)",null,null,null,"Jan 03, 2019","Poly Solar Module ",0.33,0.19,0.219,0,0]
["Tanzania: Renewable Energy - a Friendly Source of Power",null,null,null,null,"Poly Module in China ",0.24,0.19,0.20799999999999999,0,0]
["AllAfrica.com",null,null,null,"Jan 03, 2019","Poly High Eff / PERC Module ",0.37,0.22,0.255,0,0]
["UltraTech forms joint venture with PE-backed firm to boost solar ...",null,null,null,null,"Mono High Eff / PERC Module ",0.42,0.24,0.27300000000000002,0,0]
["VCCircle",null,null,null,"Jan 03, 2019","Mono High Eff / PERC Module in China ",0.27,0.24,0.25600000000000001,0,0]
["Surging summer solar helped UK to another renewables record in ...",null,null,null,null,"ThinFilm Solar Module ",0.35,0.22,0.246,0,0]
["Solar Power Portal",null,null,null,"Jan 03, 2019","US Multi Solar Module","Visit here for more detail module price information"]
["Renewable Energy Market Trends to Watch in 2019",null,null,null,null,"Mono Silicon Solar Module","Visit here for more detail module price information"]
["AltEnergyMag (press release)",null,null,null,"Jan 03, 2019","India Poly Module","Visit here for more detail module price information"]
["Last Update: 2019-Jan- 03 07:00 (GMT+8)",null,null,null,null,"Unit: USD / Watt ","more",null,"Last Update: 2019-01-02"]
[null,null,null,null,null,"All Spot Prices are Tax excluded and updated on Wednesday "]
["Price Methodology","Terms of Use","Privacy Policy ","About Us ","Contact Us ","Site Map"]
["Copyright © 2019 PVinsights.com All rights reserved"]

{"sheet":"pvinsights 29 01 19","index":37,"n_rows":54,"n_cols":13,"rows_kept":54,"cut":false,"hidden":false,"merged":[[4,0,5,4],[8,0,8,2],[9,0,9,1],[10,0,10,2],[11,0,11,1],[17,0,17,1],[7,0,7,2],[20,0,20,4],[21,0,21,3],[22,0,22,4],[12,0,12,2],[13,0,13,1],[14,0,14,2],[15,0,15,1],[16,0,16,2],[23,0,23,3],[24,0,24,4],[25,0,25,3],[26,0,26,4],[27,0,27,3],[34,0,34,4],[35,0,35,3],[36,0,36,4],[37,0,37,3],[28,0,28,4],[29,0,29,3],[30,0,30,4],[31,0,31,3],[32,0,32,4],[47,6,47,10],[50,0,50,4],[18,0,19,4],[20,6,20,10],[21,6,21,10],[43,0,43,3],[44,0,44,4],[45,0,45,3],[46,0,46,4],[47,0,47,3],[38,0,38,4],[39,0,39,3],[40,0,40,4],[41,0,41,3],[42,0,42,4],[33,0,33,3],[4,11,13,11],[22,8,22,10],[35,6,35,10],[36,6,36,10],[37,6,37,7],[37,8,37,10],[22,6,22,7],[7,6,7,9],[8,6,8,9],[9,6,9,7],[9,8,9,10],[19,6,19,10],[51,0,51,4],[48,6,48,10],[49,6,49,10],[50,6,50,7],[50,8,50,10],[51,5,51,10],[48,0,48,4],[49,0,49,3]]}
[null,"Login","Register","Member Center"]
[]
["Home","Why Solar","Retailer Price","Contract Price","Inverter Price","Weekly Snapshots","Price Download","Monthly Insights","Weekly Forecast","Price Forecast","Premier Insights","Premier Data","Advertising"]
[null,null,null,null,null,"PV Poly Silicon Weekly Spot Price"]
["Key Date of The US 2017 Section 201 Safeguard Investigation",null,null,null,null,"Item ","High ","Low ","Average ","AvgChg ","AvgChg% "]
[null,null,null,null,null,"PV Grade PolySilicon (9N/9N+) ",11.1,8.4,8.9,-0.05,-5.5999999999999999E-3]
[null,null,null,null,null,"2nd Grade PolySilicon (6N-8N) ",8.5,6.2,6.85,-0.06,-8.6999999999999994E-3]
["Solar PV Corporate News Release",null,null,null,null,"PV Grade PolySilicon in China (9N/9N+) ","Visit here for more Poly-Si price",null,null,null,"%"]
["JinkoSolar Announces Third Quarter 2018 Financial Results",null,null,null,null,"PV Grade PolySilicon Outside China (9N/9N+) ","Visit here for more Poly-Si price",null,null,null,"%"]
["JinkoSolar",null,"Nov 26, 2018",null,null,"Unit: USD/Kg ","more",null,"Last Update: 2019-01-23"]
["CANADIAN SOLAR REPORTS THIRD QUARTER 2018 RESULTS",null,null,null,null,"Definition of PV Grade: Poly silicon chunk with high purity can be directly produced to Solar PV Ingots / Bricks"]
["CanadianSola",null,"Nov 15, 2018",null,null,"Definition of 2nd Grade: Poly silicon chunk must be mixed with high purity polysilicon, when producing Solar PV Ingots / Bricks."]
["SunPower Reports Third Quarter 2018 Results",null,null,null,null,"PolySilicon Price In China: The Price is surveyed by RMB term with Tax and then shown in USD term without 16% of VAT after May 1, 2018 and 17% of VAT before May 1, 2018."]
["Sunpower",null,"Oct 31, 2018",null,null,"Solar PV Wafer Weekly Spot Price "]
["First Solar, Inc. Announces Third Quarter 2018 Financial Results",null,null,null,null,"Item ","High ","Low ","Average ","AvgChg ","AvgChg% "]
["First Solar",null,"Oct 26, 2018",null,null,"156 mm Multi Solar Wafer ",0.3,0.26,0.27100000000000002,-1E-3,-3.7000000000000002E-3]
["Hanwha Q CELLS Reports Second Quarter 2018 Results",null,null,null,null,"156 mm High Eff Multi Solar Wafer ",0.3,0.27,0.27600000000000002,-1E-3,-3.5999999999999999E-3]
["Hanwha Q-Cel",null,"Aug 13, 2018",null,null,"156 mm Mono Solar Wafer ",0.41,0.36,0.38100000000000001,-1E-3,-2.5999999999999999E-3]
["Latest Solar PV News",null,null,null,null,"156 mm Mono Wafer Outside China ",0.41,0.36,0.38800000000000001,-1E-3,-2.5999999999999999E-3]
[null,null,null,null,null,"156 mm Multi Wafer Outside China","Visit here for more detail wafer price information"]
["Is solar energy still a good option for powering Utah homes?",null,null,null,null,"156mm DiamondWire Poly Wafer","Visit here for more detail wafer price information"]
["ABC 4",null,null,null,"Jan 30, 2019","156 mm N-Mono Wafer","Visit here for more detail"]
["This bill could revise a controversial Indiana solar power law",null,null,null,null,"Unit: USD ","more",null,"Last Update: 2019-01-23"]
["Evansville Courier & Press",null,null,null,"Jan 30, 2019","Wafer Prices In China: The Prices are surveyed by RMB term with Tax and then shown in USD term without 16% of VAT after May 1, 2018 and 17% of VAT before May 1, 2018."]
["State House Defines Solar Energy Permits",null,null,null,null,"Solar PV Cell Weekly Spot Price "]
["KELOLAND TV",null,null,null,"Jan 30, 2019","Item ","High ","Low ","Average ","AvgChg ","AvgChg % "]
["After busy 2018, Duke Energy plans to deliver more solar power this ...",null,null,null,null,"Multi Cell Price Per Watt ",0.13500000000000001,0.09,0.105,-1E-3,-9.4000000000000004E-3]
["Independent Tribune",null,null,null,"Jan 30, 2019","Non China Poly Cell Per Watt ",0.14000000000000001,0.09,0.105,-1E-3,-9.4000000000000004E-3]
["More than 3500 solar panels being installed at the city's water ...",null,null,null,null,"Poly PERC Cell Per Watt ",0.13500000000000001,0.105,0.113,-1E-3,-8.8000000000000005E-3]
["Chicago Tribune",null,null,null,"Jan 30, 2019","Non China Poly PERC Cell Per Watt ",0.13500000000000001,0.115,0.124,-1E-3,-8.0000000000000002E-3]
["Column: Appearances do matter, even with the installation of solar ...",null,null,null,null,"Mono PERC Cell Per Watt ",0.17,0.14499999999999999,0.153,-1E-3,-6.4999999999999997E-3]
["Chicago Tribune",null,null,null,"Jan 30, 2019","Non China Mono PERC Cell Per Watt ",0.17,0.14499999999999999,0.152,-1E-3,-6.4999999999999997E-3]
["Florida Power & Light Hits 1 GW Solar Milestone",null,null,null,null,"High Eff Mono PERC Cell Per Watt ",0.17,0.15,0.16200000000000001,-1E-3,-6.1000000000000004E-3]
["Solar Industry",null,null,null,"Jan 30, 2019","156 mm Multi Solar Cell ",0.63,0.4,0.48099999999999998,-4.0000000000000001E-3,-8.2000000000000007E-3]
["Florida solar powers to 1GW",null,null,null,null,"156 mm Mono Solar Cell ",0.87,0.53,0.61,-0.01,-1.61E-2]
["reNEWS",null,null,null,"Jan 30, 2019","China Poly Cell Per Watt ","Visit here for more detail Cell price information"]
["pvMB 1/29/19: FPL exceeds 1 GW of solar, Enphase loan payoff ...",null,null,null,null,"Non (TW or CN) Poly Cell Per Watt","Visit here for more detail Cell price information"]
["pv magazine USA",null,null,null,"Jan 30, 2019","Unit: USD ","more",null,"Last Update: 2019-01-23"]
["FPL's solar generation surpasses 1000MW",null,null,null,null,"High Efficency Mono PERC Cell: The Prices are mainly represented to solar cells for 21.8% efficiency with less than 1.5% of CTM efficiency lost or 22.0% with less than 2% of CTM efficiency lost."]
["Energy Digital",null,null,null,"Jan 30, 2019","Solar PV Module Weekly Spot Price "]
["Two new Pivot Energy community solar gardens now online in Denver",null,null,null,null,"Item ","High ","Low ","Average ","AvgChg ","AvgChg % "]
["Solar Power World",null,null,null,"Jan 30, 2019","Poly Solar Module ",0.33,0.19,0.218,-1E-3,-4.5999999999999999E-3]
["Costs are falling for renewable energy stored in batteries",null,null,null,null,"Poly Module in China ",0.24,0.19,0.20699999999999999,-1E-3,-4.7999999999999996E-3]
["Marketplace.org",null,null,null,"Jan 30, 2019","Poly High Eff / PERC Module ",0.37,0.22,0.254,-1E-3,-3.8999999999999998E-3]
["GoviEx Exploring Renewable, Lower-Cost, Solar Energy Solutions ...",null,null,null,null,"Mono High Eff / PERC Module ",0.42,0.24,0.27200000000000002,-1E-3,-3.7000000000000002E-3]
["MarketWatch",null,null,null,"Jan 30, 2019","Mono High Eff / PERC Module in China ",0.27,0.24,0.254,-2E-3,-7.7999999999999996E-3]
["India Cuts Size Of Biggest Solar Tender To A Third After Tepid ...",null,null,null,null,"ThinFilm Solar Module ",0.35,0.22,0.245,-1E-3,-4.1000000000000003E-3]
["BloombergQuint",null,null,null,"Jan 30, 2019","US Multi Solar Module","Visit here for more detail module price information"]
["Indian Railways Planning 4 Gigawatts Solar Power Capacity",null,null,null,null,"Mono Silicon Solar Module","Visit here for more detail module price information"]
["CleanTechnica",null,null,null,"Jan 30, 2019","India Poly Module","Visit here for more detail module price information"]
["Last Update: 2019-Jan- 30 07:00 (GMT+8)",null,null,null,null,"Unit: USD / Watt ","more",null,"Last Update: 2019-01-23"]
[null,null,null,null,null,"All Spot Prices are Tax excluded and updated on Wednesday "]
["Price Methodology","Terms of Use","Privacy Policy ","About Us ","Contact Us ","Site Map"]
["Copyright © 2019 PVinsights.com All rights reserved"]

{"sheet":"pvinsights 05 03 19","index":38,"n_rows":54,"n_cols":13,"rows_kept":54,"cut":false,"hidden":false,"merged":[[51,0,51,4],[48,6,48,10],[49,6,49,10],[50,6,50,7],[50,8,50,10],[51,5,51,10],[48,0,48,4],[49,0,49,3],[4,11,13,11],[22,8,22,10],[35,6,35,10],[36,6,36,10],[37,6,37,7],[37,8,37,10],[22,6,22,7],[7,6,7,9],[8,6,8,9],[9,6,9,7],[9,8,9,10],[19,6,19,10],[47,6,47,10],[50,0,50,4],[18,0,19,4],[20,6,20,10],[21,6,21,10],[43,0,43,3],[44,0,44,4],[45,0,45,3],[46,0,46,4],[47,0,47,3],[38,0,38,4],[39,0,39,3],[40,0,40,4],[41,0,41,3],[42,0,42,4],[33,0,33,3],[34,0,34,4],[35,0,35,3],[36,0,36,4],[37,0,37,3],[28,0,28,4],[29,0,29,3],[30,0,30,4],[31,0,31,3],[32,0,32,4],[23,0,23,3],[24,0,24,4],[25,0,25,3],[26,0,26,4],[27,0,27,3],[17,0,17,1],[7,0,7,2],[20,0,20,4],[21,0,21,3],[22,0,22,4],[12,0,12,2],[13,0,13,1],[14,0,14,2],[15,0,15,1],[16,0,16,2],[4,0,5,4],[8,0,8,2],[9,0,9,1],[10,0,10,2],[11,0,11,1]]}
[null,"Login","Register","Member Center"]
[]
["Home","Why Solar","Retailer Price","Contract Price","Inverter Price","Weekly Snapshots","Price Download","Monthly Insights","Weekly Forecast","Price Forecast","Premier Insights","Premier Data","Advertising"]
[null,null,null,null,null,"PV Poly Silicon Weekly Spot Price"]
["The US 2018 AD & CVD Sunset Reviews",null,null,null,null,"Item ","High ","Low ","Average ","AvgChg ","AvgChg% "]
[null,null,null,null,null,"PV Grade PolySilicon (9N/9N+) ",10.8,8.8000000000000007,9.0399999999999991,0.15,1.6899999999999998E-2]
[null,null,null,null,null,"2nd Grade PolySilicon (6N-8N) ",8.5,6.5,6.94,0.1,1.46E-2]
["Solar PV Corporate News Release",null,null,null,null,"PV Grade PolySilicon in China (9N/9N+) ","Visit here for more Poly-Si price",null,null,null,"%"]
["FIRST SOLAR, INC. ANNOUNCES FOURTH QUARTER & FULL YEAR 2018 FINANCIAL RESULTS",null,null,null,null,"PV Grade PolySilicon Outside China (9N/9N+) ","Visit here for more Poly-Si price",null,null,null,"%"]
["First Solar",null,"Feb 22, 2019",null,null,"Unit: USD/Kg ","more",null,"Last Update: 2019-02-27"]
["SunPower Reports Fourth Quarter and Fiscal Year 2018 Results",null,null,null,null,"Definition of PV Grade: Poly silicon chunk with high purity can be directly produced to Solar PV Ingots / Bricks"]
["Sunpower",null,"Feb 14, 2019",null,null,"Definition of 2nd Grade: Poly silicon chunk must be mixed with high purity polysilicon, when producing Solar PV Ingots / Bricks."]
["JinkoSolar Announces Third Quarter 2018 Financial Results",null,null,null,null,"PolySilicon Price In China: The Price is surveyed by RMB term with Tax and then shown in USD term without 16% of VAT after May 1, 2018 and 17% of VAT before May 1, 2018."]
["JinkoSolar",null,"Nov 26, 2018",null,null,"Solar PV Wafer Weekly Spot Price "]
["CANADIAN SOLAR REPORTS THIRD QUARTER 2018 RESULTS",null,null,null,null,"Item ","High ","Low ","Average ","AvgChg ","AvgChg% "]
["CanadianSola",null,"Nov 15, 2018",null,null,"156 mm Multi Solar Wafer ",0.3,0.27,0.27600000000000002,2E-3,7.3000000000000001E-3]
["SunPower Reports Third Quarter 2018 Results",null,null,null,null,"156 mm High Eff Multi Solar Wafer ",0.3,0.27500000000000002,0.28100000000000003,2E-3,7.1999999999999998E-3]
["Sunpower",null,"Oct 31, 2018",null,null,"156 mm Mono Solar Wafer ",0.42,0.375,0.39500000000000002,5.0000000000000001E-3,1.2800000000000001E-2]
["Latest Solar PV News",null,null,null,null,"156 mm Mono Wafer Outside China ",0.42,0.375,0.40200000000000002,5.0000000000000001E-3,1.26E-2]
[null,null,null,null,null,"156 mm Multi Wafer Outside China","Visit here for more detail wafer price information"]
["SunPower is promoting a 400-watt residential solar panel, the A ...",null,null,null,null,"156mm DiamondWire Poly Wafer","Visit here for more detail wafer price information"]
["Solar Builder (press release) (blog)Solar Power World",null,null,null,"Mar 06, 2019","156 mm N-Mono Wafer","Visit here for more detail"]
["SunPower launches up-to-415-W solar panel for US homeowners",null,null,null,null,"Unit: USD ","more",null,"Last Update: 2019-02-27"]
["Renewables Now",null,null,null,"Mar 06, 2019","Wafer Prices In China: The Prices are surveyed by RMB term with Tax and then shown in USD term without 16% of VAT after May 1, 2018 and 17% of VAT before May 1, 2018."]
["SunPower Launches Industry's First 400-Plus-Watt Home Solar ...",null,null,null,null,"Solar PV Cell Weekly Spot Price "]
["PRNewswire (press release)",null,null,null,"Mar 06, 2019","Item ","High ","Low ","Average ","AvgChg ","AvgChg % "]
["3 Top Renewable Energy Stocks to Watch This Month",null,null,null,null,"Multi Cell Price Per Watt ",0.13500000000000001,0.1,0.11,2E-3,1.8499999999999999E-2]
["Motley Fool",null,null,null,"Mar 06, 2019","Non China Poly Cell Per Watt ",0.14000000000000001,0.1,0.109,1E-3,9.2999999999999992E-3]
["Park Ridge explores removing 'barriers' to solar energy installation",null,null,null,null,"Poly PERC Cell Per Watt ",0.13500000000000001,0.115,0.11700000000000001,2E-3,1.7399999999999999E-2]
["Chicago Tribune",null,null,null,"Mar 06, 2019","Non China Poly PERC Cell Per Watt ",0.13500000000000001,0.125,0.127,1E-3,7.9000000000000008E-3]
["Green Party peer accuses UK government of 'state theft' over solar ...",null,null,null,null,"Mono PERC Cell Per Watt ",0.17,0.14499999999999999,0.152,-1E-3,-6.4999999999999997E-3]
["E&T Magazine",null,null,null,"Mar 06, 2019","Non China Mono PERC Cell Per Watt ",0.17,0.14499999999999999,0.153,-1E-3,-6.4999999999999997E-3]
["Your favorite beer, powered by solar energy",null,null,null,null,"High Eff Mono PERC Cell Per Watt ",0.17,0.15,0.16,-2E-3,-1.23E-2]
["Marin Independent Journal",null,null,null,"Mar 06, 2019","156 mm Multi Solar Cell ",0.63,0.45,0.504,8.9999999999999993E-3,1.8200000000000001E-2]
["Your silicon solar panels are limited to around 30pc efficiency, but ...",null,null,null,null,"156 mm Mono Solar Cell ",0.87,0.53,0.61499999999999999,0,0]
["ABC News",null,null,null,"Mar 06, 2019","China Poly Cell Per Watt ","Visit here for more detail Cell price information"]
["FPL's Parrish power plant to double solar energy-generating ...",null,null,null,null,"Non (TW or CN) Poly Cell Per Watt","Visit here for more detail Cell price information"]
["Bradenton HeraldSpaceCoastDaily.com",null,null,null,"Mar 06, 2019","Unit: USD ","more",null,"Last Update: 2019-02-27"]
["FPL announces four new solar power plants",null,null,null,null,"High Efficency Mono PERC Cell: The Prices are mainly represented to solar cells for 21.8% efficiency with less than 1.5% of CTM efficiency lost or 22.0% with less than 2% of CTM efficiency lost."]
["Florida Politics (blog)",null,null,null,"Mar 06, 2019","Solar PV Module Weekly Spot Price "]
["China Plans To Build The World's First Solar Power Station In Space",null,null,null,null,"Item ","High ","Low ","Average ","AvgChg ","AvgChg % "]
["Forbes",null,null,null,"Mar 06, 2019","Poly Solar Module ",0.31,0.2,0.216,3.0000000000000001E-3,1.41E-2]
["Berlin missing opportunity by leaving solar power out of new school ...",null,null,null,null,"Poly Module in China ",0.24,0.2,0.20699999999999999,2E-3,9.7999999999999997E-3]
["Clean Energy Wire",null,null,null,"Mar 06, 2019","Poly High Eff / PERC Module ",0.35,0.23,0.25700000000000001,6.0000000000000001E-3,2.3900000000000001E-2]
["BluEarth Renewables acquires 23-MW Midwest solar portfolio",null,null,null,null,"Mono High Eff / PERC Module ",0.4,0.25,0.27700000000000002,7.0000000000000001E-3,2.5899999999999999E-2]
["Solar Power World",null,null,null,"Mar 06, 2019","Mono High Eff / PERC Module in China ",0.27,0.25,0.25600000000000001,3.0000000000000001E-3,1.1900000000000001E-2]
["City of Binghamton Offering No-Cost Community Solar Energy",null,null,null,null,"ThinFilm Solar Module ",0.33,0.23,0.24399999999999999,2E-3,8.3000000000000001E-3]
["WICZ",null,null,null,"Mar 06, 2019","US Multi Solar Module","Visit here for more detail module price information"]
["Solar and Renewable Energy Policy Roundup from February 2019",null,null,null,null,"Mono Silicon Solar Module","Visit here for more detail module price information"]
["Mercom Indiachinadialogue",null,null,null,"Mar 06, 2019","India Poly Module","Visit here for more detail module price information"]
["Last Update: 2019-Mar- 06 07:00 (GMT+8)",null,null,null,null,"Unit: USD / Watt ","more",null,"Last Update: 2019-02-27"]
[null,null,null,null,null,"All Spot Prices are Tax excluded and updated on Wednesday "]
["Price Methodology","Terms of Use","Privacy Policy ","About Us ","Contact Us ","Site Map"]
["Copyright © 2019 PVinsights.com All rights reserved"]

{"sheet":"pvinsights 07 05 19","index":39,"n_rows":53,"n_cols":13,"rows_kept":53,"cut":false,"hidden":false,"merged":[[4,11,13,11],[24,8,24,10],[33,6,33,10],[34,6,34,10],[35,6,35,7],[35,8,35,10],[24,6,24,7],[8,6,8,9],[9,6,9,9],[10,6,10,7],[10,8,10,10],[21,6,21,10],[48,0,48,4],[49,0,49,3],[45,6,45,10],[50,0,50,4],[18,0,19,4],[22,6,22,10],[23,6,23,10],[50,5,50,10],[46,6,46,10],[47,6,47,10],[48,6,48,7],[48,8,48,10],[49,5,49,10],[43,0,43,3],[44,0,44,4],[45,0,45,3],[46,0,46,4],[47,0,47,3],[38,0,38,4],[39,0,39,3],[40,0,40,4],[41,0,41,3],[42,0,42,4],[33,0,33,3],[34,0,34,4],[35,0,35,3],[36,0,36,4],[37,0,37,3],[28,0,28,4],[29,0,29,3],[30,0,30,4],[31,0,31,3],[32,0,32,4],[23,0,23,3],[24,0,24,4],[25,0,25,3],[26,0,26,4],[27,0,27,3],[17,0,17,1],[7,0,7,2],[20,0,20,4],[21,0,21,3],[22,0,22,4],[12,0,12,2],[13,0,13,1],[14,0,14,2],[15,0,15,1],[16,0,16,2],[4,0,5,4],[8,0,8,2],[9,0,9,1],[10,0,10,2],[11,0,11,1]]}
[null,"Login","Register","Member Center"]
[]
["Home","Why Solar","Retailer Price","Contract Price","Inverter Price","Weekly Snapshots","Price Download","Monthly Insights","Weekly Forecast","Price Forecast","Premier Insights","Premier Data","Advertising"]
[null,null,null,null,null,"PV Poly Silicon Weekly Spot Price"]
["The US 2018 AD & CVD Sunset Reviews",null,null,null,null,"Item ","High ","Low ","Average ","AvgChg ","AvgChg% "]
[null,null,null,null,null,"PV Grade PolySilicon (9N/9N+) ",10,7.4,8.42,0,0]
[null,null,null,null,null,"2nd Grade PolySilicon (6N-8N) ",7.8,5.8,6.15,0,0]
["Solar PV Corporate News Release",null,null,null,null,"PV Mono Grade PolySilicon in China (11N/11N+) ",10,9,9.32,0,0]
["JinkoSolar Announces Fourth Quarter and Full Year 2018 Financial Results",null,null,null,null,"PV Grade PolySilicon in China (9N/9N+) ","Visit here for more Poly-Si price",null,null,null,"%"]
["JinkoSolar",null,"Mar 22, 2019",null,null,"PV Grade PolySilicon Outside China (9N/9N+) ","Visit here for more Poly-Si price",null,null,null,"%"]
["Canadian Solar Reports Fourth Quarter and Full Year 2018 Results",null,null,null,null,"Unit: USD/Kg ","more",null,"Last Update: 2019-05-01"]
["CanadianSola",null,"Mar 21, 2019",null,null,"Definition of PV Grade: Poly silicon chunk with high purity can be directly produced to Solar PV Ingots / Bricks"]
["FIRST SOLAR, INC. ANNOUNCES FOURTH QUARTER & FULL YEAR 2018 FINANCIAL RESULTS",null,null,null,null,"Definition of 2nd Grade: Poly silicon chunk must be mixed with high purity polysilicon, when producing Solar PV Ingots / Bricks."]
["First Solar",null,"Feb 22, 2019",null,null,"PolySilicon Price In China: The Price is surveyed by RMB term with Tax and then shown in USD term without 13% of VAT after Apri 1, 2019, 16% of VAT after May 1, 2018 and 17% of VAT before May 1, 2018."]
["SunPower Reports Fourth Quarter and Fiscal Year 2018 Results",null,null,null,null,"Solar PV Wafer Weekly Spot Price "]
["Sunpower",null,"Feb 14, 2019",null,null,"Item ","High ","Low ","Average ","AvgChg ","AvgChg% "]
["JinkoSolar Announces Third Quarter 2018 Financial Results",null,null,null,null,"156 mm Multi Solar Wafer ",0.28999999999999998,0.26,0.26600000000000001,0,0]
["JinkoSolar",null,"Nov 26, 2018",null,null,"156 mm High Eff Multi Solar Wafer ",0.28999999999999998,0.26,0.26600000000000001,0,0]
["Latest Solar PV News",null,null,null,null,"156 mm Mono Solar Wafer ",0.43,0.375,0.39900000000000002,0,0]
[null,null,null,null,null,"180um Mono Wafer Outside China ",0.43,0.40500000000000003,0.41099999999999998,0,0]
["Solar energy to power GAC Dubai's warehouses",null,null,null,null,"158.75 / 161.75mm Mono Wafer ",0.46,0.41499999999999998,0.434,0,0]
["Logistics Middle East",null,null,null,"May 07, 2019","156 mm Multi Wafer Outside China","Visit here for more detail wafer price information"]
["India solar capacity tops 30GW",null,null,null,null,"156mm DiamondWire Poly Wafer","Visit here for more detail wafer price information"]
["reNEWS",null,null,null,"May 07, 2019","156 mm N-Mono Wafer","Visit here for more detail"]
["Eyeing investment, India considers new solar tender with focus on ...",null,null,null,null,"Unit: USD ","more",null,"Last Update: 2019-05-01"]
["Business Standard",null,null,null,"May 07, 2019","Wafer Prices In China: The Prices are surveyed by RMB term with Tax and then shown in USD term without 13% of VAT after April 1, 2019, 16% of VAT after May 1, 2018 and 17% of VAT before May 1, 2018."]
["India mulls new solar tender with focus on factories",null,null,null,null,"Solar PV Cell Weekly Spot Price "]
["Economic Times",null,null,null,"May 07, 2019","Item ","High ","Low ","Average ","AvgChg ","AvgChg % "]
["How to Switch to Renewable, Sustainable Energy in Connecticut",null,null,null,null,"Multi Cell Price ",0.13500000000000001,9.5000000000000001E-2,0.107,3.0000000000000001E-3,2.8799999999999999E-2]
["NBC Connecticut",null,null,null,"May 07, 2019","Non China Poly Cell ",0.14000000000000001,0.1,0.107,3.0000000000000001E-3,2.8799999999999999E-2]
["C2 Energy Capital To Build Up C&I Solar Portfolio To 400 Megawatts",null,null,null,null,"Poly PERC Cell ",0.13500000000000001,0.11,0.11799999999999999,3.0000000000000001E-3,2.6100000000000002E-2]
["CleanTechnica",null,null,null,"May 07, 2019","Non China Poly PERC Cell ",0.13500000000000001,0.12,0.128,3.0000000000000001E-3,2.4E-2]
["What if We Turned The Sahara Desert Into a Giant Solar Farm?",null,null,null,null,"158.75/161.75mm Mono PERC Cell ",0.18,0.16,0.16300000000000001,0,0]
["ScienceAlert",null,null,null,"May 07, 2019","China Poly Cell Per Watt ","Visit here for more detail Cell price information"]
["Tesla Makes a Last-Gasp Effort to Revive Its Solar Energy Business",null,null,null,null,"Non (TW or CN) Poly Cell Per Watt","Visit here for more detail Cell price information"]
["Yahoo Finance",null,null,null,"May 07, 2019","Unit: USD / Watt","more",null,"Last Update: 2019-05-01"]
["How Virginia is breaking logjams around solar energy legislation",null,null,null,null,"High Efficency Mono PERC Cell: The Prices are mainly represented to solar cells for 21.8% efficiency with less than 1.5% of CTM efficiency lost or 22.0% with less than 2% of CTM efficiency lost."]
["Energy News Network",null,null,null,"May 07, 2019","Solar PV Module Weekly Spot Price "]
["Daintree Rainforest solar to hydrogen microgrid an Australian first",null,null,null,null,"Item ","High ","Low ","Average ","AvgChg ","AvgChg % "]
["Energy Matters",null,null,null,"May 07, 2019","Poly Solar Module ",0.31,0.2,0.214,0,0]
["May 7 Letters: Solar energy is not a primary source",null,null,null,null,"Poly Module in China ",0.24,0.2,0.20599999999999999,0,0]
["Daily Press",null,null,null,"May 07, 2019","Poly High Eff / PERC Module ",0.35,0.23,0.25600000000000001,2E-3,7.9000000000000008E-3]
["Renewable energy growth stalled last year",null,null,null,null,"Mono High Eff / PERC Module ",0.4,0.24,0.27600000000000002,3.0000000000000001E-3,1.0999999999999999E-2]
["Chron.com",null,null,null,"May 07, 2019","Mono High Eff / PERC Module in China ",0.27,0.24,0.253,0,0]
["Solar panel operation and maintenance: Popular packages ...",null,null,null,null,"ThinFilm Solar Module ",0.33,0.23,0.246,3.0000000000000001E-3,1.23E-2]
["Economic Times",null,null,null,"May 07, 2019","US Multi Solar Module","Visit here for more detail module price information"]
["Federal Labor solar battery rebate in sync with renewable energy ...",null,null,null,null,"Mono Silicon Solar Module","Visit here for more detail module price information"]
["Energy MattersThe Hindu BusinessLine",null,null,null,"May 07, 2019","India Poly Module","Visit here for more detail module price information"]
["Commercial solar power plants: Installation process and related ...",null,null,null,null,"Unit: USD / Watt ","more",null,"Last Update: 2019-05-01"]
["Economic Times",null,null,null,"May 07, 2019","All Spot Prices are Tax excluded and updated on Wednesday "]
["Last Update: 2019-May- 07 20:00 (GMT+8)"]
["Price Methodology","Terms of Use","Privacy Policy ","About Us ","Contact Us ","Site Map"]
["Copyright © 2019 PVinsights.com All rights reserved"]

{"sheet":"pvinsights 19 05 19","index":40,"n_rows":53,"n_cols":13,"rows_kept":53,"cut":false,"hidden":false,"merged":[[4,0,5,4],[8,0,8,2],[9,0,9,1],[10,0,10,2],[11,0,11,1],[17,0,17,1],[7,0,7,2],[20,0,20,4],[21,0,21,3],[22,0,22,4],[12,0,12,2],[13,0,13,1],[14,0,14,2],[15,0,15,1],[16,0,16,2],[23,0,23,3],[24,0,24,4],[25,0,25,3],[26,0,26,4],[27,0,27,3],[28,0,28,4],[29,0,29,3],[30,0,30,4],[31,0,31,3],[32,0,32,4],[33,0,33,3],[34,0,34,4],[35,0,35,3],[36,0,36,4],[37,0,37,3],[46,0,46,4],[47,0,47,3],[38,0,38,4],[39,0,39,3],[40,0,40,4],[41,0,41,3],[42,0,42,4],[48,0,48,4],[49,0,49,3],[45,6,45,10],[50,0,50,4],[18,0,19,4],[22,6,22,10],[23,6,23,10],[50,5,50,10],[46,6,46,10],[47,6,47,10],[48,6,48,7],[48,8,48,10],[49,5,49,10],[43,0,43,3],[44,0,44,4],[45,0,45,3],[4,11,13,11],[24,8,24,10],[33,6,33,10],[34,6,34,10],[35,6,35,7],[35,8,35,10],[24,6,24,7],[8,6,8,9],[9,6,9,9],[10,6,10,7],[10,8,10,10],[21,6,21,10]]}
[null,"Login","Register","Member Center"]
[]
["Home","Why Solar","Retailer Price","Contract Price","Inverter Price","Weekly Snapshots","Price Download","Monthly Insights","Weekly Forecast","Price Forecast","Premier Insights","Premier Data","Advertising"]
[null,null,null,null,null,"PV Poly Silicon Weekly Spot Price"]
["The US 2018 AD & CVD Sunset Reviews",null,null,null,null,"Item ","High ","Low ","Average ","AvgChg ","AvgChg% "]
[null,null,null,null,null,"PV Grade PolySilicon (9N/9N+) ",10,7.3,8.34,-0.08,-9.4999999999999998E-3]
[null,null,null,null,null,"2nd Grade PolySilicon (6N-8N) ",7.8,5.7,6.09,-0.06,-9.7999999999999997E-3]
["Solar PV Corporate News Release",null,null,null,null,"PV Mono Grade PolySilicon in China (11N/11N+) ",10,8.9,9.23,-0.09,-9.7000000000000003E-3]
["JinkoSolar Announces Fourth Quarter and Full Year 2018 Financial Results",null,null,null,null,"PV Grade PolySilicon in China (9N/9N+) ","Visit here for more Poly-Si price",null,null,null,"%"]
["JinkoSolar",null,"Mar 22, 2019",null,null,"PV Grade PolySilicon Outside China (9N/9N+) ","Visit here for more Poly-Si price",null,null,null,"%"]
["Canadian Solar Reports Fourth Quarter and Full Year 2018 Results",null,null,null,null,"Unit: USD/Kg ","more",null,"Last Update: 2019-05-15"]
["CanadianSola",null,"Mar 21, 2019",null,null,"Definition of PV Grade: Poly silicon chunk with high purity can be directly produced to Solar PV Ingots / Bricks"]
["FIRST SOLAR, INC. ANNOUNCES FOURTH QUARTER & FULL YEAR 2018 FINANCIAL RESULTS",null,null,null,null,"Definition of 2nd Grade: Poly silicon chunk must be mixed with high purity polysilicon, when producing Solar PV Ingots / Bricks."]
["First Solar",null,"Feb 22, 2019",null,null,"PolySilicon Price In China: The Price is surveyed by RMB term with Tax and then shown in USD term without 13% of VAT after Apri 1, 2019, 16% of VAT after May 1, 2018 and 17% of VAT before May 1, 2018."]
["SunPower Reports Fourth Quarter and Fiscal Year 2018 Results",null,null,null,null,"Solar PV Wafer Weekly Spot Price "]
["Sunpower",null,"Feb 14, 2019",null,null,"Item ","High ","Low ","Average ","AvgChg ","AvgChg% "]
["JinkoSolar Announces Third Quarter 2018 Financial Results",null,null,null,null,"156 mm Multi Solar Wafer ",0.28999999999999998,0.25,0.26200000000000001,-3.0000000000000001E-3,-1.1299999999999999E-2]
["JinkoSolar",null,"Nov 26, 2018",null,null,"156 mm High Eff Multi Solar Wafer ",0.28999999999999998,0.25,0.26200000000000001,-3.0000000000000001E-3,-1.1299999999999999E-2]
["Latest Solar PV News",null,null,null,null,"156 mm Mono Solar Wafer ",0.43,0.37,0.39600000000000002,-2E-3,-5.0000000000000001E-3]
[null,null,null,null,null,"180um Mono Wafer Outside China ",0.43,0.4,0.40899999999999997,-1E-3,-2.3999999999999998E-3]
["Know Your Madisonian: Fatherhood changed perspective for solar ...",null,null,null,null,"158.75 / 161.75mm Mono Wafer ",0.46,0.41,0.432,-1E-3,-2.3E-3]
["Madison.comGhanaWeb",null,null,null,"May 18, 2019","156 mm Multi Wafer Outside China","Visit here for more detail wafer price information"]
["India Installs Just 55% Of Target Renewable Energy Capacity In ...",null,null,null,null,"156mm DiamondWire Poly Wafer","Visit here for more detail wafer price information"]
["CleanTechnica",null,null,null,"May 18, 2019","156 mm N-Mono Wafer","Visit here for more detail"]
["Solar companies concerned with Alberta rebate program uncertainty",null,null,null,null,"Unit: USD ","more",null,"Last Update: 2019-05-15"]
["Globalnews.ca",null,null,null,"May 18, 2019","Wafer Prices In China: The Prices are surveyed by RMB term with Tax and then shown in USD term without 13% of VAT after April 1, 2019, 16% of VAT after May 1, 2018 and 17% of VAT before May 1, 2018."]
["Dominion plans six new solar power plants to generate 'clean ...",null,null,null,null,"Solar PV Cell Weekly Spot Price "]
["Richmond.comGrist",null,null,null,"May 18, 2019","Item ","High ","Low ","Average ","AvgChg ","AvgChg % "]
["Renewable Energy Job Boom Creates Economic Opportunity As ...",null,null,null,null,"Multi Cell Price ",0.13500000000000001,9.5000000000000001E-2,0.106,-1E-3,-9.2999999999999992E-3]
["Forbes",null,null,null,"May 18, 2019","Non China Poly Cell ",0.14000000000000001,0.1,0.106,-1E-3,-9.2999999999999992E-3]
["How wind and solar became America's cheapest energy source",null,null,null,null,"Poly PERC Cell ",0.13500000000000001,0.11,0.11700000000000001,-1E-3,-8.5000000000000006E-3]
["CBS News",null,null,null,"May 18, 2019","Non China Poly PERC Cell ",0.13500000000000001,0.12,0.128,0,0]
["A Brief History of Solar Panels",null,null,null,null,"158.75/161.75mm Mono PERC Cell ",0.18,0.155,0.16,-2E-3,-1.23E-2]
["Smithsonian",null,null,null,"May 18, 2019","China Poly Cell Per Watt ","Visit here for more detail Cell price information"]
["Renewable energy capacity in Texas REC program grew by almost ...",null,null,null,null,"Non (TW or CN) Poly Cell Per Watt","Visit here for more detail Cell price information"]
["S&P Global PlattsCaixin Global",null,null,null,"May 18, 2019","Unit: USD / Watt","more",null,"Last Update: 2019-05-15"]
["Vote Solar report finds Gov. Cuomo's 6-GW solar goal would create ...",null,null,null,null,"High Efficency Mono PERC Cell: The Prices are mainly represented to solar cells for 21.8% efficiency with less than 1.5% of CTM efficiency lost or 22.0% with less than 2% of CTM efficiency lost."]
["Solar Power World",null,null,null,"May 18, 2019","Solar PV Module Weekly Spot Price "]
["It just became much easier for businesses to move off Eskom's grid ...",null,null,null,null,"Item ","High ","Low ","Average ","AvgChg ","AvgChg % "]
["Business Insider South Africa",null,null,null,"May 18, 2019","Poly Solar Module ",0.31,0.2,0.21299999999999999,-1E-3,-4.7000000000000002E-3]
["Why Tesla is offering rock-bottom solar panel prices",null,null,null,null,"Poly Module in China ",0.24,0.2,0.20399999999999999,-1E-3,-4.8999999999999998E-3]
["CNN",null,null,null,"May 18, 2019","Poly High Eff / PERC Module ",0.35,0.22500000000000001,0.25600000000000001,-1E-3,-3.8999999999999998E-3]
["Czech Republic Wins 4 Cases Over Solar Energy Incentives",null,null,null,null,"Mono High Eff / PERC Module ",0.4,0.24,0.27700000000000002,-1E-3,-3.5999999999999999E-3]
["Law360",null,null,null,"May 18, 2019","Mono High Eff / PERC Module in China ",0.27,0.24,0.251,-1E-3,-4.0000000000000001E-3]
["Minnesota's solar program sees opposition despite popularity",null,null,null,null,"ThinFilm Solar Module ",0.33,0.23,0.248,0,0]
["Minneapolis Star Tribune",null,null,null,"May 18, 2019","US Multi Solar Module","Visit here for more detail module price information"]
["Walmart in big solar power deal",null,null,null,null,"Mono Silicon Solar Module","Visit here for more detail module price information"]
["Chain Store AgeUMN News",null,null,null,"May 18, 2019","India Poly Module","Visit here for more detail module price information"]
["Solar Panel Art Series Unveils The Exclusive Transition Edition In ...",null,null,null,null,"Unit: USD / Watt ","more",null,"Last Update: 2019-05-15"]
["CleanTechnica",null,null,null,"May 18, 2019","All Spot Prices are Tax excluded and updated on Wednesday "]
["Last Update: 2019-May- 19 14:00 (GMT+8)"]
["Price Methodology","Terms of Use","Privacy Policy ","About Us ","Contact Us ","Site Map"]
["Copyright © 2019 PVinsights.com All rights reserved"]

{"sheet":"pvinsights 27 06 19","index":41,"n_rows":53,"n_cols":13,"rows_kept":53,"cut":false,"hidden":false,"merged":[[4,11,13,11],[23,8,23,10],[32,6,32,10],[33,6,33,10],[34,6,34,7],[34,8,34,10],[23,6,23,7],[8,6,8,9],[9,6,9,9],[10,6,10,7],[10,8,10,10],[20,6,20,10],[48,0,48,4],[49,0,49,3],[44,6,44,10],[50,0,50,4],[18,0,19,4],[21,6,21,10],[22,6,22,10],[49,5,49,10],[50,5,50,10],[45,6,45,10],[46,6,46,10],[47,6,47,7],[47,8,47,10],[48,5,48,10],[43,0,43,3],[44,0,44,4],[45,0,45,3],[46,0,46,4],[47,0,47,3],[38,0,38,4],[39,0,39,3],[40,0,40,4],[41,0,41,3],[42,0,42,4],[33,0,33,3],[34,0,34,4],[35,0,35,3],[36,0,36,4],[37,0,37,3],[28,0,28,4],[29,0,29,3],[30,0,30,4],[31,0,31,3],[32,0,32,4],[23,0,23,3],[24,0,24,4],[25,0,25,3],[26,0,26,4],[27,0,27,3],[17,0,17,1],[7,0,7,2],[20,0,20,4],[21,0,21,3],[22,0,22,4],[12,0,12,2],[13,0,13,1],[14,0,14,2],[15,0,15,1],[16,0,16,2],[4,0,5,4],[8,0,8,2],[9,0,9,1],[10,0,10,2],[11,0,11,1]]}
[null,"Login","Register","Member Center"]
[]
["Home","Why Solar","Retailer Price","Contract Price","Inverter Price","Weekly Snapshots","Price Download","Monthly Insights","Weekly Forecast","Price Forecast","Premier Insights","Premier Data","Advertising"]
[null,null,null,null,null,"PV Poly Silicon Weekly Spot Price"]
["The US 2018 AD & CVD Sunset Reviews",null,null,null,null,"Item ","High ","Low ","Average ","AvgChg ","AvgChg% "]
[null,null,null,null,null,"PV Grade PolySilicon (9N/9N+) ",10,7.3,8.14,-0.02,-2.5000000000000001E-3]
[null,null,null,null,null,"2nd Grade PolySilicon (6N-8N) ",7.6,5.7,6,-0.02,-3.3E-3]
["Solar PV Corporate News Release",null,null,null,null,"PV Mono Grade PolySilicon in China (11N/11N+) ",10,9,9.35,0,0]
["CANADIAN SOLAR REPORTS FIRST QUARTER 2019 RESULTS",null,null,null,null,"PV Grade PolySilicon in China (9N/9N+) ","Visit here for more Poly-Si price",null,null,null,"%"]
["CanadianSol",null,"May 30, 2019",null,null,"PV Grade PolySilicon Outside China (9N/9N+) ","Visit here for more Poly-Si price",null,null,null,"%"]
["SunPower Reports First Quarter 2019 Results",null,null,null,null,"Unit: USD/Kg ","more",null,"Last Update: 2019-06-26"]
["Sunpower",null,"May 10, 2019",null,null,"Definition of PV Grade: Poly silicon chunk with high purity can be directly produced to Solar PV Ingots / Bricks"]
["First Solar, Inc. Announces First Quarter 2019 Financial Results",null,null,null,null,"Definition of 2nd Grade: Poly silicon chunk must be mixed with high purity polysilicon, when producing Solar PV Ingots / Bricks."]
["First Solar",null,"May 03, 2019",null,null,"PolySilicon Price In China: The Price is surveyed by RMB term with Tax and then shown in USD term without 13% of VAT after Apri 1, 2019, 16% of VAT after May 1, 2018 and 17% of VAT before May 1, 2018."]
["JinkoSolar Announces Fourth Quarter and Full Year 2018 Financial Results",null,null,null,null,"Solar PV Wafer Weekly Spot Price "]
["JinkoSolar",null,"Mar 22, 2019",null,null,"Item ","High ","Low ","Average ","AvgChg ","AvgChg% "]
["Canadian Solar Reports Fourth Quarter and Full Year 2018 Results",null,null,null,null,"156 mm Multi Solar Wafer ",0.28000000000000003,0.25,0.25800000000000001,-2E-3,-7.7000000000000002E-3]
["CanadianSola",null,"Mar 21, 2019",null,null,"156 mm High Eff Multi Solar Wafer ",0.28000000000000003,0.25,0.25800000000000001,-2E-3,-7.7000000000000002E-3]
["Latest Solar PV News",null,null,null,null,"156 mm Mono Solar Wafer ",0.43,0.37,0.39200000000000002,-2E-3,-5.1000000000000004E-3]
[null,null,null,null,null,"158.75 / 161.75mm Mono Wafer ",0.46,0.41,0.42699999999999999,-3.0000000000000001E-3,-7.0000000000000001E-3]
["The Lightyear One 'Solar Car' Is Amazing But Isn't Quite What You ...",null,null,null,null,"156 mm Multi Wafer Outside China","Visit here for more detail wafer price information"]
["Jalopnik",null,null,null,"Jun 27, 2019","156mm DiamondWire Poly Wafer","Visit here for more detail wafer price information"]
["Dutch company develops partly solar powered car",null,null,null,null,"156 mm N-Mono Wafer","Visit here for more detail"]
["CNN",null,null,null,"Jun 27, 2019","Unit: USD ","more",null,"Last Update: 2019-06-26"]
["Tufts University Adds New Solar Energy Systems",null,null,null,null,"Wafer Prices In China: The Prices are surveyed by RMB term with Tax and then shown in USD term without 13% of VAT after April 1, 2019, 16% of VAT after May 1, 2018 and 17% of VAT before May 1, 2018."]
["Renewable Energy Magazine (press release)",null,null,null,"Jun 27, 2019","Solar PV Cell Weekly Spot Price "]
["Tufts adds new solar energy systems, expands its commitment to ...",null,null,null,null,"Item ","High ","Low ","Average ","AvgChg ","AvgChg % "]
["Tufts Now",null,null,null,"Jun 27, 2019","Multi Cell Price ",0.13500000000000001,9.5000000000000001E-2,0.111,-1E-3,-8.8999999999999999E-3]
["The reality behind solar power's next star material",null,null,null,null,"Non China Poly Cell ",0.14000000000000001,0.1,0.111,-1E-3,-8.8999999999999999E-3]
["Nature.com",null,null,null,"Jun 27, 2019","Poly PERC Cell ",0.13500000000000001,0.11,0.12,-1E-3,-8.3000000000000001E-3]
["There's a looming waste crisis from Australia's solar energy boom",null,null,null,null,"Non China Poly PERC Cell ",0.13500000000000001,0.12,0.129,-1E-3,-7.7000000000000002E-3]
["The Conversation AU",null,null,null,"Jun 27, 2019","158.75/161.75mm Mono PERC Cell ",0.18,0.15,0.154,-5.0000000000000001E-3,-3.1399999999999997E-2]
["Charge your phone with solar power as a first step to going green",null,null,null,null,"China Poly Cell Per Watt ","Visit here for more detail Cell price information"]
["CNET",null,null,null,"Jun 27, 2019","Non (TW or CN) Poly Cell Per Watt","Visit here for more detail Cell price information"]
["Governor signs renewable energy and climate change bills into law",null,null,null,null,"Unit: USD / Watt","more",null,"Last Update: 2019-06-26"]
["WAGM",null,null,null,"Jun 27, 2019","High Efficency Mono PERC Cell: The Prices are mainly represented to solar cells for 21.8% efficiency with less than 1.5% of CTM efficiency lost or 22.0% with less than 2% of CTM efficiency lost."]
["Maine governor signs sweeping renewable energy bills",null,null,null,null,"Solar PV Module Weekly Spot Price "]
["WMTW Portland",null,null,null,"Jun 27, 2019","Item ","High ","Low ","Average ","AvgChg ","AvgChg % "]
["Mills signs 3 bills to boost renewable energy in Maine",null,null,null,null,"Poly Solar Module ",0.31,0.2,0.214,-1E-3,-4.7000000000000002E-3]
["Kennebec Journal & Morning Sentinel",null,null,null,"Jun 27, 2019","Poly Module in China ",0.24,0.2,0.21199999999999999,-1E-3,-4.7000000000000002E-3]
["Southern states lead 2019's stock market solar rally",null,null,null,null,"Poly High Eff / PERC Module ",0.35,0.22500000000000001,0.252,-2E-3,-7.9000000000000008E-3]
["Axios",null,null,null,"Jun 27, 2019","Mono High Eff / PERC Module ",0.4,0.24,0.27200000000000002,-2E-3,-7.3000000000000001E-3]
["Ghana considers use of solar energy at airports",null,null,null,null,"Mono High Eff / PERC Module in China ",0.27,0.24,0.249,-1E-3,-4.0000000000000001E-3]
["Myjoyonline.com",null,null,null,"Jun 27, 2019","ThinFilm Solar Module ",0.33,0.23,0.248,-1E-3,-4.0000000000000001E-3]
["Renewables surpassed coal for power production in April for first time",null,null,null,null,"US Multi Solar Module","Visit here for more detail module price information"]
["Chron.com",null,null,null,"Jun 27, 2019","Mono Silicon Solar Module","Visit here for more detail module price information"]
["UK wind, solar 'hit Q1 high'",null,null,null,null,"India Poly Module","Visit here for more detail module price information"]
["reNEWS",null,null,null,"Jun 27, 2019","Unit: USD / Watt ","more",null,"Last Update: 2019-06-26"]
["Renewable energy exceeded coal-fired generation in April",null,null,null,null,"All Spot Prices are Tax excluded and updated on Wednesday "]
["talkbusiness.net",null,null,null,"Jun 27, 2019"]
["Last Update: 2019-Jun- 27 23:00 (GMT+8)"]
["Price Methodology","Terms of Use","Privacy Policy ","About Us ","Contact Us ","Site Map"]
["Copyright © 2019 PVinsights.com All rights reserved"]

{"sheet":"pvinsights 12 08 19","index":42,"n_rows":53,"n_cols":13,"rows_kept":53,"cut":false,"hidden":false,"merged":[[4,0,5,4],[8,0,8,2],[9,0,9,1],[10,0,10,2],[11,0,11,1],[12,0,12,2],[13,0,13,1],[14,0,14,2],[15,0,15,1],[16,0,16,2],[17,0,17,1],[7,0,7,2],[20,0,20,4],[21,0,21,3],[22,0,22,4],[23,0,23,3],[24,0,24,4],[25,0,25,3],[26,0,26,4],[27,0,27,3],[28,0,28,4],[29,0,29,3],[30,0,30,4],[31,0,31,3],[32,0,32,4],[33,0,33,3],[34,0,34,4],[35,0,35,3],[36,0,36,4],[37,0,37,3],[38,0,38,4],[39,0,39,3],[40,0,40,4],[41,0,41,3],[42,0,42,4],[43,0,43,3],[44,0,44,4],[45,0,45,3],[46,0,46,4],[47,0,47,3],[48,0,48,4],[49,0,49,3],[44,6,44,10],[50,0,50,4],[18,0,19,4],[8,6,8,9],[9,6,9,9],[10,6,10,7],[10,8,10,10],[20,6,20,10],[21,6,21,10],[22,6,22,10],[4,11,13,11],[23,8,23,10],[32,6,32,10],[33,6,33,10],[34,6,34,7],[34,8,34,10],[23,6,23,7],[49,5,49,10],[50,5,50,10],[45,6,45,10],[46,6,46,10],[47,6,47,7],[47,8,47,10],[48,5,48,10]]}
[null,"Login","Register","Member Center"]
[]
["Home","Why Solar","Retailer Price","Contract Price","Inverter Price","Weekly Snapshots","Price Download","Monthly Insights","Weekly Forecast","Price Forecast","Premier Insights","Premier Data","Advertising"]
[null,null,null,null,null,"PV Poly Silicon Weekly Spot Price"]
["The US 2018 AD & CVD Sunset Reviews",null,null,null,null,"Item ","High ","Low ","Average ","AvgChg ","AvgChg% "]
[null,null,null,null,null,"PV Grade PolySilicon (9N/9N+) ",10,6.95,7.92,-0.11,-1.37E-2]
[null,null,null,null,null,"2nd Grade PolySilicon (6N-8N) ",7.6,5.45,5.76,-0.13,-2.2100000000000002E-2]
["Solar PV Corporate News Release",null,null,null,null,"PV Mono Grade PolySilicon in China (11N/11N+) ",10,8.9,9.25,-0.1,-1.0699999999999999E-2]
["JinkoSolar Announces First Quarter 2019 Financial Results",null,null,null,null,"PV Grade PolySilicon in China (9N/9N+) ","Visit here for more Poly-Si price",null,null,null,"%"]
["JinkoSolar",null,"2019-06-28",null,null,"PV Grade PolySilicon Outside China (9N/9N+) ","Visit here for more Poly-Si price",null,null,null,"%"]
["CANADIAN SOLAR REPORTS FIRST QUARTER 2019 RESULTS",null,null,null,null,"Unit: USD/Kg ","more",null,"Last Update: 2019-08-07"]
["CanadianSol",null,"2019-05-30",null,null,"Definition of PV Grade: Poly silicon chunk with high purity can be directly produced to Solar PV Ingots / Bricks"]
["SunPower Reports First Quarter 2019 Results",null,null,null,null,"Definition of 2nd Grade: Poly silicon chunk must be mixed with high purity polysilicon, when producing Solar PV Ingots / Bricks."]
["Sunpower",null,"2019-05-10",null,null,"PolySilicon Price In China: The Price is surveyed by RMB term with Tax and then shown in USD term without 13% of VAT after Apri 1, 2019, 16% of VAT after May 1, 2018 and 17% of VAT before May 1, 2018."]
["First Solar, Inc. Announces First Quarter 2019 Financial Results",null,null,null,null,"Solar PV Wafer Weekly Spot Price "]
["First Solar",null,"2019-05-03",null,null,"Item ","High ","Low ","Average ","AvgChg ","AvgChg% "]
["JinkoSolar Announces Fourth Quarter and Full Year 2018 Financial Results",null,null,null,null,"156 mm Multi Solar Wafer ",0.26,0.23499999999999999,0.24399999999999999,-4.0000000000000001E-3,-1.61E-2]
["JinkoSolar",null,"2019-03-22",null,null,"156 mm High Eff Multi Solar Wafer ",0.26,0.23499999999999999,0.24399999999999999,-4.0000000000000001E-3,-1.61E-2]
["Latest Solar PV News",null,null,null,null,"156 mm Mono Solar Wafer ",0.43,0.37,0.38900000000000001,-3.0000000000000001E-3,-7.7000000000000002E-3]
[null,null,null,null,null,"158.75 / 161.75mm Mono Wafer ",0.46,0.4,0.42399999999999999,-3.0000000000000001E-3,-7.0000000000000001E-3]
["Recto eyes solar panels in all govt buildings",null,null,null,null,"156 mm Multi Wafer Outside China","Visit here for more detail wafer price information"]
["The Manila Times",null,null,null,"2019-08-13","156mm DiamondWire Poly Wafer","Visit here for more detail wafer price information"]
["Frankston's Biggest Solar Power Project Complete",null,null,null,null,"156 mm N-Mono Wafer","Visit here for more detail"]
["Solar Quotes (blog)",null,null,null,"2019-08-13","Unit: USD ","more",null,"Last Update: 2019-08-07"]
["Solar now 'cheaper than grid electricity' in every Chinese city, study ...",null,null,null,null,"Wafer Prices In China: The Prices are surveyed by RMB term with Tax and then shown in USD term without 13% of VAT after April 1, 2019, 16% of VAT after May 1, 2018 and 17% of VAT before May 1, 2018."]
["Carbon Brief",null,null,null,"2019-08-13","Solar PV Cell Weekly Spot Price "]
["Ralphs Installs Solar Panels at Automated Distribution Center",null,null,null,null,"Item ","High ","Low ","Average ","AvgChg ","AvgChg % "]
["Progressive Grocer",null,null,null,"2019-08-13","Multi Cell Price ",0.13500000000000001,0.09,0.10199999999999999,-2E-3,-1.9199999999999998E-2]
["Ralphs Completes Solar Power Installation At 555000-Square-Foot ...",null,null,null,null,"Poly PERC Cell ",0.15,0.105,0.112,-2E-3,-1.7500000000000002E-2]
["MarketWatch",null,null,null,"2019-08-13","Mono PERC Cell ",0.18,0.11,0.122,-4.0000000000000001E-3,-3.1699999999999999E-2]
["Kroger in largest solar energy project yet",null,null,null,null,"China Mono PERC Cell ",0.15,0.11,0.11600000000000001,-4.0000000000000001E-3,-3.3300000000000003E-2]
["Chain Store Age",null,null,null,"2019-08-13","158.75/161.75mm Mono PERC Cell ",0.185,0.115,0.126,-4.0000000000000001E-3,-3.0800000000000001E-2]
["State firms' solar energy program to cost $1b",null,null,null,null,"China Poly Cell Per Watt ","Visit here for more detail Cell price information"]
["Jakarta Post",null,null,null,"2019-08-13","Non (TW or CN) Poly Cell Per Watt","Visit here for more detail Cell price information"]
["How To Have Solar Power And Eat, Too",null,null,null,null,"Unit: USD / Watt","more",null,"Last Update: 2019-08-07"]
["WFYI",null,null,null,"2019-08-13","High Efficency Mono PERC Cell: The Prices are mainly represented to solar cells for 21.8% efficiency with less than 1.5% of CTM efficiency lost or 22.0% with less than 2% of CTM efficiency lost."]
["Christopher Hayes '19 Researches Solar Energy at Brookhaven ...",null,null,null,null,"Solar PV Module Weekly Spot Price "]
["Stony Brook News (press release)",null,null,null,"2019-08-13","Item ","High ","Low ","Average ","AvgChg ","AvgChg % "]
["Vattenfall commits to Dutch hybrid play",null,null,null,null,"Poly Solar Module ",0.3,0.19,0.20699999999999999,-1E-3,-4.7999999999999996E-3]
["reNEWS",null,null,null,"2019-08-13","Poly Module in China ",0.24,0.19,0.20399999999999999,-3.0000000000000001E-3,-1.4500000000000001E-2]
["Vattenfall to build large scale wind-solar-storage plant in the ...",null,null,null,null,"Poly High Eff / PERC Module ",0.34,0.215,0.24299999999999999,-1E-3,-4.1000000000000003E-3]
["pv magazine International",null,null,null,"2019-08-13","Mono High Eff / PERC Module ",0.39,0.23499999999999999,0.26,-1E-3,-3.8E-3]
["Vattenfall combines wind, solar, batteries in Netherlands energy park",null,null,null,null,"Mono High Eff / PERC Module in China ",0.26,0.23499999999999999,0.23899999999999999,-2E-3,-8.3000000000000001E-3]
["Electric Light & Power",null,null,null,"2019-08-13","ThinFilm Solar Module ",0.33,0.23,0.245,0,0]
["Northam announces solar installations at 3 state facilities",null,null,null,null,"US Multi Solar Module","Visit here for more detail module price information"]
["Prince William Times",null,null,null,"2019-08-13","Mono Silicon Solar Module","Visit here for more detail module price information"]
["Lithuania boosts solar power funding to 18 million euro",null,null,null,null,"India Poly Module","Visit here for more detail module price information"]
["TheMayorEU (press release)",null,null,null,"2019-08-13","Unit: USD / Watt ","more",null,"Last Update: 2019-08-07"]
["Amazon announces new renewable energy projects in the US and ...",null,null,null,null,"All Spot Prices are Tax excluded and updated on Wednesday "]
["CNBC",null,null,null,"2019-08-12"]
["Last Update: 2019-Aug- 13 07:01 (GMT+8)"]
["Price Methodology","Terms of Use","Privacy Policy ","About Us ","Contact Us ","Site Map"]
["Copyright © 2019 PVinsights.com All rights reserved"]